Department Family,Entity,Date,Expense Type,Expense Area,Supplier,Supplier Type,Transaction Number,Amount,Description,Expenditure Type
Land Registry,Land Registry,02/12/2013,Croydon Office,Rates Payable,Croydon Council,Large,213148,27987,Rates Payable,Administration
Land Registry,Land Registry,02/12/2013,Birkenhead Office,Rates Payable,Wirral Metrpolitan Borough Council,Large,213152,24021,Rates Payable,Administration
Land Registry,Land Registry,03/12/2013,IS Service Delivery,Computer Equipment Maintenance,CGI IT UK Limited,Large,983802,107100,Computer Equipment Maintenance,Administration
Land Registry,Land Registry,05/12/2013,Weymouth Office,Rates Payable,West Dorset District Council,Large,476812,18487,Rates Payable,Administration
Land Registry,Land Registry,06/12/2013,Dir: Operations,Travel & Subsistence General Duty,Redfern Travel Ltd,Large,984550,113.91,Travel & Subsistence General Duty,Administration
Land Registry,Land Registry,06/12/2013,Nottingham Office,Travel & Subsistence General Duty,Redfern Travel Ltd,Large,984550,-113.91,Travel & Subsistence General Duty,Administration
Land Registry,Land Registry,06/12/2013,Customer Services,Travel & Subsistence General Duty,Redfern Travel Ltd,Large,984550,124.25,Travel & Subsistence General Duty,Administration
Land Registry,Land Registry,06/12/2013,International Unit,Travel & Subsistence General Duty,Redfern Travel Ltd,Large,984550,246.62,Travel & Subsistence General Duty,Administration
Land Registry,Land Registry,06/12/2013,Marketing Services Team,Travel & Subsistence General Duty,Redfern Travel Ltd,Large,984550,-0.05,Travel & Subsistence General Duty,Administration
Land Registry,Land Registry,06/12/2013,Product Development & Management,Travel & Subsistence General Duty,Redfern Travel Ltd,Large,984550,160.74,Travel & Subsistence General Duty,Administration
Land Registry,Land Registry,06/12/2013,Commercial & Customer Strategy & Performance,Travel & Subsistence General Duty,Redfern Travel Ltd,Large,984550,134,Travel & Subsistence General Duty,Administration
Land Registry,Land Registry,06/12/2013,Stakeholder Management,Travel & Subsistence General Duty,Redfern Travel Ltd,Large,984550,0.25,Travel & Subsistence General Duty,Administration
Land Registry,Land Registry,06/12/2013,Business Development,Travel & Subsistence General Duty,Redfern Travel Ltd,Large,984550,165.9,Travel & Subsistence General Duty,Administration
Land Registry,Land Registry,06/12/2013,Customer Services,Travel & Subsistence General Duty,Redfern Travel Ltd,Large,984550,-149.1,Travel & Subsistence General Duty,Administration
Land Registry,Land Registry,06/12/2013,International Unit,Travel & Subsistence General Duty,Redfern Travel Ltd,Large,984550,-295.94,Travel & Subsistence General Duty,Administration
Land Registry,Land Registry,06/12/2013,Marketing Services Team,Travel & Subsistence General Duty,Redfern Travel Ltd,Large,984550,0.06,Travel & Subsistence General Duty,Administration
Land Registry,Land Registry,06/12/2013,Product Development & Management,Travel & Subsistence General Duty,Redfern Travel Ltd,Large,984550,-192.89,Travel & Subsistence General Duty,Administration
Land Registry,Land Registry,06/12/2013,Commercial & Customer Strategy & Performance,Travel & Subsistence General Duty,Redfern Travel Ltd,Large,984550,-160.8,Travel & Subsistence General Duty,Administration
Land Registry,Land Registry,06/12/2013,Stakeholder Management,Travel & Subsistence General Duty,Redfern Travel Ltd,Large,984550,-0.3,Travel & Subsistence General Duty,Administration
Land Registry,Land Registry,06/12/2013,Business Development,Travel & Subsistence General Duty,Redfern Travel Ltd,Large,984550,-199.08,Travel & Subsistence General Duty,Administration
Land Registry,Land Registry,06/12/2013,Nottingham Office,Travel & Subsistence General Duty,Redfern Travel Ltd,Large,984550,113.91,Travel & Subsistence General Duty,Administration
Land Registry,Land Registry,06/12/2013,Chief Executives Office,Travel & Subsistence General Duty,Redfern Travel Ltd,Large,984550,134.41,Travel & Subsistence General Duty,Administration
Land Registry,Land Registry,06/12/2013,Internal Solutions Group,Travel & Subsistence General Duty,Redfern Travel Ltd,Large,984550,264.4,Travel & Subsistence General Duty,Administration
Land Registry,Land Registry,06/12/2013,Research & Data Mining,Travel & Subsistence General Duty,Redfern Travel Ltd,Large,984550,182.2,Travel & Subsistence General Duty,Administration
Land Registry,Land Registry,06/12/2013,HR,Travel & Subsistence General Duty,Redfern Travel Ltd,Large,984550,108.55,Travel & Subsistence General Duty,Administration
Land Registry,Land Registry,06/12/2013,Research & Data Mining,Travel & Subsistence General Duty,Redfern Travel Ltd,Large,984550,111.22,Travel & Subsistence General Duty,Administration
Land Registry,Land Registry,06/12/2013,Employee & Management Support Manager,Travel & Subsistence General Duty,Redfern Travel Ltd,Large,984550,92.47,Travel & Subsistence General Duty,Administration
Land Registry,Land Registry,06/12/2013,HR,Travel & Subsistence General Duty,Redfern Travel Ltd,Large,984550,108.55,Travel & Subsistence General Duty,Administration
Land Registry,Land Registry,06/12/2013,Director of Information Systems,Travel & Subsistence General Duty,Redfern Travel Ltd,Large,984550,145.75,Travel & Subsistence General Duty,Administration
Land Registry,Land Registry,06/12/2013,HR,Travel & Subsistence General Duty,Redfern Travel Ltd,Large,984550,76.83,Travel & Subsistence General Duty,Administration
Land Registry,Land Registry,06/12/2013,Internal Audit,Travel & Subsistence General Duty,Redfern Travel Ltd,Large,984550,254.52,Travel & Subsistence General Duty,Administration
Land Registry,Land Registry,06/12/2013,Business Development,Travel & Subsistence General Duty,Redfern Travel Ltd,Large,984550,93.52,Travel & Subsistence General Duty,Administration
Land Registry,Land Registry,06/12/2013,Commercial Director,Travel & Subsistence General Duty,Redfern Travel Ltd,Large,984550,65.62,Travel & Subsistence General Duty,Administration
Land Registry,Land Registry,06/12/2013,Central Operations Group,Travel & Subsistence General Duty,Redfern Travel Ltd,Large,984550,200.5,Travel & Subsistence General Duty,Administration
Land Registry,Land Registry,06/12/2013,HR,Travel & Subsistence General Duty,Redfern Travel Ltd,Large,984550,284.79,Travel & Subsistence General Duty,Administration
Land Registry,Land Registry,06/12/2013,Property Asset Management Group,Travel & Subsistence General Duty,Redfern Travel Ltd,Large,984550,99.49,Travel & Subsistence General Duty,Administration
Land Registry,Land Registry,06/12/2013,Marketing Services Team,Travel & Subsistence General Duty,Redfern Travel Ltd,Large,984550,55.82,Travel & Subsistence General Duty,Administration
Land Registry,Land Registry,06/12/2013,HR,Travel & Subsistence General Duty,Redfern Travel Ltd,Large,984550,159.99,Travel & Subsistence General Duty,Administration
Land Registry,Land Registry,06/12/2013,Business Development,Travel & Subsistence General Duty,Redfern Travel Ltd,Large,984550,108.27,Travel & Subsistence General Duty,Administration
Land Registry,Land Registry,06/12/2013,Central Operations Group,Travel & Subsistence General Duty,Redfern Travel Ltd,Large,984550,375.8,Travel & Subsistence General Duty,Administration
Land Registry,Land Registry,06/12/2013,Marketing Services Team,Travel & Subsistence General Duty,Redfern Travel Ltd,Large,984550,49.62,Travel & Subsistence General Duty,Administration
Land Registry,Land Registry,06/12/2013,Internal Audit,Travel & Subsistence General Duty,Redfern Travel Ltd,Large,984550,69.22,Travel & Subsistence General Duty,Administration
Land Registry,Land Registry,06/12/2013,HR,Travel & Subsistence General Duty,Redfern Travel Ltd,Large,984550,65.95,Travel & Subsistence General Duty,Administration
Land Registry,Land Registry,06/12/2013,International Unit,Travel & Subsistence General Duty,Redfern Travel Ltd,Large,984550,5.41,Travel & Subsistence General Duty,Administration
Land Registry,Land Registry,06/12/2013,Central Facilities Management Team,Travel & Subsistence General Duty,Redfern Travel Ltd,Large,984550,3.12,Travel & Subsistence General Duty,Administration
Land Registry,Land Registry,06/12/2013,HR,Travel & Subsistence General Duty,Redfern Travel Ltd,Large,984550,1.56,Travel & Subsistence General Duty,Administration
Land Registry,Land Registry,06/12/2013,Projects and Programme Centre,Travel & Subsistence General Duty,Redfern Travel Ltd,Large,984550,65.95,Travel & Subsistence General Duty,Administration
Land Registry,Land Registry,06/12/2013,Product Development & Management,Travel & Subsistence General Duty,Redfern Travel Ltd,Large,984550,120.85,Travel & Subsistence General Duty,Administration
Land Registry,Land Registry,06/12/2013,Nottingham Office,Travel & Subsistence General Duty,Redfern Travel Ltd,Large,984550,64.64,Travel & Subsistence General Duty,Administration
Land Registry,Land Registry,06/12/2013,HR,Travel & Subsistence General Duty,Redfern Travel Ltd,Large,984550,161.45,Travel & Subsistence General Duty,Administration
Land Registry,Land Registry,06/12/2013,Product Development & Management,Travel & Subsistence General Duty,Redfern Travel Ltd,Large,984550,70.98,Travel & Subsistence General Duty,Administration
Land Registry,Land Registry,06/12/2013,Internal Solutions Group,Travel & Subsistence General Duty,Redfern Travel Ltd,Large,984550,65.95,Travel & Subsistence General Duty,Administration
Land Registry,Land Registry,06/12/2013,Central Facilities Management Team,Travel & Subsistence General Duty,Redfern Travel Ltd,Large,984550,6,Travel & Subsistence General Duty,Administration
Land Registry,Land Registry,06/12/2013,HR,Travel & Subsistence General Duty,Redfern Travel Ltd,Large,984550,64.78,Travel & Subsistence General Duty,Administration
Land Registry,Land Registry,06/12/2013,Central Operations Group,Travel & Subsistence General Duty,Redfern Travel Ltd,Large,984550,239.99,Travel & Subsistence General Duty,Administration
Land Registry,Land Registry,06/12/2013,IS Service Delivery,Travel & Subsistence General Duty,Redfern Travel Ltd,Large,984550,65.95,Travel & Subsistence General Duty,Administration
Land Registry,Land Registry,06/12/2013,Central Facilities Management Team,Travel & Subsistence General Duty,Redfern Travel Ltd,Large,984550,70.98,Travel & Subsistence General Duty,Administration
Land Registry,Land Registry,06/12/2013,Internal Solutions Group,Travel & Subsistence General Duty,Redfern Travel Ltd,Large,984550,80.25,Travel & Subsistence General Duty,Administration
Land Registry,Land Registry,06/12/2013,IS Service Delivery,Travel & Subsistence General Duty,Redfern Travel Ltd,Large,984550,65.95,Travel & Subsistence General Duty,Administration
Land Registry,Land Registry,06/12/2013,Chief Executives Office,Travel & Subsistence General Duty,Redfern Travel Ltd,Large,984550,42.59,Travel & Subsistence General Duty,Administration
Land Registry,Land Registry,06/12/2013,Strategy Team,Travel & Subsistence General Duty,Redfern Travel Ltd,Large,984550,137.33,Travel & Subsistence General Duty,Administration
Land Registry,Land Registry,06/12/2013,Central Operations Group,Travel & Subsistence General Duty,Redfern Travel Ltd,Large,984550,19.07,Travel & Subsistence General Duty,Administration
Land Registry,Land Registry,06/12/2013,Research & Data Mining,Travel & Subsistence General Duty,Redfern Travel Ltd,Large,984550,38.48,Travel & Subsistence General Duty,Administration
Land Registry,Land Registry,06/12/2013,Chief Executives Office,Travel & Subsistence General Duty,Redfern Travel Ltd,Large,984550,29.17,Travel & Subsistence General Duty,Administration
Land Registry,Land Registry,06/12/2013,HR,Travel & Subsistence General Duty,Redfern Travel Ltd,Large,984550,81.23,Travel & Subsistence General Duty,Administration
Land Registry,Land Registry,06/12/2013,International Unit,Travel & Subsistence General Duty,Redfern Travel Ltd,Large,984550,28.55,Travel & Subsistence General Duty,Administration
Land Registry,Land Registry,06/12/2013,HR,Travel & Subsistence General Duty,Redfern Travel Ltd,Large,984550,330.06,Travel & Subsistence General Duty,Administration
Land Registry,Land Registry,06/12/2013,Property Asset Management Group,Travel & Subsistence General Duty,Redfern Travel Ltd,Large,984550,69.72,Travel & Subsistence General Duty,Administration
Land Registry,Land Registry,06/12/2013,International Unit,Travel & Subsistence General Duty,Redfern Travel Ltd,Large,984550,43.87,Travel & Subsistence General Duty,Administration
Land Registry,Land Registry,06/12/2013,HR,Travel & Subsistence General Duty,Redfern Travel Ltd,Large,984550,239.63,Travel & Subsistence General Duty,Administration
Land Registry,Land Registry,06/12/2013,Nottingham Office,Travel & Subsistence General Duty,Redfern Travel Ltd,Large,984550,64.64,Travel & Subsistence General Duty,Administration
Land Registry,Land Registry,06/12/2013,International Unit,Travel & Subsistence General Duty,Redfern Travel Ltd,Large,984550,22.59,Travel & Subsistence General Duty,Administration
Land Registry,Land Registry,06/12/2013,HR,Travel & Subsistence General Duty,Redfern Travel Ltd,Large,984550,80.13,Travel & Subsistence General Duty,Administration
Land Registry,Land Registry,06/12/2013,Research & Data Mining,Travel & Subsistence General Duty,Redfern Travel Ltd,Large,984550,20.92,Travel & Subsistence General Duty,Administration
Land Registry,Land Registry,06/12/2013,Central Operations Group,Travel & Subsistence General Duty,Redfern Travel Ltd,Large,984550,80.44,Travel & Subsistence General Duty,Administration
Land Registry,Land Registry,06/12/2013,HR,Travel & Subsistence General Duty,Redfern Travel Ltd,Large,984550,65.95,Travel & Subsistence General Duty,Administration
Land Registry,Land Registry,06/12/2013,Central Operations Group,Travel & Subsistence General Duty,Redfern Travel Ltd,Large,984550,19.07,Travel & Subsistence General Duty,Administration
Land Registry,Land Registry,06/12/2013,Business Development,Travel & Subsistence General Duty,Redfern Travel Ltd,Large,984550,66.61,Travel & Subsistence General Duty,Administration
Land Registry,Land Registry,06/12/2013,HR,Travel & Subsistence General Duty,Redfern Travel Ltd,Large,984550,64.78,Travel & Subsistence General Duty,Administration
Land Registry,Land Registry,06/12/2013,IS Service Delivery,Travel & Subsistence General Duty,Redfern Travel Ltd,Large,984550,65.95,Travel & Subsistence General Duty,Administration
Land Registry,Land Registry,06/12/2013,HR,Travel & Subsistence General Duty,Redfern Travel Ltd,Large,984550,99.35,Travel & Subsistence General Duty,Administration
Land Registry,Land Registry,06/12/2013,Guarantee & Litigation,Travel & Subsistence General Duty,Redfern Travel Ltd,Large,984550,80.03,Travel & Subsistence General Duty,Administration
Land Registry,Land Registry,06/12/2013,IS Service Delivery,Travel & Subsistence General Duty,Redfern Travel Ltd,Large,984550,65.95,Travel & Subsistence General Duty,Administration
Land Registry,Land Registry,06/12/2013,Central Operations Group,Travel & Subsistence General Duty,Redfern Travel Ltd,Large,984550,366.39,Travel & Subsistence General Duty,Administration
Land Registry,Land Registry,06/12/2013,Learning and Development,Travel & Subsistence General Duty,Redfern Travel Ltd,Large,984550,160.51,Travel & Subsistence General Duty,Administration
Land Registry,Land Registry,06/12/2013,Registration Legal Services Group,Travel & Subsistence General Duty,Redfern Travel Ltd,Large,984550,64.36,Travel & Subsistence General Duty,Administration
Land Registry,Land Registry,06/12/2013,Central Operations Group,Travel & Subsistence General Duty,Redfern Travel Ltd,Large,984550,274.08,Travel & Subsistence General Duty,Administration
Land Registry,Land Registry,06/12/2013,Nottingham Office,Travel & Subsistence General Duty,Redfern Travel Ltd,Large,984550,77.74,Travel & Subsistence General Duty,Administration
Land Registry,Land Registry,06/12/2013,Internal Solutions Group,Travel & Subsistence General Duty,Redfern Travel Ltd,Large,984550,80.25,Travel & Subsistence General Duty,Administration
Land Registry,Land Registry,06/12/2013,IS Service Delivery,Travel & Subsistence General Duty,Redfern Travel Ltd,Large,984550,65.95,Travel & Subsistence General Duty,Administration
Land Registry,Land Registry,06/12/2013,Corp Procurement,Travel & Subsistence General Duty,Redfern Travel Ltd,Large,984550,140.04,Travel & Subsistence General Duty,Administration
Land Registry,Land Registry,06/12/2013,Central Operations Group,Travel & Subsistence General Duty,Redfern Travel Ltd,Large,984550,105.81,Travel & Subsistence General Duty,Administration
Land Registry,Land Registry,06/12/2013,HR,Travel & Subsistence General Duty,Redfern Travel Ltd,Large,984550,58.31,Travel & Subsistence General Duty,Administration
Land Registry,Land Registry,06/12/2013,Independent Complaints Reviewer,Travel & Subsistence General Duty,Redfern Travel Ltd,Large,984550,99.95,Travel & Subsistence General Duty,Administration
Land Registry,Land Registry,06/12/2013,HR,Travel & Subsistence General Duty,Redfern Travel Ltd,Large,984550,202.96,Travel & Subsistence General Duty,Administration
Land Registry,Land Registry,06/12/2013,Chief Executives Office,Travel & Subsistence General Duty,Redfern Travel Ltd,Large,984550,61.22,Travel & Subsistence General Duty,Administration
Land Registry,Land Registry,06/12/2013,Central Operations Group,Travel & Subsistence General Duty,Redfern Travel Ltd,Large,984550,75.86,Travel & Subsistence General Duty,Administration
Land Registry,Land Registry,06/12/2013,Central Facilities Management Team,Travel & Subsistence General Duty,Redfern Travel Ltd,Large,984550,236.69,Travel & Subsistence General Duty,Administration
Land Registry,Land Registry,06/12/2013,IS Service Delivery,Travel & Subsistence General Duty,Redfern Travel Ltd,Large,984550,65.95,Travel & Subsistence General Duty,Administration
Land Registry,Land Registry,06/12/2013,HR,Travel & Subsistence General Duty,Redfern Travel Ltd,Large,984550,26.48,Travel & Subsistence General Duty,Administration
Land Registry,Land Registry,06/12/2013,Research & Data Mining,Travel & Subsistence General Duty,Redfern Travel Ltd,Large,984550,157.04,Travel & Subsistence General Duty,Administration
Land Registry,Land Registry,06/12/2013,HR,Travel & Subsistence General Duty,Redfern Travel Ltd,Large,984550,267.95,Travel & Subsistence General Duty,Administration
Land Registry,Land Registry,06/12/2013,Customer Services,Travel & Subsistence General Duty,Redfern Travel Ltd,Large,984550,34.3,Travel & Subsistence General Duty,Administration
Land Registry,Land Registry,06/12/2013,Commercial & Customer Strategy & Performance,Travel & Subsistence General Duty,Redfern Travel Ltd,Large,984550,137.83,Travel & Subsistence General Duty,Administration
Land Registry,Land Registry,06/12/2013,Learning and Development,Travel & Subsistence General Duty,Redfern Travel Ltd,Large,984550,61.64,Travel & Subsistence General Duty,Administration
Land Registry,Land Registry,06/12/2013,Internal Audit,Travel & Subsistence General Duty,Redfern Travel Ltd,Large,984550,65.95,Travel & Subsistence General Duty,Administration
Land Registry,Land Registry,06/12/2013,Commercial & Customer Strategy & Performance,Travel & Subsistence General Duty,Redfern Travel Ltd,Large,984550,113.97,Travel & Subsistence General Duty,Administration
Land Registry,Land Registry,06/12/2013,Internal Solutions Group,Travel & Subsistence General Duty,Redfern Travel Ltd,Large,984550,122.28,Travel & Subsistence General Duty,Administration
Land Registry,Land Registry,06/12/2013,Governance & Policy,Travel & Subsistence General Duty,Redfern Travel Ltd,Large,984550,88.75,Travel & Subsistence General Duty,Administration
Land Registry,Land Registry,06/12/2013,Chief Executives Office,Travel & Subsistence General Duty,Redfern Travel Ltd,Large,984550,84.31,Travel & Subsistence General Duty,Administration
Land Registry,Land Registry,06/12/2013,Internal Audit,Travel & Subsistence General Duty,Redfern Travel Ltd,Large,984550,91.1,Travel & Subsistence General Duty,Administration
Land Registry,Land Registry,06/12/2013,HR,Travel & Subsistence General Duty,Redfern Travel Ltd,Large,984550,95.87,Travel & Subsistence General Duty,Administration
Land Registry,Land Registry,06/12/2013,Internal Solutions Group,Travel & Subsistence General Duty,Redfern Travel Ltd,Large,984550,71.94,Travel & Subsistence General Duty,Administration
Land Registry,Land Registry,06/12/2013,Central Operations Group,Travel & Subsistence General Duty,Redfern Travel Ltd,Large,984550,85.91,Travel & Subsistence General Duty,Administration
Land Registry,Land Registry,06/12/2013,HR,Travel & Subsistence General Duty,Redfern Travel Ltd,Large,984550,193.78,Travel & Subsistence General Duty,Administration
Land Registry,Land Registry,06/12/2013,IS Service Delivery,Travel & Subsistence General Duty,Redfern Travel Ltd,Large,984550,129.29,Travel & Subsistence General Duty,Administration
Land Registry,Land Registry,06/12/2013,Internal Solutions Group,Travel & Subsistence General Duty,Redfern Travel Ltd,Large,984550,71.82,Travel & Subsistence General Duty,Administration
Land Registry,Land Registry,06/12/2013,HR,Travel & Subsistence General Duty,Redfern Travel Ltd,Large,984550,83.66,Travel & Subsistence General Duty,Administration
Land Registry,Land Registry,06/12/2013,Research & Data Mining,Travel & Subsistence General Duty,Redfern Travel Ltd,Large,984550,157.04,Travel & Subsistence General Duty,Administration
Land Registry,Land Registry,06/12/2013,Central Operations Group,Travel & Subsistence General Duty,Redfern Travel Ltd,Large,984550,87.07,Travel & Subsistence General Duty,Administration
Land Registry,Land Registry,06/12/2013,Internal Solutions Group,Travel & Subsistence General Duty,Redfern Travel Ltd,Large,984550,71.82,Travel & Subsistence General Duty,Administration
Land Registry,Land Registry,06/12/2013,HR,Travel & Subsistence General Duty,Redfern Travel Ltd,Large,984550,72.93,Travel & Subsistence General Duty,Administration
Land Registry,Land Registry,06/12/2013,Internal Solutions Group,Travel & Subsistence General Duty,Redfern Travel Ltd,Large,984550,72.99,Travel & Subsistence General Duty,Administration
Land Registry,Land Registry,06/12/2013,HR,Travel & Subsistence General Duty,Redfern Travel Ltd,Large,984550,237.02,Travel & Subsistence General Duty,Administration
Land Registry,Land Registry,06/12/2013,Central Operations Group,Travel & Subsistence General Duty,Redfern Travel Ltd,Large,984550,85.91,Travel & Subsistence General Duty,Administration
Land Registry,Land Registry,06/12/2013,Director of Information Systems,Travel & Subsistence General Duty,Redfern Travel Ltd,Large,984550,122.28,Travel & Subsistence General Duty,Administration
Land Registry,Land Registry,06/12/2013,Director of Legal Services,Travel & Subsistence General Duty,Redfern Travel Ltd,Large,984550,158.5,Travel & Subsistence General Duty,Administration
Land Registry,Land Registry,06/12/2013,Business Development,Travel & Subsistence General Duty,Redfern Travel Ltd,Large,984550,210.18,Travel & Subsistence General Duty,Administration
Land Registry,Land Registry,06/12/2013,Central Operations Group,Travel & Subsistence General Duty,Redfern Travel Ltd,Large,984550,6.68,Travel & Subsistence General Duty,Administration
Land Registry,Land Registry,06/12/2013,Nottingham Office,Travel & Subsistence General Duty,Redfern Travel Ltd,Large,984550,65.57,Travel & Subsistence General Duty,Administration
Land Registry,Land Registry,06/12/2013,IS Service Delivery,Travel & Subsistence General Duty,Redfern Travel Ltd,Large,984550,130.33,Travel & Subsistence General Duty,Administration
Land Registry,Land Registry,06/12/2013,HR,Travel & Subsistence General Duty,Redfern Travel Ltd,Large,984550,152.46,Travel & Subsistence General Duty,Administration
Land Registry,Land Registry,06/12/2013,Central Operations Group,Travel & Subsistence General Duty,Redfern Travel Ltd,Large,984550,17.91,Travel & Subsistence General Duty,Administration
Land Registry,Land Registry,06/12/2013,Product Development & Management,Travel & Subsistence General Duty,Redfern Travel Ltd,Large,984550,70.5,Travel & Subsistence General Duty,Administration
Land Registry,Land Registry,06/12/2013,IS Service Delivery,Travel & Subsistence General Duty,Redfern Travel Ltd,Large,984550,196.08,Travel & Subsistence General Duty,Administration
Land Registry,Land Registry,06/12/2013,Internal Solutions Group,Travel & Subsistence General Duty,Redfern Travel Ltd,Large,984550,71.82,Travel & Subsistence General Duty,Administration
Land Registry,Land Registry,06/12/2013,Business Development,Travel & Subsistence General Duty,Redfern Travel Ltd,Large,984550,130.21,Travel & Subsistence General Duty,Administration
Land Registry,Land Registry,06/12/2013,Fylde Office,Travel & Subsistence General Duty,Redfern Travel Ltd,Large,984550,73.99,Travel & Subsistence General Duty,Administration
Land Registry,Land Registry,06/12/2013,Technical Assurance Group,Travel & Subsistence General Duty,Redfern Travel Ltd,Large,984550,28.93,Travel & Subsistence General Duty,Administration
Land Registry,Land Registry,06/12/2013,IS Service Delivery,Travel & Subsistence General Duty,Redfern Travel Ltd,Large,984550,129.29,Travel & Subsistence General Duty,Administration
Land Registry,Land Registry,06/12/2013,Nottingham Office,Travel & Subsistence General Duty,Redfern Travel Ltd,Large,984550,65.57,Travel & Subsistence General Duty,Administration
Land Registry,Land Registry,06/12/2013,IS Service Delivery,Travel & Subsistence General Duty,Redfern Travel Ltd,Large,984550,196.08,Travel & Subsistence General Duty,Administration
Land Registry,Land Registry,06/12/2013,Internal Solutions Group,Travel & Subsistence General Duty,Redfern Travel Ltd,Large,984550,123.01,Travel & Subsistence General Duty,Administration
Land Registry,Land Registry,06/12/2013,Central Operations Group,Travel & Subsistence General Duty,Redfern Travel Ltd,Large,984550,85.91,Travel & Subsistence General Duty,Administration
Land Registry,Land Registry,06/12/2013,Director of Information Systems,Travel & Subsistence General Duty,Redfern Travel Ltd,Large,984550,150.78,Travel & Subsistence General Duty,Administration
Land Registry,Land Registry,06/12/2013,Finance Group,Travel & Subsistence General Duty,Redfern Travel Ltd,Large,984550,114.61,Travel & Subsistence General Duty,Administration
Land Registry,Land Registry,06/12/2013,Durham Office,Travel & Subsistence General Duty,Redfern Travel Ltd,Large,984550,107.19,Travel & Subsistence General Duty,Administration
Land Registry,Land Registry,06/12/2013,Director of Information Systems,Travel & Subsistence General Duty,Redfern Travel Ltd,Large,984550,140.39,Travel & Subsistence General Duty,Administration
Land Registry,Land Registry,06/12/2013,IS Service Delivery,Travel & Subsistence General Duty,Redfern Travel Ltd,Large,984550,129.29,Travel & Subsistence General Duty,Administration
Land Registry,Land Registry,06/12/2013,Stakeholder Management,Travel & Subsistence General Duty,Redfern Travel Ltd,Large,984550,49.62,Travel & Subsistence General Duty,Administration
Land Registry,Land Registry,06/12/2013,Central Facilities Management Team,Travel & Subsistence General Duty,Redfern Travel Ltd,Large,984550,127.31,Travel & Subsistence General Duty,Administration
Land Registry,Land Registry,06/12/2013,Central Operations Group,Travel & Subsistence General Duty,Redfern Travel Ltd,Large,984550,89.08,Travel & Subsistence General Duty,Administration
Land Registry,Land Registry,06/12/2013,Customer Services,Travel & Subsistence General Duty,Redfern Travel Ltd,Large,984550,82.04,Travel & Subsistence General Duty,Administration
Land Registry,Land Registry,06/12/2013,Technical Assurance Group,Travel & Subsistence General Duty,Redfern Travel Ltd,Large,984550,33.41,Travel & Subsistence General Duty,Administration
Land Registry,Land Registry,06/12/2013,Product Development & Management,Travel & Subsistence General Duty,Redfern Travel Ltd,Large,984550,116.56,Travel & Subsistence General Duty,Administration
Land Registry,Land Registry,06/12/2013,Learning and Development,Travel & Subsistence General Duty,Redfern Travel Ltd,Large,984550,123.88,Travel & Subsistence General Duty,Administration
Land Registry,Land Registry,06/12/2013,Technical Assurance Group,Travel & Subsistence General Duty,Redfern Travel Ltd,Large,984550,33.41,Travel & Subsistence General Duty,Administration
Land Registry,Land Registry,06/12/2013,HR,Travel & Subsistence General Duty,Redfern Travel Ltd,Large,984550,16.94,Travel & Subsistence General Duty,Administration
Land Registry,Land Registry,06/12/2013,Internal Solutions Group,Travel & Subsistence General Duty,Redfern Travel Ltd,Large,984550,143.88,Travel & Subsistence General Duty,Administration
Land Registry,Land Registry,06/12/2013,International Unit,Travel & Subsistence General Duty,Redfern Travel Ltd,Large,984550,14.05,Travel & Subsistence General Duty,Administration
Land Registry,Land Registry,06/12/2013,IS Service Delivery,Travel & Subsistence General Duty,Redfern Travel Ltd,Large,984550,196.08,Travel & Subsistence General Duty,Administration
Land Registry,Land Registry,06/12/2013,Commercial & Customer Strategy & Performance,Travel & Subsistence General Duty,Redfern Travel Ltd,Large,984550,157.49,Travel & Subsistence General Duty,Administration
Land Registry,Land Registry,06/12/2013,Internal Solutions Group,Travel & Subsistence General Duty,Redfern Travel Ltd,Large,984550,314.82,Travel & Subsistence General Duty,Administration
Land Registry,Land Registry,06/12/2013,Central Operations Group,Travel & Subsistence General Duty,Redfern Travel Ltd,Large,984550,48.89,Travel & Subsistence General Duty,Administration
Land Registry,Land Registry,06/12/2013,Product Development & Management,Travel & Subsistence General Duty,Redfern Travel Ltd,Large,984550,100.15,Travel & Subsistence General Duty,Administration
Land Registry,Land Registry,06/12/2013,HR,Travel & Subsistence General Duty,Redfern Travel Ltd,Large,984550,86.32,Travel & Subsistence General Duty,Administration
Land Registry,Land Registry,06/12/2013,Central Facilities Management Team,Travel & Subsistence General Duty,Redfern Travel Ltd,Large,984550,366.91,Travel & Subsistence General Duty,Administration
Land Registry,Land Registry,06/12/2013,Commercial Director,Travel & Subsistence General Duty,Redfern Travel Ltd,Large,984550,70.98,Travel & Subsistence General Duty,Administration
Land Registry,Land Registry,06/12/2013,Governance & Policy,Travel & Subsistence General Duty,Redfern Travel Ltd,Large,984550,70.98,Travel & Subsistence General Duty,Administration
Land Registry,Land Registry,06/12/2013,Product Development & Management,Travel & Subsistence General Duty,Redfern Travel Ltd,Large,984550,162.71,Travel & Subsistence General Duty,Administration
Land Registry,Land Registry,06/12/2013,Customer Services,Travel & Subsistence General Duty,Redfern Travel Ltd,Large,984550,66.95,Travel & Subsistence General Duty,Administration
Land Registry,Land Registry,06/12/2013,Product Development & Management,Travel & Subsistence General Duty,Redfern Travel Ltd,Large,984550,236.51,Travel & Subsistence General Duty,Administration
Land Registry,Land Registry,06/12/2013,Peterborough Office,Travel & Subsistence General Duty,Redfern Travel Ltd,Large,984550,48.73,Travel & Subsistence General Duty,Administration
Land Registry,Land Registry,06/12/2013,Central Operations Group,Travel & Subsistence General Duty,Redfern Travel Ltd,Large,984550,85.91,Travel & Subsistence General Duty,Administration
Land Registry,Land Registry,06/12/2013,Internal Solutions Group,Travel & Subsistence General Duty,Redfern Travel Ltd,Large,984550,101.16,Travel & Subsistence General Duty,Administration
Land Registry,Land Registry,06/12/2013,International Unit,Travel & Subsistence General Duty,Redfern Travel Ltd,Large,984550,221.01,Travel & Subsistence General Duty,Administration
Land Registry,Land Registry,06/12/2013,Commercial Director,Travel & Subsistence General Duty,Redfern Travel Ltd,Large,984550,100.25,Travel & Subsistence General Duty,Administration
Land Registry,Land Registry,06/12/2013,Central Operations Group,Travel & Subsistence General Duty,Redfern Travel Ltd,Large,984550,100.25,Travel & Subsistence General Duty,Administration
Land Registry,Land Registry,06/12/2013,Guarantee & Litigation,Travel & Subsistence General Duty,Redfern Travel Ltd,Large,984550,100.25,Travel & Subsistence General Duty,Administration
Land Registry,Land Registry,06/12/2013,Central Operations Group,Travel & Subsistence General Duty,Redfern Travel Ltd,Large,984550,79.35,Travel & Subsistence General Duty,Administration
Land Registry,Land Registry,06/12/2013,Peterborough Office,Travel & Subsistence General Duty,Redfern Travel Ltd,Large,984550,154.61,Travel & Subsistence General Duty,Administration
Land Registry,Land Registry,06/12/2013,Survey & Mapping Services,Travel & Subsistence General Duty,Redfern Travel Ltd,Large,984550,14.4,Travel & Subsistence General Duty,Administration
Land Registry,Land Registry,06/12/2013,Peterborough Office,Travel & Subsistence General Duty,Redfern Travel Ltd,Large,984550,154.61,Travel & Subsistence General Duty,Administration
Land Registry,Land Registry,06/12/2013,IS Service Delivery,Travel & Subsistence General Duty,Redfern Travel Ltd,Large,984550,249.57,Travel & Subsistence General Duty,Administration
Land Registry,Land Registry,06/12/2013,Commercial Director,Travel & Subsistence General Duty,Redfern Travel Ltd,Large,984550,99.77,Travel & Subsistence General Duty,Administration
Land Registry,Land Registry,06/12/2013,Finance Group,Travel & Subsistence General Duty,Redfern Travel Ltd,Large,984550,114.61,Travel & Subsistence General Duty,Administration
Land Registry,Land Registry,06/12/2013,Internal Solutions Group,Travel & Subsistence General Duty,Redfern Travel Ltd,Large,984550,70.98,Travel & Subsistence General Duty,Administration
Land Registry,Land Registry,06/12/2013,HR,Travel & Subsistence General Duty,Redfern Travel Ltd,Large,984550,125.44,Travel & Subsistence General Duty,Administration
Land Registry,Land Registry,06/12/2013,Survey & Mapping Services,Travel & Subsistence General Duty,Redfern Travel Ltd,Large,984550,14.4,Travel & Subsistence General Duty,Administration
Land Registry,Land Registry,06/12/2013,Hull Office,Travel & Subsistence General Duty,Redfern Travel Ltd,Large,984550,80.44,Travel & Subsistence General Duty,Administration
Land Registry,Land Registry,06/12/2013,HR,Travel & Subsistence General Duty,Redfern Travel Ltd,Large,984550,125.44,Travel & Subsistence General Duty,Administration
Land Registry,Land Registry,06/12/2013,Chief Executives Office,Travel & Subsistence General Duty,Redfern Travel Ltd,Large,984550,307.39,Travel & Subsistence General Duty,Administration
Land Registry,Land Registry,06/12/2013,Central Facilities Management Team,Travel & Subsistence General Duty,Redfern Travel Ltd,Large,984550,252.02,Travel & Subsistence General Duty,Administration
Land Registry,Land Registry,06/12/2013,Nottingham Office,Travel & Subsistence General Duty,Redfern Travel Ltd,Large,984550,277.43,Travel & Subsistence General Duty,Administration
Land Registry,Land Registry,06/12/2013,Property Asset Management Group,Travel & Subsistence General Duty,Redfern Travel Ltd,Large,984550,143.45,Travel & Subsistence General Duty,Administration
Land Registry,Land Registry,06/12/2013,HR,Travel & Subsistence General Duty,Redfern Travel Ltd,Large,984550,159,Travel & Subsistence General Duty,Administration
Land Registry,Land Registry,06/12/2013,Plymouth Office,Travel & Subsistence General Duty,Redfern Travel Ltd,Large,984550,65.95,Travel & Subsistence General Duty,Administration
Land Registry,Land Registry,06/12/2013,Central Operations Group,Travel & Subsistence General Duty,Redfern Travel Ltd,Large,984550,198.33,Travel & Subsistence General Duty,Administration
Land Registry,Land Registry,06/12/2013,Durham Office,Travel & Subsistence General Duty,Redfern Travel Ltd,Large,984550,86.72,Travel & Subsistence General Duty,Administration
Land Registry,Land Registry,06/12/2013,Commercial Director,Travel & Subsistence General Duty,Redfern Travel Ltd,Large,984550,100.25,Travel & Subsistence General Duty,Administration
Land Registry,Land Registry,06/12/2013,Peterborough Office,Travel & Subsistence General Duty,Redfern Travel Ltd,Large,984550,60.93,Travel & Subsistence General Duty,Administration
Land Registry,Land Registry,06/12/2013,Property Asset Management Group,Travel & Subsistence General Duty,Redfern Travel Ltd,Large,984550,71.98,Travel & Subsistence General Duty,Administration
Land Registry,Land Registry,06/12/2013,HR,Travel & Subsistence General Duty,Redfern Travel Ltd,Large,984550,136.73,Travel & Subsistence General Duty,Administration
Land Registry,Land Registry,06/12/2013,Central Facilities Management Team,Travel & Subsistence General Duty,Redfern Travel Ltd,Large,984550,252.02,Travel & Subsistence General Duty,Administration
Land Registry,Land Registry,06/12/2013,International Unit,Travel & Subsistence General Duty,Redfern Travel Ltd,Large,984550,182.38,Travel & Subsistence General Duty,Administration
Land Registry,Land Registry,06/12/2013,Central Operations Group,Travel & Subsistence General Duty,Redfern Travel Ltd,Large,984550,52.55,Travel & Subsistence General Duty,Administration
Land Registry,Land Registry,06/12/2013,Product Development & Management,Travel & Subsistence General Duty,Redfern Travel Ltd,Large,984550,127.1,Travel & Subsistence General Duty,Administration
Land Registry,Land Registry,06/12/2013,Internal Solutions Group,Travel & Subsistence General Duty,Redfern Travel Ltd,Large,984550,52.52,Travel & Subsistence General Duty,Administration
Land Registry,Land Registry,06/12/2013,Nottingham Office,Travel & Subsistence General Duty,Redfern Travel Ltd,Large,984550,277.43,Travel & Subsistence General Duty,Administration
Land Registry,Land Registry,06/12/2013,Corp Procurement,Travel & Subsistence General Duty,Redfern Travel Ltd,Large,984550,194.71,Travel & Subsistence General Duty,Administration
Land Registry,Land Registry,06/12/2013,Peterborough Office,Travel & Subsistence General Duty,Redfern Travel Ltd,Large,984550,37.51,Travel & Subsistence General Duty,Administration
Land Registry,Land Registry,06/12/2013,IS Service Delivery,Travel & Subsistence General Duty,Redfern Travel Ltd,Large,984550,103.19,Travel & Subsistence General Duty,Administration
Land Registry,Land Registry,06/12/2013,Peterborough Office,Travel & Subsistence General Duty,Redfern Travel Ltd,Large,984550,5.99,Travel & Subsistence General Duty,Administration
Land Registry,Land Registry,06/12/2013,Property Asset Management Group,Travel & Subsistence General Duty,Redfern Travel Ltd,Large,984550,48.16,Travel & Subsistence General Duty,Administration
Land Registry,Land Registry,06/12/2013,Chief Executives Office,Travel & Subsistence General Duty,Redfern Travel Ltd,Large,984550,378.81,Travel & Subsistence General Duty,Administration
Land Registry,Land Registry,06/12/2013,International Unit,Travel & Subsistence General Duty,Redfern Travel Ltd,Large,984550,287.27,Travel & Subsistence General Duty,Administration
Land Registry,Land Registry,06/12/2013,Strategy Team,Travel & Subsistence General Duty,Redfern Travel Ltd,Large,984550,56.47,Travel & Subsistence General Duty,Administration
Land Registry,Land Registry,06/12/2013,Chief Executives Office,Travel & Subsistence General Duty,Redfern Travel Ltd,Large,984550,59.96,Travel & Subsistence General Duty,Administration
Land Registry,Land Registry,06/12/2013,Hull Office,Travel & Subsistence General Duty,Redfern Travel Ltd,Large,984550,78.98,Travel & Subsistence General Duty,Administration
Land Registry,Land Registry,06/12/2013,HR,Travel & Subsistence General Duty,Redfern Travel Ltd,Large,984550,28.55,Travel & Subsistence General Duty,Administration
Land Registry,Land Registry,06/12/2013,Corporate Legal Services,Travel & Subsistence General Duty,Redfern Travel Ltd,Large,984550,50,Travel & Subsistence General Duty,Administration
Land Registry,Land Registry,06/12/2013,HR,Travel & Subsistence General Duty,Redfern Travel Ltd,Large,984550,162.22,Travel & Subsistence General Duty,Administration
Land Registry,Land Registry,06/12/2013,Internal Solutions Group,Travel & Subsistence General Duty,Redfern Travel Ltd,Large,984550,35.37,Travel & Subsistence General Duty,Administration
Land Registry,Land Registry,06/12/2013,Commercial & Customer Strategy & Performance,Travel & Subsistence General Duty,Redfern Travel Ltd,Large,984550,325.42,Travel & Subsistence General Duty,Administration
Land Registry,Land Registry,06/12/2013,Central Operations Group,Travel & Subsistence General Duty,Redfern Travel Ltd,Large,984550,16.94,Travel & Subsistence General Duty,Administration
Land Registry,Land Registry,06/12/2013,Internal Solutions Group,Travel & Subsistence General Duty,Redfern Travel Ltd,Large,984550,1.56,Travel & Subsistence General Duty,Administration
Land Registry,Land Registry,06/12/2013,Corporate Legal Services,Travel & Subsistence General Duty,Redfern Travel Ltd,Large,984550,94.44,Travel & Subsistence General Duty,Administration
Land Registry,Land Registry,06/12/2013,Learning and Development,Travel & Subsistence General Duty,Redfern Travel Ltd,Large,984550,70.79,Travel & Subsistence General Duty,Administration
Land Registry,Land Registry,06/12/2013,Central Facilities Management Team,Travel & Subsistence General Duty,Redfern Travel Ltd,Large,984550,318.02,Travel & Subsistence General Duty,Administration
Land Registry,Land Registry,06/12/2013,Leicester Office,Travel & Subsistence General Duty,Redfern Travel Ltd,Large,984550,156.07,Travel & Subsistence General Duty,Administration
Land Registry,Land Registry,06/12/2013,HR,Travel & Subsistence General Duty,Redfern Travel Ltd,Large,984550,1.56,Travel & Subsistence General Duty,Administration
Land Registry,Land Registry,06/12/2013,Corporate Legal Services,Travel & Subsistence General Duty,Redfern Travel Ltd,Large,984550,39.75,Travel & Subsistence General Duty,Administration
Land Registry,Land Registry,06/12/2013,Central Facilities Management Team,Travel & Subsistence General Duty,Redfern Travel Ltd,Large,984550,112.66,Travel & Subsistence General Duty,Administration
Land Registry,Land Registry,06/12/2013,Coventry Office,Travel & Subsistence General Duty,Redfern Travel Ltd,Large,984550,149.44,Travel & Subsistence General Duty,Administration
Land Registry,Land Registry,06/12/2013,Stakeholder Management,Travel & Subsistence General Duty,Redfern Travel Ltd,Large,984550,13.52,Travel & Subsistence General Duty,Administration
Land Registry,Land Registry,06/12/2013,HR,Travel & Subsistence General Duty,Redfern Travel Ltd,Large,984550,4.68,Travel & Subsistence General Duty,Administration
Land Registry,Land Registry,06/12/2013,Gloucester Office,Travel & Subsistence General Duty,Redfern Travel Ltd,Large,984550,1.56,Travel & Subsistence General Duty,Administration
Land Registry,Land Registry,06/12/2013,Durham Office,Travel & Subsistence General Duty,Redfern Travel Ltd,Large,984550,13.62,Travel & Subsistence General Duty,Administration
Land Registry,Land Registry,06/12/2013,Peterborough Office,Travel & Subsistence General Duty,Redfern Travel Ltd,Large,984550,154.61,Travel & Subsistence General Duty,Administration
Land Registry,Land Registry,06/12/2013,Gloucester Office,Travel & Subsistence General Duty,Redfern Travel Ltd,Large,984550,59.77,Travel & Subsistence General Duty,Administration
Land Registry,Land Registry,06/12/2013,HR,Travel & Subsistence General Duty,Redfern Travel Ltd,Large,984550,94.11,Travel & Subsistence General Duty,Administration
Land Registry,Land Registry,06/12/2013,Learning and Development,Travel & Subsistence General Duty,Redfern Travel Ltd,Large,984550,752.26,Travel & Subsistence General Duty,Administration
Land Registry,Land Registry,06/12/2013,Leicester Office,Travel & Subsistence General Duty,Redfern Travel Ltd,Large,984550,66.59,Travel & Subsistence General Duty,Administration
Land Registry,Land Registry,06/12/2013,Central Operations Group,Travel & Subsistence General Duty,Redfern Travel Ltd,Large,984550,154.61,Travel & Subsistence General Duty,Administration
Land Registry,Land Registry,06/12/2013,HR,Travel & Subsistence General Duty,Redfern Travel Ltd,Large,984550,109.72,Travel & Subsistence General Duty,Administration
Land Registry,Land Registry,06/12/2013,Birkenhead Office,Travel & Subsistence General Duty,Redfern Travel Ltd,Large,984550,27.12,Travel & Subsistence General Duty,Administration
Land Registry,Land Registry,06/12/2013,Research & Data Mining,Travel & Subsistence General Duty,Redfern Travel Ltd,Large,984550,21.7,Travel & Subsistence General Duty,Administration
Land Registry,Land Registry,06/12/2013,HR,Travel & Subsistence General Duty,Redfern Travel Ltd,Large,984550,527.39,Travel & Subsistence General Duty,Administration
Land Registry,Land Registry,06/12/2013,Central Operations Group,Travel & Subsistence General Duty,Redfern Travel Ltd,Large,984550,79.97,Travel & Subsistence General Duty,Administration
Land Registry,Land Registry,06/12/2013,Business Continuity,Travel & Subsistence General Duty,Redfern Travel Ltd,Large,984550,170.09,Travel & Subsistence General Duty,Administration
Land Registry,Land Registry,06/12/2013,HR,Travel & Subsistence General Duty,Redfern Travel Ltd,Large,984550,54.11,Travel & Subsistence General Duty,Administration
Land Registry,Land Registry,06/12/2013,Central Operations Group,Travel & Subsistence General Duty,Redfern Travel Ltd,Large,984550,108.06,Travel & Subsistence General Duty,Administration
Land Registry,Land Registry,06/12/2013,Durham Office,Travel & Subsistence General Duty,Redfern Travel Ltd,Large,984550,164.78,Travel & Subsistence General Duty,Administration
Land Registry,Land Registry,06/12/2013,Central Facilities Management Team,Travel & Subsistence General Duty,Redfern Travel Ltd,Large,984550,149.91,Travel & Subsistence General Duty,Administration
Land Registry,Land Registry,06/12/2013,Product Development & Management,Travel & Subsistence General Duty,Redfern Travel Ltd,Large,984550,105.63,Travel & Subsistence General Duty,Administration
Land Registry,Land Registry,06/12/2013,International Unit,Travel & Subsistence General Duty,Redfern Travel Ltd,Large,984550,71.76,Travel & Subsistence General Duty,Administration
Land Registry,Land Registry,06/12/2013,Property Asset Management Group,Travel & Subsistence General Duty,Redfern Travel Ltd,Large,984550,38.49,Travel & Subsistence General Duty,Administration
Land Registry,Land Registry,06/12/2013,Product Development & Management,Travel & Subsistence General Duty,Redfern Travel Ltd,Large,984550,132.3,Travel & Subsistence General Duty,Administration
Land Registry,Land Registry,06/12/2013,Finance Group,Travel & Subsistence General Duty,Redfern Travel Ltd,Large,984550,-103.76,Travel & Subsistence General Duty,Administration
Land Registry,Land Registry,06/12/2013,Durham Office,Travel & Subsistence General Duty,Redfern Travel Ltd,Large,984550,-142.31,Travel & Subsistence General Duty,Administration
Land Registry,Land Registry,06/12/2013,Central Facilities Management Team,Travel & Subsistence General Duty,Redfern Travel Ltd,Large,984550,-125.02,Travel & Subsistence General Duty,Administration
Land Registry,Land Registry,06/12/2013,Marketing Services Team,Travel & Subsistence General Duty,Redfern Travel Ltd,Large,984550,-101.33,Travel & Subsistence General Duty,Administration
Land Registry,Land Registry,06/12/2013,Central Operations Group,Travel & Subsistence General Duty,Redfern Travel Ltd,Large,984550,-50,Travel & Subsistence General Duty,Administration
Land Registry,Land Registry,06/12/2013,Birkenhead Office,Travel & Subsistence General Duty,Redfern Travel Ltd,Large,984550,-27.12,Travel & Subsistence General Duty,Administration
Land Registry,Land Registry,06/12/2013,Central Operations Group,Travel & Subsistence General Duty,Redfern Travel Ltd,Large,984550,-154.61,Travel & Subsistence General Duty,Administration
Land Registry,Land Registry,06/12/2013,Product Development & Management,Travel & Subsistence General Duty,Redfern Travel Ltd,Large,984550,-67.12,Travel & Subsistence General Duty,Administration
Land Registry,Land Registry,06/12/2013,Dir: (Statutory) Commercial & Customer,Travel & Subsistence General Duty,Redfern Travel Ltd,Large,984550,61.3,Travel & Subsistence General Duty,Administration
Land Registry,Land Registry,06/12/2013,Dir: (Statutory) Commercial & Customer,Travel & Subsistence General Duty,Redfern Travel Ltd,Large,984550,209.74,Travel & Subsistence General Duty,Administration
Land Registry,Land Registry,06/12/2013,Dir: (Statutory) Commercial & Customer,Travel & Subsistence General Duty,Redfern Travel Ltd,Large,984550,-339.96,Travel & Subsistence General Duty,Administration
Land Registry,Land Registry,06/12/2013,Dir: HR,Travel & Subsistence General Duty,Redfern Travel Ltd,Large,984550,358.05,Travel & Subsistence General Duty,Administration
Land Registry,Land Registry,06/12/2013,Dir: HR,Travel & Subsistence General Duty,Redfern Travel Ltd,Large,984550,123.67,Travel & Subsistence General Duty,Administration
Land Registry,Land Registry,06/12/2013,Dir: HR,Travel & Subsistence General Duty,Redfern Travel Ltd,Large,984550,65.95,Travel & Subsistence General Duty,Administration
Land Registry,Land Registry,06/12/2013,Dir: (Statutory) Commercial & Customer,Travel & Subsistence General Duty,Redfern Travel Ltd,Large,984550,6.24,Travel & Subsistence General Duty,Administration
Land Registry,Land Registry,06/12/2013,Dir: (Statutory) Commercial & Customer,Travel & Subsistence General Duty,Redfern Travel Ltd,Large,984550,224.68,Travel & Subsistence General Duty,Administration
Land Registry,Land Registry,06/12/2013,Dir: HR,Travel & Subsistence General Duty,Redfern Travel Ltd,Large,984550,410.28,Travel & Subsistence General Duty,Administration
Land Registry,Land Registry,06/12/2013,Dir: HR,Travel & Subsistence General Duty,Redfern Travel Ltd,Large,984550,65.53,Travel & Subsistence General Duty,Administration
Land Registry,Land Registry,06/12/2013,Dir: (Statutory) Commercial & Customer,Travel & Subsistence General Duty,Redfern Travel Ltd,Large,984550,57.9,Travel & Subsistence General Duty,Administration
Land Registry,Land Registry,06/12/2013,Dir: HR,Travel & Subsistence General Duty,Redfern Travel Ltd,Large,984550,42.43,Travel & Subsistence General Duty,Administration
Land Registry,Land Registry,06/12/2013,Dir: (Statutory) Commercial & Customer,Travel & Subsistence General Duty,Redfern Travel Ltd,Large,984550,75.58,Travel & Subsistence General Duty,Administration
Land Registry,Land Registry,06/12/2013,Dir: Legal Services,Travel & Subsistence General Duty,Redfern Travel Ltd,Large,984550,114.61,Travel & Subsistence General Duty,Administration
Land Registry,Land Registry,06/12/2013,Dir: (Statutory) Commercial & Customer,Travel & Subsistence General Duty,Redfern Travel Ltd,Large,984550,17.8,Travel & Subsistence General Duty,Administration
Land Registry,Land Registry,06/12/2013,Dir: Legal Services,Travel & Subsistence General Duty,Redfern Travel Ltd,Large,984550,70.98,Travel & Subsistence General Duty,Administration
Land Registry,Land Registry,06/12/2013,Dir: HR,Travel & Subsistence General Duty,Redfern Travel Ltd,Large,984550,52.36,Travel & Subsistence General Duty,Administration
Land Registry,Land Registry,06/12/2013,Dir: (Statutory) Commercial & Customer,Travel & Subsistence General Duty,Redfern Travel Ltd,Large,984550,201.26,Travel & Subsistence General Duty,Administration
Land Registry,Land Registry,06/12/2013,Dir: HR,Travel & Subsistence General Duty,Redfern Travel Ltd,Large,984550,195.02,Travel & Subsistence General Duty,Administration
Land Registry,Land Registry,06/12/2013,Dir: HR,Travel & Subsistence General Duty,Redfern Travel Ltd,Large,984550,224.13,Travel & Subsistence General Duty,Administration
Land Registry,Land Registry,06/12/2013,Dir: HR,Travel & Subsistence General Duty,Redfern Travel Ltd,Large,984550,129.29,Travel & Subsistence General Duty,Administration
Land Registry,Land Registry,06/12/2013,Dir: HR,Travel & Subsistence General Duty,Redfern Travel Ltd,Large,984550,279.22,Travel & Subsistence General Duty,Administration
Land Registry,Land Registry,06/12/2013,Dir: (Statutory) Commercial & Customer,Travel & Subsistence General Duty,Redfern Travel Ltd,Large,984550,18.59,Travel & Subsistence General Duty,Administration
Land Registry,Land Registry,06/12/2013,Dir: HR,Travel & Subsistence General Duty,Redfern Travel Ltd,Large,984550,108.55,Travel & Subsistence General Duty,Administration
Land Registry,Land Registry,06/12/2013,Dir: (Statutory) Commercial & Customer,Travel & Subsistence General Duty,Redfern Travel Ltd,Large,984550,86.99,Travel & Subsistence General Duty,Administration
Land Registry,Land Registry,06/12/2013,Dir: HR,Travel & Subsistence General Duty,Redfern Travel Ltd,Large,984550,180.35,Travel & Subsistence General Duty,Administration
Land Registry,Land Registry,06/12/2013,Dir: (Statutory) Commercial & Customer,Travel & Subsistence General Duty,Redfern Travel Ltd,Large,984550,136.07,Travel & Subsistence General Duty,Administration
Land Registry,Land Registry,06/12/2013,Dir: Legal Services,Travel & Subsistence General Duty,Redfern Travel Ltd,Large,984550,130.33,Travel & Subsistence General Duty,Administration
Land Registry,Land Registry,06/12/2013,Dir: HR,Travel & Subsistence General Duty,Redfern Travel Ltd,Large,984550,302.58,Travel & Subsistence General Duty,Administration
Land Registry,Land Registry,06/12/2013,Dir: HR,Travel & Subsistence General Duty,Redfern Travel Ltd,Large,984550,458.59,Travel & Subsistence General Duty,Administration
Land Registry,Land Registry,06/12/2013,Dir: HR,Travel & Subsistence General Duty,Redfern Travel Ltd,Large,984550,241.75,Travel & Subsistence General Duty,Administration
Land Registry,Land Registry,06/12/2013,Dir: HR,Travel & Subsistence General Duty,Redfern Travel Ltd,Large,984550,302.58,Travel & Subsistence General Duty,Administration
Land Registry,Land Registry,06/12/2013,Dir: (Add Value) Commercial & Customer,Travel & Subsistence General Duty,Redfern Travel Ltd,Large,984550,65.95,Travel & Subsistence General Duty,Administration
Land Registry,Land Registry,06/12/2013,Dir: HR,Travel & Subsistence General Duty,Redfern Travel Ltd,Large,984550,70.98,Travel & Subsistence General Duty,Administration
Land Registry,Land Registry,06/12/2013,Dir: (Statutory) Commercial & Customer,Travel & Subsistence General Duty,Redfern Travel Ltd,Large,984550,205.58,Travel & Subsistence General Duty,Administration
Land Registry,Land Registry,06/12/2013,Dir: HR,Travel & Subsistence General Duty,Redfern Travel Ltd,Large,984550,158,Travel & Subsistence General Duty,Administration
Land Registry,Land Registry,06/12/2013,Dir: (Statutory) Commercial & Customer,Travel & Subsistence General Duty,Redfern Travel Ltd,Large,984550,139.94,Travel & Subsistence General Duty,Administration
Land Registry,Land Registry,06/12/2013,Dir: HR,Travel & Subsistence General Duty,Redfern Travel Ltd,Large,984550,56.99,Travel & Subsistence General Duty,Administration
Land Registry,Land Registry,06/12/2013,Dir: HR,Travel & Subsistence General Duty,Redfern Travel Ltd,Large,984550,205.29,Travel & Subsistence General Duty,Administration
Land Registry,Land Registry,06/12/2013,Dir: HR,Travel & Subsistence General Duty,Redfern Travel Ltd,Large,984550,353.94,Travel & Subsistence General Duty,Administration
Land Registry,Land Registry,06/12/2013,Dir: HR,Travel & Subsistence General Duty,Redfern Travel Ltd,Large,984550,252.97,Travel & Subsistence General Duty,Administration
Land Registry,Land Registry,06/12/2013,Dir: Legal Services,Travel & Subsistence General Duty,Redfern Travel Ltd,Large,984550,206.2,Travel & Subsistence General Duty,Administration
Land Registry,Land Registry,06/12/2013,Dir: HR,Travel & Subsistence General Duty,Redfern Travel Ltd,Large,984550,451.93,Travel & Subsistence General Duty,Administration
Land Registry,Land Registry,06/12/2013,Dir: Legal Services,Travel & Subsistence General Duty,Redfern Travel Ltd,Large,984550,250.05,Travel & Subsistence General Duty,Administration
Land Registry,Land Registry,06/12/2013,Dir: HR,Travel & Subsistence General Duty,Redfern Travel Ltd,Large,984550,-106.14,Travel & Subsistence General Duty,Administration
Land Registry,Land Registry,06/12/2013,Dir: (Statutory) Commercial & Customer,Travel & Subsistence General Duty,Redfern Travel Ltd,Large,984550,-69.13,Travel & Subsistence General Duty,Administration
Land Registry,Land Registry,09/12/2013,Central Facilities Management Team,Transport Hire of Cars and Vans,Enterprise Rent-A-Car (UK) Ltd,Large,984622,28184.66,Transport Hire of Cars and Vans,Administration
Land Registry,Land Registry,09/12/2013,Forward Scanning,Maps & Plans Data Migration,TNT (UK) Ltd,Large,984624,228015.37,Maps & Plans Data Migration,Administration
Land Registry,Land Registry,10/12/2013,Hull Office,Rates Payable,Kingston Upon Hull City Council,Large,213154,13424,Rates Payable,Administration
Land Registry,Land Registry,12/12/2013,RFS4 - Coventry,FM Managed Services,Carillion Services Ltd,Large,985582,83721.52,Facilities Managed Service,Administration
Land Registry,Land Registry,12/12/2013,Wales Office,FM Managed Services,Carillion Services Ltd,Large,985582,84072.1,Facilities Managed Service,Administration
Land Registry,Land Registry,12/12/2013,Peterborough Office,Vending Machine Consumables & Repairs,Carillion Services Ltd,Large,985582,148.5,Vending Machine Consumables & Repairs,Administration
Land Registry,Land Registry,12/12/2013,Peterborough Office,Grounds Maintenance,Carillion Services Ltd,Large,985582,-4.02,Grounds Maintenance,Administration
Land Registry,Land Registry,12/12/2013,Peterborough Office,Security Expenses,Carillion Services Ltd,Large,985582,-3.25,Security Expenses,Administration
Land Registry,Land Registry,12/12/2013,Peterborough Office,Pest Control,Carillion Services Ltd,Large,985582,42.47,Pest Control,Administration
Land Registry,Land Registry,12/12/2013,Peterborough Office,Office Cleaning Expenses,Carillion Services Ltd,Large,985582,3150.5,Office Cleaning Expenses,Administration
Land Registry,Land Registry,12/12/2013,Peterborough Office,Property Maintenance,Carillion Services Ltd,Large,985582,7259.38,Property Maintenance,Administration
Land Registry,Land Registry,12/12/2013,Peterborough Office,FM Ext Helpdesk,Carillion Services Ltd,Large,985582,505.94,Facilities External Help Desk,Administration
Land Registry,Land Registry,12/12/2013,Peterborough Office,FM Managed Services,Carillion Services Ltd,Large,985582,4425.82,Facilities Managed Service,Administration
Land Registry,Land Registry,12/12/2013,Nottingham Office,Electricity,Carillion Services Ltd,Large,985582,5137.61,Electricity,Administration
Land Registry,Land Registry,12/12/2013,Nottingham Office,Gas,Carillion Services Ltd,Large,985582,257.57,Gas,Administration
Land Registry,Land Registry,12/12/2013,Nottingham Office,Vending Machine Consumables & Repairs,Carillion Services Ltd,Large,985582,135.82,Vending Machine Consumables & Repairs,Administration
Land Registry,Land Registry,12/12/2013,Nottingham Office,Grounds Maintenance,Carillion Services Ltd,Large,985582,90.95,Grounds Maintenance,Administration
Land Registry,Land Registry,12/12/2013,Nottingham Office,Security Expenses,Carillion Services Ltd,Large,985582,3415.08,Security Expenses,Administration
Land Registry,Land Registry,12/12/2013,Nottingham Office,Waste Disposal,Carillion Services Ltd,Large,985582,314.41,Waste Disposal,Administration
Land Registry,Land Registry,12/12/2013,Nottingham Office,Pest Control,Carillion Services Ltd,Large,985582,139.45,Pest Control,Administration
Land Registry,Land Registry,12/12/2013,Nottingham Office,Office Cleaning Expenses,Carillion Services Ltd,Large,985582,6832.64,Office Cleaning Expenses,Administration
Land Registry,Land Registry,12/12/2013,Nottingham Office,Property Maintenance,Carillion Services Ltd,Large,985582,14803.03,Property Maintenance,Administration
Land Registry,Land Registry,12/12/2013,Nottingham Office,FM Ext Helpdesk,Carillion Services Ltd,Large,985582,1531.8,Facilities External Help Desk,Administration
Land Registry,Land Registry,12/12/2013,Nottingham Office,FM Managed Services,Carillion Services Ltd,Large,985582,10761.19,Facilities Managed Service,Administration
Land Registry,Land Registry,12/12/2013,Fylde Office,Electricity,Carillion Services Ltd,Large,985582,112.25,Electricity,Administration
Land Registry,Land Registry,12/12/2013,Weymouth Office,Gas,Carillion Services Ltd,Large,985582,105.78,Gas,Administration
Land Registry,Land Registry,12/12/2013,Coventry Office,Electricity,Carillion Services Ltd,Large,985582,599.35,Electricity,Administration
Land Registry,Land Registry,12/12/2013,Hull Office,Water,Carillion Services Ltd,Large,985582,610.62,Water,Administration
Land Registry,Land Registry,12/12/2013,Hull Office,Electricity,Carillion Services Ltd,Large,985582,328.53,Electricity,Administration
Land Registry,Land Registry,12/12/2013,Hull Office,Gas,Carillion Services Ltd,Large,985582,193.83,Gas,Administration
Land Registry,Land Registry,12/12/2013,RFS4 - Coventry,Electricity,Carillion Services Ltd,Large,985582,5770.14,Electricity,Administration
Land Registry,Land Registry,12/12/2013,RFS4 - Coventry,Office Cleaning Expenses,Carillion Services Ltd,Large,985582,248.61,Office Cleaning Expenses,Administration
Land Registry,Land Registry,12/12/2013,RFS4 - Coventry,Property Maintenance,Carillion Services Ltd,Large,985582,55.5,Property Maintenance,Administration
Land Registry,Land Registry,12/12/2013,RFS4 - Coventry,FM Ext Helpdesk,Carillion Services Ltd,Large,985582,7.13,Facilities External Help Desk,Administration
Land Registry,Land Registry,12/12/2013,RFS4 - Coventry,FM Managed Services,Carillion Services Ltd,Large,985582,13.67,Facilities Managed Service,Administration
Land Registry,Land Registry,12/12/2013,Central Facilities Management Team,Water,Carillion Services Ltd,Large,985582,385.4,Water,Administration
Land Registry,Land Registry,12/12/2013,Central Facilities Management Team,Electricity,Carillion Services Ltd,Large,985582,1433.64,Electricity,Administration
Land Registry,Land Registry,12/12/2013,Central Facilities Management Team,Gas,Carillion Services Ltd,Large,985582,1104.58,Gas,Administration
Land Registry,Land Registry,12/12/2013,Central Facilities Management Team,Security Expenses,Carillion Services Ltd,Large,985582,939.73,Security Expenses,Administration
Land Registry,Land Registry,12/12/2013,Central Facilities Management Team,Waste Disposal,Carillion Services Ltd,Large,985582,60.7,Waste Disposal,Administration
Land Registry,Land Registry,12/12/2013,Durham Office,FM Ext Helpdesk,Carillion Services Ltd,Large,985582,495.7,Facilities External Help Desk,Administration
Land Registry,Land Registry,12/12/2013,Durham Office,FM Managed Services,Carillion Services Ltd,Large,985582,7704.76,Facilities Managed Service,Administration
Land Registry,Land Registry,12/12/2013,RFS8 - Birkenhead,Vending Machine Consumables & Repairs,Carillion Services Ltd,Large,985582,54.87,Vending Machine Consumables & Repairs,Administration
Land Registry,Land Registry,12/12/2013,RFS8 - Birkenhead,Office Cleaning Expenses,Carillion Services Ltd,Large,985582,7.55,Office Cleaning Expenses,Administration
Land Registry,Land Registry,12/12/2013,Birkenhead Office,Water,Carillion Services Ltd,Large,985582,4077.03,Water,Administration
Land Registry,Land Registry,12/12/2013,Birkenhead Office,Electricity,Carillion Services Ltd,Large,985582,3940.93,Electricity,Administration
Land Registry,Land Registry,12/12/2013,Birkenhead Office,Gas,Carillion Services Ltd,Large,985582,1081.37,Gas,Administration
Land Registry,Land Registry,12/12/2013,Birkenhead Office,Vending Machine Consumables & Repairs,Carillion Services Ltd,Large,985582,740.63,Vending Machine Consumables & Repairs,Administration
Land Registry,Land Registry,12/12/2013,Birkenhead Office,Grounds Maintenance,Carillion Services Ltd,Large,985582,383.19,Grounds Maintenance,Administration
Land Registry,Land Registry,12/12/2013,Birkenhead Office,Security Expenses,Carillion Services Ltd,Large,985582,3247.77,Security Expenses,Administration
Land Registry,Land Registry,12/12/2013,Birkenhead Office,Waste Disposal,Carillion Services Ltd,Large,985582,632.65,Waste Disposal,Administration
Land Registry,Land Registry,12/12/2013,Birkenhead Office,Pest Control,Carillion Services Ltd,Large,985582,41.9,Pest Control,Administration
Land Registry,Land Registry,12/12/2013,Birkenhead Office,Office Cleaning Expenses,Carillion Services Ltd,Large,985582,5935.66,Office Cleaning Expenses,Administration
Land Registry,Land Registry,12/12/2013,Birkenhead Office,Property Maintenance,Carillion Services Ltd,Large,985582,4771.24,Property Maintenance,Administration
Land Registry,Land Registry,12/12/2013,Birkenhead Office,FF&F:Maintenance,Carillion Services Ltd,Large,985582,183.16,FF&F:Maintenance,Administration
Land Registry,Land Registry,12/12/2013,Birkenhead Office,Property Maintenance,Carillion Services Ltd,Large,985582,114.16,Property Maintenance,Administration
Land Registry,Land Registry,12/12/2013,Birkenhead Office,FM Ext Helpdesk,Carillion Services Ltd,Large,985582,394.97,Facilities External Help Desk,Administration
Land Registry,Land Registry,12/12/2013,Birkenhead Office,FM Managed Services,Carillion Services Ltd,Large,985582,4828.99,Facilities Managed Service,Administration
Land Registry,Land Registry,12/12/2013,RFS1 - Telford,Water,Carillion Services Ltd,Large,985582,96.49,Water,Administration
Land Registry,Land Registry,12/12/2013,RFS1 - Telford,Electricity,Carillion Services Ltd,Large,985582,42.09,Electricity,Administration
Land Registry,Land Registry,12/12/2013,RFS1 - Telford,Gas,Carillion Services Ltd,Large,985582,321.63,Gas,Administration
Land Registry,Land Registry,12/12/2013,RFS1 - Telford,Property Maintenance,Carillion Services Ltd,Large,985582,1704.71,Property Maintenance,Administration
Land Registry,Land Registry,12/12/2013,RFS1 - Telford,FM Ext Helpdesk,Carillion Services Ltd,Large,985582,104.4,Facilities External Help Desk,Administration
Land Registry,Land Registry,12/12/2013,RFS1 - Telford,FM Managed Services,Carillion Services Ltd,Large,985582,349.2,Facilities Managed Service,Administration
Land Registry,Land Registry,12/12/2013,Telford Office,Water,Carillion Services Ltd,Large,985582,1199.88,Water,Administration
Land Registry,Land Registry,12/12/2013,Telford Office,Electricity,Carillion Services Ltd,Large,985582,5447.22,Electricity,Administration
Land Registry,Land Registry,12/12/2013,Telford Office,Gas,Carillion Services Ltd,Large,985582,2434.97,Gas,Administration
Land Registry,Land Registry,12/12/2013,Telford Office,Vending Machine Consumables & Repairs,Carillion Services Ltd,Large,985582,228,Vending Machine Consumables & Repairs,Administration
Land Registry,Land Registry,12/12/2013,Telford Office,Grounds Maintenance,Carillion Services Ltd,Large,985582,1243.02,Grounds Maintenance,Administration
Land Registry,Land Registry,12/12/2013,Telford Office,Security Expenses,Carillion Services Ltd,Large,985582,2841.72,Security Expenses,Administration
Land Registry,Land Registry,12/12/2013,Telford Office,Waste Disposal,Carillion Services Ltd,Large,985582,279.53,Waste Disposal,Administration
Land Registry,Land Registry,12/12/2013,Telford Office,Pest Control,Carillion Services Ltd,Large,985582,44.98,Pest Control,Administration
Land Registry,Land Registry,12/12/2013,Telford Office,Office Cleaning Expenses,Carillion Services Ltd,Large,985582,5331.59,Office Cleaning Expenses,Administration
Land Registry,Land Registry,12/12/2013,Telford Office,Property Maintenance,Carillion Services Ltd,Large,985582,5531.2,Property Maintenance,Administration
Land Registry,Land Registry,12/12/2013,Telford Office,FF&F:Maintenance,Carillion Services Ltd,Large,985582,183.16,FF&F:Maintenance,Administration
Land Registry,Land Registry,12/12/2013,Telford Office,Property Maintenance,Carillion Services Ltd,Large,985582,117.95,Property Maintenance,Administration
Land Registry,Land Registry,12/12/2013,Telford Office,FM Ext Helpdesk,Carillion Services Ltd,Large,985582,419.14,Facilities External Help Desk,Administration
Land Registry,Land Registry,12/12/2013,Telford Office,FM Managed Services,Carillion Services Ltd,Large,985582,3697.03,Facilities Managed Service,Administration
Land Registry,Land Registry,12/12/2013,Peterborough Office,Gas,Carillion Services Ltd,Large,985582,2605.65,Gas,Administration
Land Registry,Land Registry,12/12/2013,Nottingham Office,Water,Carillion Services Ltd,Large,985582,566.71,Water,Administration
Land Registry,Land Registry,12/12/2013,Nottingham Office,Electricity,Carillion Services Ltd,Large,985582,4023.02,Electricity,Administration
Land Registry,Land Registry,12/12/2013,Nottingham Office,Gas,Carillion Services Ltd,Large,985582,-541.83,Gas,Administration
Land Registry,Land Registry,12/12/2013,Nottingham Office,Property Maintenance,Carillion Services Ltd,Large,985582,20516.26,Property Maintenance,Administration
Land Registry,Land Registry,12/12/2013,Leicester Office,Electricity,Carillion Services Ltd,Large,985582,1711.29,Electricity,Administration
Land Registry,Land Registry,12/12/2013,Leicester Office,Gas,Carillion Services Ltd,Large,985582,253.31,Gas,Administration
Land Registry,Land Registry,12/12/2013,Leicester Office,Grounds Maintenance,Carillion Services Ltd,Large,985582,79.86,Grounds Maintenance,Administration
Land Registry,Land Registry,12/12/2013,Leicester Office,Pest Control,Carillion Services Ltd,Large,985582,16.25,Pest Control,Administration
Land Registry,Land Registry,12/12/2013,Leicester Office,Office Cleaning Expenses,Carillion Services Ltd,Large,985582,186.86,Office Cleaning Expenses,Administration
Land Registry,Land Registry,12/12/2013,Leicester Office,Property Maintenance,Carillion Services Ltd,Large,985582,369.99,Property Maintenance,Administration
Land Registry,Land Registry,12/12/2013,Leicester Office,FF&F:Maintenance,Carillion Services Ltd,Large,985582,91.58,FF&F:Maintenance,Administration
Land Registry,Land Registry,12/12/2013,Leicester Office,FM Ext Helpdesk,Carillion Services Ltd,Large,985582,21.03,Facilities External Help Desk,Administration
Land Registry,Land Registry,12/12/2013,Leicester Office,FM Managed Services,Carillion Services Ltd,Large,985582,70.34,Facilities Managed Service,Administration
Land Registry,Land Registry,12/12/2013,Leicester Office,Electricity,Carillion Services Ltd,Large,985582,3197.87,Electricity,Administration
Land Registry,Land Registry,12/12/2013,Leicester Office,Gas,Carillion Services Ltd,Large,985582,1070.44,Gas,Administration
Land Registry,Land Registry,12/12/2013,Leicester Office,Vending Machine Consumables & Repairs,Carillion Services Ltd,Large,985582,158.47,Vending Machine Consumables & Repairs,Administration
Land Registry,Land Registry,12/12/2013,Leicester Office,Grounds Maintenance,Carillion Services Ltd,Large,985582,153.77,Grounds Maintenance,Administration
Land Registry,Land Registry,12/12/2013,Leicester Office,Security Expenses,Carillion Services Ltd,Large,985582,2735.42,Security Expenses,Administration
Land Registry,Land Registry,12/12/2013,Leicester Office,Waste Disposal,Carillion Services Ltd,Large,985582,333.11,Waste Disposal,Administration
Land Registry,Land Registry,12/12/2013,Leicester Office,Pest Control,Carillion Services Ltd,Large,985582,39.62,Pest Control,Administration
Land Registry,Land Registry,12/12/2013,Leicester Office,Office Cleaning Expenses,Carillion Services Ltd,Large,985582,3750.2,Office Cleaning Expenses,Administration
Land Registry,Land Registry,12/12/2013,Leicester Office,Property Maintenance,Carillion Services Ltd,Large,985582,7881.79,Property Maintenance,Administration
Land Registry,Land Registry,12/12/2013,Leicester Office,FF&F:Maintenance,Carillion Services Ltd,Large,985582,183.16,FF&F:Maintenance,Administration
Land Registry,Land Registry,12/12/2013,Leicester Office,Property Maintenance,Carillion Services Ltd,Large,985582,74.95,Property Maintenance,Administration
Land Registry,Land Registry,12/12/2013,Leicester Office,FM Ext Helpdesk,Carillion Services Ltd,Large,985582,412.61,Facilities External Help Desk,Administration
Land Registry,Land Registry,12/12/2013,Leicester Office,FM Managed Services,Carillion Services Ltd,Large,985582,3675.19,Facilities Managed Service,Administration
Land Registry,Land Registry,12/12/2013,Gloucester Computer Centre,Electricity,Carillion Services Ltd,Large,985582,25327.09,Electricity,Administration
Land Registry,Land Registry,12/12/2013,Gloucester Computer Centre,Gas,Carillion Services Ltd,Large,985582,102.56,Gas,Administration
Land Registry,Land Registry,12/12/2013,Gloucester Computer Centre,Vending Machine Consumables & Repairs,Carillion Services Ltd,Large,985582,19.4,Vending Machine Consumables & Repairs,Administration
Land Registry,Land Registry,12/12/2013,Gloucester Computer Centre,Grounds Maintenance,Carillion Services Ltd,Large,985582,157.79,Grounds Maintenance,Administration
Land Registry,Land Registry,12/12/2013,Gloucester Computer Centre,Security Expenses,Carillion Services Ltd,Large,985582,8308.09,Security Expenses,Administration
Land Registry,Land Registry,12/12/2013,Gloucester Computer Centre,Waste Disposal,Carillion Services Ltd,Large,985582,93.09,Waste Disposal,Administration
Land Registry,Land Registry,12/12/2013,Gloucester Computer Centre,Pest Control,Carillion Services Ltd,Large,985582,28.64,Pest Control,Administration
Land Registry,Land Registry,12/12/2013,Gloucester Computer Centre,Office Cleaning Expenses,Carillion Services Ltd,Large,985582,10.68,Office Cleaning Expenses,Administration
Land Registry,Land Registry,12/12/2013,Gloucester Computer Centre,Property Maintenance,Carillion Services Ltd,Large,985582,6968.12,Property Maintenance,Administration
Land Registry,Land Registry,12/12/2013,Gloucester Computer Centre,FF&F:Maintenance,Carillion Services Ltd,Large,985582,183.16,FF&F:Maintenance,Administration
Land Registry,Land Registry,12/12/2013,Gloucester Computer Centre,Property Maintenance,Carillion Services Ltd,Large,985582,68.09,Property Maintenance,Administration
Land Registry,Land Registry,12/12/2013,Gloucester Computer Centre,FM Ext Helpdesk,Carillion Services Ltd,Large,985582,460.58,Facilities External Help Desk,Administration
Land Registry,Land Registry,12/12/2013,Gloucester Computer Centre,FM Managed Services,Carillion Services Ltd,Large,985582,1867.62,Facilities Managed Service,Administration
Land Registry,Land Registry,12/12/2013,Gloucester Office,Water,Carillion Services Ltd,Large,985582,991.77,Water,Administration
Land Registry,Land Registry,12/12/2013,Gloucester Office,Electricity,Carillion Services Ltd,Large,985582,5670.13,Electricity,Administration
Land Registry,Land Registry,12/12/2013,Gloucester Office,Gas,Carillion Services Ltd,Large,985582,947.56,Gas,Administration
Land Registry,Land Registry,12/12/2013,Gloucester Office,Vending Machine Consumables & Repairs,Carillion Services Ltd,Large,985582,733.09,Vending Machine Consumables & Repairs,Administration
Land Registry,Land Registry,12/12/2013,Gloucester Office,Grounds Maintenance,Carillion Services Ltd,Large,985582,670.83,Grounds Maintenance,Administration
Land Registry,Land Registry,12/12/2013,Gloucester Office,Security Expenses,Carillion Services Ltd,Large,985582,10547.7,Security Expenses,Administration
Land Registry,Land Registry,12/12/2013,Gloucester Office,Waste Disposal,Carillion Services Ltd,Large,985582,233.82,Waste Disposal,Administration
Land Registry,Land Registry,12/12/2013,Gloucester Office,Pest Control,Carillion Services Ltd,Large,985582,46.74,Pest Control,Administration
Land Registry,Land Registry,12/12/2013,Gloucester Office,Office Cleaning Expenses,Carillion Services Ltd,Large,985582,6043.96,Office Cleaning Expenses,Administration
Land Registry,Land Registry,12/12/2013,Gloucester Office,Property Maintenance,Carillion Services Ltd,Large,985582,3147.85,Property Maintenance,Administration
Land Registry,Land Registry,12/12/2013,Gloucester Office,FF&F:Maintenance,Carillion Services Ltd,Large,985582,183.16,FF&F:Maintenance,Administration
Land Registry,Land Registry,12/12/2013,Gloucester Office,Property Maintenance,Carillion Services Ltd,Large,985582,74.95,Property Maintenance,Administration
Land Registry,Land Registry,12/12/2013,Gloucester Office,FM Ext Helpdesk,Carillion Services Ltd,Large,985582,496.48,Facilities External Help Desk,Administration
Land Registry,Land Registry,12/12/2013,Gloucester Office,FM Managed Services,Carillion Services Ltd,Large,985582,4198.77,Facilities Managed Service,Administration
Land Registry,Land Registry,12/12/2013,Coventry Office,Electricity,Carillion Services Ltd,Large,985582,5770.14,Electricity,Administration
Land Registry,Land Registry,12/12/2013,Coventry Office,Gas,Carillion Services Ltd,Large,985582,3037.96,Gas,Administration
Land Registry,Land Registry,12/12/2013,Coventry Office,Vending Machine Consumables & Repairs,Carillion Services Ltd,Large,985582,223.11,Vending Machine Consumables & Repairs,Administration
Land Registry,Land Registry,12/12/2013,Coventry Office,Grounds Maintenance,Carillion Services Ltd,Large,985582,787.24,Grounds Maintenance,Administration
Land Registry,Land Registry,12/12/2013,Coventry Office,Security Expenses,Carillion Services Ltd,Large,985582,7948.95,Security Expenses,Administration
Land Registry,Land Registry,12/12/2013,Coventry Office,Waste Disposal,Carillion Services Ltd,Large,985582,349.94,Waste Disposal,Administration
Land Registry,Land Registry,12/12/2013,Coventry Office,Pest Control,Carillion Services Ltd,Large,985582,53.41,Pest Control,Administration
Land Registry,Land Registry,12/12/2013,Coventry Office,Office Cleaning Expenses,Carillion Services Ltd,Large,985582,7736.05,Office Cleaning Expenses,Administration
Land Registry,Land Registry,12/12/2013,Coventry Office,Property Maintenance,Carillion Services Ltd,Large,985582,10541.47,Property Maintenance,Administration
Land Registry,Land Registry,12/12/2013,Coventry Office,FF&F:Maintenance,Carillion Services Ltd,Large,985582,183.16,FF&F:Maintenance,Administration
Land Registry,Land Registry,12/12/2013,Coventry Office,Property Maintenance,Carillion Services Ltd,Large,985582,259.63,Property Maintenance,Administration
Land Registry,Land Registry,12/12/2013,Coventry Office,FM Ext Helpdesk,Carillion Services Ltd,Large,985582,801.42,Facilities External Help Desk,Administration
Land Registry,Land Registry,12/12/2013,Coventry Office,FM Managed Services,Carillion Services Ltd,Large,985582,7911.83,Facilities Managed Service,Administration
Land Registry,Land Registry,12/12/2013,Wales Office,Electricity,Carillion Services Ltd,Large,985582,358.06,Electricity,Administration
Land Registry,Land Registry,12/12/2013,Wales Office,Grounds Maintenance,Carillion Services Ltd,Large,985582,9.16,Grounds Maintenance,Administration
Land Registry,Land Registry,12/12/2013,Wales Office,Pest Control,Carillion Services Ltd,Large,985582,18.62,Pest Control,Administration
Land Registry,Land Registry,12/12/2013,Wales Office,Office Cleaning Expenses,Carillion Services Ltd,Large,985582,19.29,Office Cleaning Expenses,Administration
Land Registry,Land Registry,12/12/2013,Wales Office,Property Maintenance,Carillion Services Ltd,Large,985582,757.54,Property Maintenance,Administration
Land Registry,Land Registry,12/12/2013,Wales Office,FF&F:Maintenance,Carillion Services Ltd,Large,985582,183.16,FF&F:Maintenance,Administration
Land Registry,Land Registry,12/12/2013,Wales Office,Property Maintenance,Carillion Services Ltd,Large,985582,111.13,Property Maintenance,Administration
Land Registry,Land Registry,12/12/2013,Wales Office,FM Ext Helpdesk,Carillion Services Ltd,Large,985582,29.18,Facilities External Help Desk,Administration
Land Registry,Land Registry,12/12/2013,Wales Office,FM Managed Services,Carillion Services Ltd,Large,985582,412.48,Facilities Managed Service,Administration
Land Registry,Land Registry,12/12/2013,Wales Office,Electricity,Carillion Services Ltd,Large,985582,5196.85,Electricity,Administration
Land Registry,Land Registry,12/12/2013,Wales Office,Gas,Carillion Services Ltd,Large,985582,558.35,Gas,Administration
Land Registry,Land Registry,12/12/2013,Wales Office,Vending Machine Consumables & Repairs,Carillion Services Ltd,Large,985582,202.29,Vending Machine Consumables & Repairs,Administration
Land Registry,Land Registry,12/12/2013,Wales Office,Grounds Maintenance,Carillion Services Ltd,Large,985582,519.73,Grounds Maintenance,Administration
Land Registry,Land Registry,12/12/2013,Wales Office,Security Expenses,Carillion Services Ltd,Large,985582,2900.61,Security Expenses,Administration
Land Registry,Land Registry,12/12/2013,Wales Office,Waste Disposal,Carillion Services Ltd,Large,985582,521.48,Waste Disposal,Administration
Land Registry,Land Registry,12/12/2013,Wales Office,Pest Control,Carillion Services Ltd,Large,985582,40.76,Pest Control,Administration
Land Registry,Land Registry,12/12/2013,Wales Office,Office Cleaning Expenses,Carillion Services Ltd,Large,985582,4935.35,Office Cleaning Expenses,Administration
Land Registry,Land Registry,12/12/2013,Wales Office,Property Maintenance,Carillion Services Ltd,Large,985582,3858.47,Property Maintenance,Administration
Land Registry,Land Registry,12/12/2013,Wales Office,FF&F:Maintenance,Carillion Services Ltd,Large,985582,183.16,FF&F:Maintenance,Administration
Land Registry,Land Registry,12/12/2013,Wales Office,Property Maintenance,Carillion Services Ltd,Large,985582,162.45,Property Maintenance,Administration
Land Registry,Land Registry,12/12/2013,Wales Office,FM Ext Helpdesk,Carillion Services Ltd,Large,985582,346.17,Facilities External Help Desk,Administration
Land Registry,Land Registry,12/12/2013,Wales Office,FM Managed Services,Carillion Services Ltd,Large,985582,7188.41,Facilities Managed Service,Administration
Land Registry,Land Registry,12/12/2013,Croydon Office,Electricity,Carillion Services Ltd,Large,985582,7127.61,Electricity,Administration
Land Registry,Land Registry,12/12/2013,Croydon Office,Gas,Carillion Services Ltd,Large,985582,1943.28,Gas,Administration
Land Registry,Land Registry,12/12/2013,Croydon Office,Vending Machine Consumables & Repairs,Carillion Services Ltd,Large,985582,190,Vending Machine Consumables & Repairs,Administration
Land Registry,Land Registry,12/12/2013,Croydon Office,Grounds Maintenance,Carillion Services Ltd,Large,985582,77.21,Grounds Maintenance,Administration
Land Registry,Land Registry,12/12/2013,Central Facilities Management Team,Property Maintenance,Carillion Services Ltd,Large,985582,1283.85,Property Maintenance,Administration
Land Registry,Land Registry,12/12/2013,Central Facilities Management Team,FM Managed Services,Carillion Services Ltd,Large,985582,251.15,Facilities Managed Service,Administration
Land Registry,Land Registry,12/12/2013,Hull Office,Water,Carillion Services Ltd,Large,985582,292.31,Water,Administration
Land Registry,Land Registry,12/12/2013,Hull Office,Electricity,Carillion Services Ltd,Large,985582,5974.95,Electricity,Administration
Land Registry,Land Registry,12/12/2013,Hull Office,Gas,Carillion Services Ltd,Large,985582,1766.67,Gas,Administration
Land Registry,Land Registry,12/12/2013,Hull Office,Vending Machine Consumables & Repairs,Carillion Services Ltd,Large,985582,216.19,Vending Machine Consumables & Repairs,Administration
Land Registry,Land Registry,12/12/2013,Hull Office,Grounds Maintenance,Carillion Services Ltd,Large,985582,663.96,Grounds Maintenance,Administration
Land Registry,Land Registry,12/12/2013,Hull Office,Security Expenses,Carillion Services Ltd,Large,985582,3230.13,Security Expenses,Administration
Land Registry,Land Registry,12/12/2013,Hull Office,Waste Disposal,Carillion Services Ltd,Large,985582,139.72,Waste Disposal,Administration
Land Registry,Land Registry,12/12/2013,Hull Office,Pest Control,Carillion Services Ltd,Large,985582,50.07,Pest Control,Administration
Land Registry,Land Registry,12/12/2013,Hull Office,Office Cleaning Expenses,Carillion Services Ltd,Large,985582,5322.05,Office Cleaning Expenses,Administration
Land Registry,Land Registry,12/12/2013,Hull Office,Property Maintenance,Carillion Services Ltd,Large,985582,5753.55,Property Maintenance,Administration
Land Registry,Land Registry,12/12/2013,Hull Office,FF&F:Maintenance,Carillion Services Ltd,Large,985582,183.16,FF&F:Maintenance,Administration
Land Registry,Land Registry,12/12/2013,Hull Office,Property Maintenance,Carillion Services Ltd,Large,985582,101.16,Property Maintenance,Administration
Land Registry,Land Registry,12/12/2013,Hull Office,FM Ext Helpdesk,Carillion Services Ltd,Large,985582,387.41,Facilities External Help Desk,Administration
Land Registry,Land Registry,12/12/2013,Hull Office,FM Managed Services,Carillion Services Ltd,Large,985582,4228.24,Facilities Managed Service,Administration
Land Registry,Land Registry,12/12/2013,Fylde Office,Electricity,Carillion Services Ltd,Large,985582,4554.84,Electricity,Administration
Land Registry,Land Registry,12/12/2013,Fylde Office,Gas,Carillion Services Ltd,Large,985582,1012.78,Gas,Administration
Land Registry,Land Registry,12/12/2013,Fylde Office,Vending Machine Consumables & Repairs,Carillion Services Ltd,Large,985582,219.77,Vending Machine Consumables & Repairs,Administration
Land Registry,Land Registry,12/12/2013,Fylde Office,Grounds Maintenance,Carillion Services Ltd,Large,985582,1376.86,Grounds Maintenance,Administration
Land Registry,Land Registry,12/12/2013,Fylde Office,Security Expenses,Carillion Services Ltd,Large,985582,2599.29,Security Expenses,Administration
Land Registry,Land Registry,12/12/2013,Fylde Office,Waste Disposal,Carillion Services Ltd,Large,985582,111.34,Waste Disposal,Administration
Land Registry,Land Registry,12/12/2013,Fylde Office,Pest Control,Carillion Services Ltd,Large,985582,39.62,Pest Control,Administration
Land Registry,Land Registry,12/12/2013,Fylde Office,Office Cleaning Expenses,Carillion Services Ltd,Large,985582,5407.55,Office Cleaning Expenses,Administration
Land Registry,Land Registry,12/12/2013,Fylde Office,Property Maintenance,Carillion Services Ltd,Large,985582,3542.19,Property Maintenance,Administration
Land Registry,Land Registry,12/12/2013,Fylde Office,FF&F:Maintenance,Carillion Services Ltd,Large,985582,183.16,FF&F:Maintenance,Administration
Land Registry,Land Registry,12/12/2013,Fylde Office,Property Maintenance,Carillion Services Ltd,Large,985582,127.31,Property Maintenance,Administration
Land Registry,Land Registry,12/12/2013,Fylde Office,FM Ext Helpdesk,Carillion Services Ltd,Large,985582,344.73,Facilities External Help Desk,Administration
Land Registry,Land Registry,12/12/2013,Fylde Office,FM Managed Services,Carillion Services Ltd,Large,985582,6951.41,Facilities Managed Service,Administration
Land Registry,Land Registry,12/12/2013,RFS5 - Durham Belmont,Property Maintenance,Carillion Services Ltd,Large,985582,788.95,Property Maintenance,Administration
Land Registry,Land Registry,12/12/2013,RFS5 - Durham Belmont,Water,Carillion Services Ltd,Large,985582,29.5,Water,Administration
Land Registry,Land Registry,12/12/2013,RFS5 - Durham Belmont,Gas,Carillion Services Ltd,Large,985582,486.86,Gas,Administration
Land Registry,Land Registry,12/12/2013,RFS5 - Durham Belmont,Property Maintenance,Carillion Services Ltd,Large,985582,2513.28,Property Maintenance,Administration
Land Registry,Land Registry,12/12/2013,RFS5 - Durham Belmont,Water,Carillion Services Ltd,Large,985582,3512.15,Water,Administration
Land Registry,Land Registry,12/12/2013,RFS5 - Durham Belmont,Property Maintenance,Carillion Services Ltd,Large,985582,1909.09,Property Maintenance,Administration
Land Registry,Land Registry,12/12/2013,Durham Office,Electricity,Carillion Services Ltd,Large,985582,4833.36,Electricity,Administration
Land Registry,Land Registry,12/12/2013,Durham Office,Gas,Carillion Services Ltd,Large,985582,954.62,Gas,Administration
Land Registry,Land Registry,12/12/2013,Durham Office,Grounds Maintenance,Carillion Services Ltd,Large,985582,952.73,Grounds Maintenance,Administration
Land Registry,Land Registry,12/12/2013,Durham Office,Security Expenses,Carillion Services Ltd,Large,985582,3462.71,Security Expenses,Administration
Land Registry,Land Registry,12/12/2013,Durham Office,Waste Disposal,Carillion Services Ltd,Large,985582,367.19,Waste Disposal,Administration
Land Registry,Land Registry,12/12/2013,Durham Office,Pest Control,Carillion Services Ltd,Large,985582,49.02,Pest Control,Administration
Land Registry,Land Registry,12/12/2013,Durham Office,Office Cleaning Expenses,Carillion Services Ltd,Large,985582,8766.98,Office Cleaning Expenses,Administration
Land Registry,Land Registry,12/12/2013,Durham Office,Property Maintenance,Carillion Services Ltd,Large,985582,5644.76,Property Maintenance,Administration
Land Registry,Land Registry,12/12/2013,Durham Office,FF&F:Maintenance,Carillion Services Ltd,Large,985582,183.16,FF&F:Maintenance,Administration
Land Registry,Land Registry,12/12/2013,Durham Office,Property Maintenance,Carillion Services Ltd,Large,985582,81.7,Property Maintenance,Administration
Land Registry,Land Registry,12/12/2013,Croydon Office,Security Expenses,Carillion Services Ltd,Large,985582,9395.44,Security Expenses,Administration
Land Registry,Land Registry,12/12/2013,Croydon Office,Waste Disposal,Carillion Services Ltd,Large,985582,244.04,Waste Disposal,Administration
Land Registry,Land Registry,12/12/2013,Croydon Office,Pest Control,Carillion Services Ltd,Large,985582,40.24,Pest Control,Administration
Land Registry,Land Registry,12/12/2013,Croydon Office,Office Cleaning Expenses,Carillion Services Ltd,Large,985582,6200.85,Office Cleaning Expenses,Administration
Land Registry,Land Registry,12/12/2013,Croydon Office,Property Maintenance,Carillion Services Ltd,Large,985582,7109.07,Property Maintenance,Administration
Land Registry,Land Registry,12/12/2013,Croydon Office,FF&F:Maintenance,Carillion Services Ltd,Large,985582,183.16,FF&F:Maintenance,Administration
Land Registry,Land Registry,12/12/2013,Croydon Office,Property Maintenance,Carillion Services Ltd,Large,985582,64.1,Property Maintenance,Administration
Land Registry,Land Registry,12/12/2013,Croydon Office,FM Ext Helpdesk,Carillion Services Ltd,Large,985582,475.42,Facilities External Help Desk,Administration
Land Registry,Land Registry,12/12/2013,Croydon Office,FM Managed Services,Carillion Services Ltd,Large,985582,8118.66,Facilities Managed Service,Administration
Land Registry,Land Registry,12/12/2013,Weymouth Office,Grounds Maintenance,Carillion Services Ltd,Large,985582,81.23,Grounds Maintenance,Administration
Land Registry,Land Registry,12/12/2013,Weymouth Office,Pest Control,Carillion Services Ltd,Large,985582,25.3,Pest Control,Administration
Land Registry,Land Registry,12/12/2013,Weymouth Office,Office Cleaning Expenses,Carillion Services Ltd,Large,985582,270.42,Office Cleaning Expenses,Administration
Land Registry,Land Registry,12/12/2013,Weymouth Office,Property Maintenance,Carillion Services Ltd,Large,985582,369.89,Property Maintenance,Administration
Land Registry,Land Registry,12/12/2013,Weymouth Office,FF&F:Maintenance,Carillion Services Ltd,Large,985582,91.58,FF&F:Maintenance,Administration
Land Registry,Land Registry,12/12/2013,Weymouth Office,Property Maintenance,Carillion Services Ltd,Large,985582,83.68,Property Maintenance,Administration
Land Registry,Land Registry,12/12/2013,Weymouth Office,FM Ext Helpdesk,Carillion Services Ltd,Large,985582,26.66,Facilities External Help Desk,Administration
Land Registry,Land Registry,12/12/2013,Weymouth Office,FM Managed Services,Carillion Services Ltd,Large,985582,229.73,Facilities Managed Service,Administration
Land Registry,Land Registry,12/12/2013,Weymouth Office,Electricity,Carillion Services Ltd,Large,985582,3839.92,Electricity,Administration
Land Registry,Land Registry,12/12/2013,Weymouth Office,Gas,Carillion Services Ltd,Large,985582,659.36,Gas,Administration
Land Registry,Land Registry,12/12/2013,Weymouth Office,Vending Machine Consumables & Repairs,Carillion Services Ltd,Large,985582,120.66,Vending Machine Consumables & Repairs,Administration
Land Registry,Land Registry,12/12/2013,Weymouth Office,Grounds Maintenance,Carillion Services Ltd,Large,985582,638.23,Grounds Maintenance,Administration
Land Registry,Land Registry,12/12/2013,Weymouth Office,Security Expenses,Carillion Services Ltd,Large,985582,3124.98,Security Expenses,Administration
Land Registry,Land Registry,12/12/2013,Weymouth Office,Waste Disposal,Carillion Services Ltd,Large,985582,222.19,Waste Disposal,Administration
Land Registry,Land Registry,12/12/2013,Weymouth Office,Pest Control,Carillion Services Ltd,Large,985582,41.9,Pest Control,Administration
Land Registry,Land Registry,12/12/2013,Weymouth Office,Office Cleaning Expenses,Carillion Services Ltd,Large,985582,3865.85,Office Cleaning Expenses,Administration
Land Registry,Land Registry,12/12/2013,Weymouth Office,Property Maintenance,Carillion Services Ltd,Large,985582,1976.72,Property Maintenance,Administration
Land Registry,Land Registry,12/12/2013,Weymouth Office,FF&F:Maintenance,Carillion Services Ltd,Large,985582,183.16,FF&F:Maintenance,Administration
Land Registry,Land Registry,12/12/2013,Weymouth Office,Property Maintenance,Carillion Services Ltd,Large,985582,201,Property Maintenance,Administration
Land Registry,Land Registry,12/12/2013,Weymouth Office,FM Ext Helpdesk,Carillion Services Ltd,Large,985582,278.47,Facilities External Help Desk,Administration
Land Registry,Land Registry,12/12/2013,Weymouth Office,FM Managed Services,Carillion Services Ltd,Large,985582,3736,Facilities Managed Service,Administration
Land Registry,Land Registry,12/12/2013,Governance & Policy,Electricity,Carillion Services Ltd,Large,985582,18519.72,Electricity,Administration
Land Registry,Land Registry,12/12/2013,Governance & Policy,Gas,Carillion Services Ltd,Large,985582,40.52,Gas,Administration
Land Registry,Land Registry,12/12/2013,Governance & Policy,Grounds Maintenance,Carillion Services Ltd,Large,985582,151.84,Grounds Maintenance,Administration
Land Registry,Land Registry,12/12/2013,Governance & Policy,Security Expenses,Carillion Services Ltd,Large,985582,7757.62,Security Expenses,Administration
Land Registry,Land Registry,12/12/2013,Governance & Policy,Waste Disposal,Carillion Services Ltd,Large,985582,320.39,Waste Disposal,Administration
Land Registry,Land Registry,12/12/2013,Governance & Policy,Pest Control,Carillion Services Ltd,Large,985582,172.01,Pest Control,Administration
Land Registry,Land Registry,12/12/2013,Governance & Policy,Office Cleaning Expenses,Carillion Services Ltd,Large,985582,446.7,Office Cleaning Expenses,Administration
Land Registry,Land Registry,12/12/2013,Governance & Policy,Property Maintenance,Carillion Services Ltd,Large,985582,5153.25,Property Maintenance,Administration
Land Registry,Land Registry,12/12/2013,Governance & Policy,FF&F:Maintenance,Carillion Services Ltd,Large,985582,183.16,FF&F:Maintenance,Administration
Land Registry,Land Registry,12/12/2013,Governance & Policy,Property Maintenance,Carillion Services Ltd,Large,985582,151.64,Property Maintenance,Administration
Land Registry,Land Registry,12/12/2013,Governance & Policy,FM Ext Helpdesk,Carillion Services Ltd,Large,985582,394.72,Facilities External Help Desk,Administration
Land Registry,Land Registry,12/12/2013,Governance & Policy,FM Managed Services,Carillion Services Ltd,Large,985582,2237.88,Facilities Managed Service,Administration
Land Registry,Land Registry,12/12/2013,Governance & Policy,Water,Carillion Services Ltd,Large,985582,1360.81,Water,Administration
Land Registry,Land Registry,12/12/2013,Governance & Policy,Electricity,Carillion Services Ltd,Large,985582,15367.75,Electricity,Administration
Land Registry,Land Registry,12/12/2013,Governance & Policy,Gas,Carillion Services Ltd,Large,985582,322.77,Gas,Administration
Land Registry,Land Registry,12/12/2013,Governance & Policy,Grounds Maintenance,Carillion Services Ltd,Large,985582,151.84,Grounds Maintenance,Administration
Land Registry,Land Registry,12/12/2013,Governance & Policy,Security Expenses,Carillion Services Ltd,Large,985582,7757.62,Security Expenses,Administration
Land Registry,Land Registry,12/12/2013,Governance & Policy,Waste Disposal,Carillion Services Ltd,Large,985582,180.83,Waste Disposal,Administration
Land Registry,Land Registry,12/12/2013,Governance & Policy,Pest Control,Carillion Services Ltd,Large,985582,262.93,Pest Control,Administration
Land Registry,Land Registry,12/12/2013,Governance & Policy,Office Cleaning Expenses,Carillion Services Ltd,Large,985582,332.57,Office Cleaning Expenses,Administration
Land Registry,Land Registry,12/12/2013,Governance & Policy,Property Maintenance,Carillion Services Ltd,Large,985582,4991.08,Property Maintenance,Administration
Land Registry,Land Registry,12/12/2013,Governance & Policy,FF&F:Maintenance,Carillion Services Ltd,Large,985582,183.16,FF&F:Maintenance,Administration
Land Registry,Land Registry,12/12/2013,Governance & Policy,Property Maintenance,Carillion Services Ltd,Large,985582,128.29,Property Maintenance,Administration
Land Registry,Land Registry,12/12/2013,Governance & Policy,FM Ext Helpdesk,Carillion Services Ltd,Large,985582,390.01,Facilities External Help Desk,Administration
Land Registry,Land Registry,12/12/2013,Governance & Policy,FM Managed Services,Carillion Services Ltd,Large,985582,2211.17,Facilities Managed Service,Administration
Land Registry,Land Registry,12/12/2013,RFS15 - Plymouth Drakes Hill Court,Water,Carillion Services Ltd,Large,985582,28.72,Water,Administration
Land Registry,Land Registry,12/12/2013,RFS15 - Plymouth Drakes Hill Court,Electricity,Carillion Services Ltd,Large,985582,2074.7,Electricity,Administration
Land Registry,Land Registry,12/12/2013,RFS15 - Plymouth Drakes Hill Court,Gas,Carillion Services Ltd,Large,985582,951.55,Gas,Administration
Land Registry,Land Registry,12/12/2013,RFS15 - Plymouth Drakes Hill Court,Grounds Maintenance,Carillion Services Ltd,Large,985582,297.27,Grounds Maintenance,Administration
Land Registry,Land Registry,12/12/2013,RFS15 - Plymouth Drakes Hill Court,Waste Disposal,Carillion Services Ltd,Large,985582,20.01,Waste Disposal,Administration
Land Registry,Land Registry,12/12/2013,RFS15 - Plymouth Drakes Hill Court,Pest Control,Carillion Services Ltd,Large,985582,543.33,Pest Control,Administration
Land Registry,Land Registry,12/12/2013,RFS15 - Plymouth Drakes Hill Court,Office Cleaning Expenses,Carillion Services Ltd,Large,985582,521.67,Office Cleaning Expenses,Administration
Land Registry,Land Registry,12/12/2013,RFS15 - Plymouth Drakes Hill Court,Property Maintenance,Carillion Services Ltd,Large,985582,3249.74,Property Maintenance,Administration
Land Registry,Land Registry,12/12/2013,RFS15 - Plymouth Drakes Hill Court,FF&F:Maintenance,Carillion Services Ltd,Large,985582,91.58,FF&F:Maintenance,Administration
Land Registry,Land Registry,12/12/2013,RFS15 - Plymouth Drakes Hill Court,Property Maintenance,Carillion Services Ltd,Large,985582,120.52,Property Maintenance,Administration
Land Registry,Land Registry,12/12/2013,RFS15 - Plymouth Drakes Hill Court,FM Ext Helpdesk,Carillion Services Ltd,Large,985582,118.44,Facilities External Help Desk,Administration
Land Registry,Land Registry,12/12/2013,RFS15 - Plymouth Drakes Hill Court,FM Managed Services,Carillion Services Ltd,Large,985582,671.51,Facilities Managed Service,Administration
Land Registry,Land Registry,12/12/2013,Governance & Policy,Water,Carillion Services Ltd,Large,985582,6254.34,Water,Administration
Land Registry,Land Registry,12/12/2013,Governance & Policy,Electricity,Carillion Services Ltd,Large,985582,9446.16,Electricity,Administration
Land Registry,Land Registry,12/12/2013,Governance & Policy,Gas,Carillion Services Ltd,Large,985582,651.63,Gas,Administration
Land Registry,Land Registry,12/12/2013,Governance & Policy,Grounds Maintenance,Carillion Services Ltd,Large,985582,1632.93,Grounds Maintenance,Administration
Land Registry,Land Registry,12/12/2013,Governance & Policy,Security Expenses,Carillion Services Ltd,Large,985582,7144.88,Security Expenses,Administration
Land Registry,Land Registry,12/12/2013,Governance & Policy,Waste Disposal,Carillion Services Ltd,Large,985582,1604.45,Waste Disposal,Administration
Land Registry,Land Registry,12/12/2013,Governance & Policy,Pest Control,Carillion Services Ltd,Large,985582,90.04,Pest Control,Administration
Land Registry,Land Registry,12/12/2013,Governance & Policy,Office Cleaning Expenses,Carillion Services Ltd,Large,985582,8539.18,Office Cleaning Expenses,Administration
Land Registry,Land Registry,12/12/2013,Governance & Policy,Property Maintenance,Carillion Services Ltd,Large,985582,5448.86,Property Maintenance,Administration
Land Registry,Land Registry,12/12/2013,Governance & Policy,FF&F:Maintenance,Carillion Services Ltd,Large,985582,183.16,FF&F:Maintenance,Administration
Land Registry,Land Registry,12/12/2013,Governance & Policy,Property Maintenance,Carillion Services Ltd,Large,985582,129.99,Property Maintenance,Administration
Land Registry,Land Registry,12/12/2013,Governance & Policy,FM Ext Helpdesk,Carillion Services Ltd,Large,985582,474.56,Facilities External Help Desk,Administration
Land Registry,Land Registry,12/12/2013,Governance & Policy,FM Managed Services,Carillion Services Ltd,Large,985582,6716.21,Facilities Managed Service,Administration
Land Registry,Land Registry,12/12/2013,Dir: Finance,Water,Carillion Services Ltd,Large,985582,981.79,Water,Administration
Land Registry,Land Registry,12/12/2013,Dir: Finance,Electricity,Carillion Services Ltd,Large,985582,1079.38,Electricity,Administration
Land Registry,Land Registry,12/12/2013,Dir: Finance,Gas,Carillion Services Ltd,Large,985582,217.91,Gas,Administration
Land Registry,Land Registry,12/12/2013,Peterborough Office,Vending Machine Consumables & Repairs,Carillion Services Ltd,Large,985582,336.25,Vending Machine Consumables & Repairs,Administration
Land Registry,Land Registry,12/12/2013,Peterborough Office,Security Expenses,Carillion Services Ltd,Large,985582,12.31,Security Expenses,Administration
Land Registry,Land Registry,12/12/2013,Peterborough Office,Property Maintenance,Carillion Services Ltd,Large,985582,3104.48,Property Maintenance,Administration
Land Registry,Land Registry,12/12/2013,Nottingham Office,Security Expenses,Carillion Services Ltd,Large,985582,121.08,Security Expenses,Administration
Land Registry,Land Registry,12/12/2013,Nottingham Office,Property Maintenance,Carillion Services Ltd,Large,985582,14814.59,Property Maintenance,Administration
Land Registry,Land Registry,12/12/2013,Nottingham Office,FF&F:Maintenance,Carillion Services Ltd,Large,985582,730.54,FF&F:Maintenance,Administration
Land Registry,Land Registry,12/12/2013,Hull Office,Pest Control,Carillion Services Ltd,Large,985582,299.6,Pest Control,Administration
Land Registry,Land Registry,12/12/2013,Hull Office,Property Maintenance,Carillion Services Ltd,Large,985582,13812.99,Property Maintenance,Administration
Land Registry,Land Registry,12/12/2013,Hull Office,FF&F:Maintenance,Carillion Services Ltd,Large,985582,1458.59,FF&F:Maintenance,Administration
Land Registry,Land Registry,12/12/2013,Fylde Office,Security Expenses,Carillion Services Ltd,Large,985582,3317.36,Security Expenses,Administration
Land Registry,Land Registry,12/12/2013,Fylde Office,Waste Disposal,Carillion Services Ltd,Large,985582,208.43,Waste Disposal,Administration
Land Registry,Land Registry,12/12/2013,Fylde Office,Property Maintenance,Carillion Services Ltd,Large,985582,18286.18,Property Maintenance,Administration
Land Registry,Land Registry,12/12/2013,Fylde Office,FF&F:Maintenance,Carillion Services Ltd,Large,985582,106.42,FF&F:Maintenance,Administration
Land Registry,Land Registry,12/12/2013,Durham Office,Grounds Maintenance,Carillion Services Ltd,Large,985582,1169.94,Grounds Maintenance,Administration
Land Registry,Land Registry,12/12/2013,Durham Office,Security Expenses,Carillion Services Ltd,Large,985582,796.7,Security Expenses,Administration
Land Registry,Land Registry,12/12/2013,Durham Office,Waste Disposal,Carillion Services Ltd,Large,985582,120.43,Waste Disposal,Administration
Land Registry,Land Registry,12/12/2013,Durham Office,Property Maintenance,Carillion Services Ltd,Large,985582,49361.3,Property Maintenance,Administration
Land Registry,Land Registry,12/12/2013,Durham Office,FF&F:Maintenance,Carillion Services Ltd,Large,985582,511.53,FF&F:Maintenance,Administration
Land Registry,Land Registry,12/12/2013,Birkenhead Office,FF&F:Removals,Carillion Services Ltd,Large,985582,293.18,FF&F:Removals,Administration
Land Registry,Land Registry,12/12/2013,Birkenhead Office,Grounds Maintenance,Carillion Services Ltd,Large,985582,29.43,Grounds Maintenance,Administration
Land Registry,Land Registry,12/12/2013,Birkenhead Office,Security Expenses,Carillion Services Ltd,Large,985582,708.63,Security Expenses,Administration
Land Registry,Land Registry,12/12/2013,Birkenhead Office,Waste Disposal,Carillion Services Ltd,Large,985582,121.18,Waste Disposal,Administration
Land Registry,Land Registry,12/12/2013,Birkenhead Office,Property Maintenance,Carillion Services Ltd,Large,985582,5405.96,Property Maintenance,Administration
Land Registry,Land Registry,12/12/2013,Birkenhead Office,FF&F:Maintenance,Carillion Services Ltd,Large,985582,829.07,FF&F:Maintenance,Administration
Land Registry,Land Registry,12/12/2013,Telford Office,Grounds Maintenance,Carillion Services Ltd,Large,985582,4050.29,Grounds Maintenance,Administration
Land Registry,Land Registry,12/12/2013,Telford Office,Security Expenses,Carillion Services Ltd,Large,985582,81.49,Security Expenses,Administration
Land Registry,Land Registry,12/12/2013,Telford Office,Waste Disposal,Carillion Services Ltd,Large,985582,615.61,Waste Disposal,Administration
Land Registry,Land Registry,12/12/2013,Telford Office,Property Maintenance,Carillion Services Ltd,Large,985582,14513.98,Property Maintenance,Administration
Land Registry,Land Registry,12/12/2013,Telford Office,FF&F:Maintenance,Carillion Services Ltd,Large,985582,2784.09,FF&F:Maintenance,Administration
Land Registry,Land Registry,12/12/2013,Peterborough Office,FF&F:Maintenance,Carillion Services Ltd,Large,985582,916.52,FF&F:Maintenance,Administration
Land Registry,Land Registry,12/12/2013,Leicester Office,Grounds Maintenance,Carillion Services Ltd,Large,985582,679.02,Grounds Maintenance,Administration
Land Registry,Land Registry,12/12/2013,Leicester Office,Security Expenses,Carillion Services Ltd,Large,985582,285.22,Security Expenses,Administration
Land Registry,Land Registry,12/12/2013,Leicester Office,Waste Disposal,Carillion Services Ltd,Large,985582,553.82,Waste Disposal,Administration
Land Registry,Land Registry,12/12/2013,Leicester Office,Property Maintenance,Carillion Services Ltd,Large,985582,7888.01,Property Maintenance,Administration
Land Registry,Land Registry,12/12/2013,Leicester Office,FF&F:Maintenance,Carillion Services Ltd,Large,985582,638.58,FF&F:Maintenance,Administration
Land Registry,Land Registry,12/12/2013,Gloucester Computer Centre,Security Expenses,Carillion Services Ltd,Large,985582,87.91,Security Expenses,Administration
Land Registry,Land Registry,12/12/2013,Gloucester Computer Centre,Property Maintenance,Carillion Services Ltd,Large,985582,86986.1,Property Maintenance,Administration
Land Registry,Land Registry,12/12/2013,Gloucester Office,Security Expenses,Carillion Services Ltd,Large,985582,556.4,Security Expenses,Administration
Land Registry,Land Registry,12/12/2013,Gloucester Office,Waste Disposal,Carillion Services Ltd,Large,985582,121.18,Waste Disposal,Administration
Land Registry,Land Registry,12/12/2013,Gloucester Office,Property Maintenance,Carillion Services Ltd,Large,985582,26615.06,Property Maintenance,Administration
Land Registry,Land Registry,12/12/2013,Gloucester Office,FF&F:Maintenance,Carillion Services Ltd,Large,985582,245.8,FF&F:Maintenance,Administration
Land Registry,Land Registry,12/12/2013,Coventry Office,Grounds Maintenance,Carillion Services Ltd,Large,985582,117.7,Grounds Maintenance,Administration
Land Registry,Land Registry,12/12/2013,Coventry Office,Office Cleaning Expenses,Carillion Services Ltd,Large,985582,746.86,Office Cleaning Expenses,Administration
Land Registry,Land Registry,12/12/2013,Coventry Office,Property Maintenance,Carillion Services Ltd,Large,985582,1950.68,Property Maintenance,Administration
Land Registry,Land Registry,12/12/2013,Coventry Office,FF&F:Maintenance,Carillion Services Ltd,Large,985582,1234.24,FF&F:Maintenance,Administration
Land Registry,Land Registry,12/12/2013,Wales Office,Security Expenses,Carillion Services Ltd,Large,985582,2084.92,Security Expenses,Administration
Land Registry,Land Registry,12/12/2013,Wales Office,Waste Disposal,Carillion Services Ltd,Large,985582,443.66,Waste Disposal,Administration
Land Registry,Land Registry,12/12/2013,Wales Office,Property Maintenance,Carillion Services Ltd,Large,985582,28009.46,Property Maintenance,Administration
Land Registry,Land Registry,12/12/2013,Wales Office,FF&F:Maintenance,Carillion Services Ltd,Large,985582,599.15,FF&F:Maintenance,Administration
Land Registry,Land Registry,12/12/2013,Croydon Office,Security Expenses,Carillion Services Ltd,Large,985582,3467.52,Security Expenses,Administration
Land Registry,Land Registry,12/12/2013,Croydon Office,Waste Disposal,Carillion Services Ltd,Large,985582,214.56,Waste Disposal,Administration
Land Registry,Land Registry,12/12/2013,Croydon Office,Property Maintenance,Carillion Services Ltd,Large,985582,31901.11,Property Maintenance,Administration
Land Registry,Land Registry,12/12/2013,Weymouth Office,Property Maintenance,Carillion Services Ltd,Large,985582,7445.3,Property Maintenance,Administration
Land Registry,Land Registry,12/12/2013,Weymouth Office,Grounds Maintenance,Carillion Services Ltd,Large,985582,117.7,Grounds Maintenance,Administration
Land Registry,Land Registry,12/12/2013,Weymouth Office,Security Expenses,Carillion Services Ltd,Large,985582,136.01,Security Expenses,Administration
Land Registry,Land Registry,12/12/2013,Weymouth Office,FF&F:Maintenance,Carillion Services Ltd,Large,985582,164.13,FF&F:Maintenance,Administration
Land Registry,Land Registry,12/12/2013,Governance & Policy,Security Expenses,Carillion Services Ltd,Large,985582,1215.66,Security Expenses,Administration
Land Registry,Land Registry,12/12/2013,Governance & Policy,Property Maintenance,Carillion Services Ltd,Large,985582,8155.48,Property Maintenance,Administration
Land Registry,Land Registry,12/12/2013,Governance & Policy,Security Expenses,Carillion Services Ltd,Large,985582,28.86,Security Expenses,Administration
Land Registry,Land Registry,12/12/2013,Governance & Policy,Waste Disposal,Carillion Services Ltd,Large,985582,414.71,Waste Disposal,Administration
Land Registry,Land Registry,12/12/2013,Governance & Policy,Property Maintenance,Carillion Services Ltd,Large,985582,11353.7,Property Maintenance,Administration
Land Registry,Land Registry,12/12/2013,RFS15 - Plymouth Drakes Hill Court,Security Expenses,Carillion Services Ltd,Large,985582,7234.25,Security Expenses,Administration
Land Registry,Land Registry,12/12/2013,RFS15 - Plymouth Drakes Hill Court,Property Maintenance,Carillion Services Ltd,Large,985582,2920.76,Property Maintenance,Administration
Land Registry,Land Registry,12/12/2013,Governance & Policy,Security Expenses,Carillion Services Ltd,Large,985582,481.56,Security Expenses,Administration
Land Registry,Land Registry,12/12/2013,Governance & Policy,Property Maintenance,Carillion Services Ltd,Large,985582,34277.66,Property Maintenance,Administration
Land Registry,Land Registry,12/12/2013,Dir: HR,Security Expenses,Carillion Services Ltd,Large,985582,86.58,Security Expenses,Administration
Land Registry,Land Registry,12/12/2013,Dir: HR,Property Management; Other Fees,Carillion Services Ltd,Large,985582,3933.32,Property Management; Other Fees,Administration
Land Registry,Land Registry,12/12/2013,Dir: Finance,Grounds Maintenance,Carillion Services Ltd,Large,985582,272.64,Grounds Maintenance,Administration
Land Registry,Land Registry,12/12/2013,Dir: Finance,Property Management; Other Fees,Carillion Services Ltd,Large,985582,439.18,Property Management; Other Fees,Administration
Land Registry,Land Registry,12/12/2013,Dir: Finance,"Property Management; Advice, Surveys & Inspections",Carillion Services Ltd,Large,985582,11719.57,"Property Management; Advice, Surveys & Inspections",Administration
Land Registry,Land Registry,13/12/2013,Finance Director,Employment Agency Staff Costs,Penna Plc,Large,985804,23200,Employment Agency Staff Costs,Administration
Land Registry,Land Registry,16/12/2013,IS Service Delivery,DITI Managed Service,Steria Limited,Large,985892,690858.77,IT Managed Service,Administration
Land Registry,Land Registry,16/12/2013,IS Service Delivery,DITI Managed Service,Steria Limited,Large,985892,654369.52,IT Managed Service,Administration
Land Registry,Land Registry,16/12/2013,Nottingham Office,Rates Payable,Nottingham City Council,Large,801342,968.6,Rates Payable,Administration
Land Registry,Land Registry,17/12/2013,Hull Office,Letter Post,Royal Mail,Large,986342,283.33,Letter Post,Administration
Land Registry,Land Registry,17/12/2013,Central Facilities Management Team,Letter Post,Royal Mail,Large,986342,0.68,Letter Post,Administration
Land Registry,Land Registry,17/12/2013,Nottingham Office,Letter Post,Royal Mail,Large,986342,0.46,Letter Post,Administration
Land Registry,Land Registry,17/12/2013,Birkenhead Office,Letter Post,Royal Mail,Large,986342,5.7,Letter Post,Administration
Land Registry,Land Registry,17/12/2013,Wales Office,Letter Post,Royal Mail,Large,986342,37.36,Letter Post,Administration
Land Registry,Land Registry,17/12/2013,Telford Office,Letter Post,Royal Mail,Large,986342,23.9,Letter Post,Administration
Land Registry,Land Registry,17/12/2013,Land Charges,Letter Post,Royal Mail,Large,986342,3.7,Letter Post,Administration
Land Registry,Land Registry,17/12/2013,Plymouth Office,Letter Post,Royal Mail,Large,986342,11.1,Letter Post,Administration
Land Registry,Land Registry,17/12/2013,Weymouth Office,Letter Post,Royal Mail,Large,986342,27.14,Letter Post,Administration
Land Registry,Land Registry,17/12/2013,Nottingham Office,Letter Post,Royal Mail,Large,986342,139.5,Letter Post,Administration
Land Registry,Land Registry,17/12/2013,Coventry Office,Letter Post,Royal Mail,Large,986342,8.62,Letter Post,Administration
Land Registry,Land Registry,17/12/2013,Croydon Office,Letter Post,Royal Mail,Large,986342,8.12,Letter Post,Administration
Land Registry,Land Registry,17/12/2013,Peterborough Office,Parcel and Datapost,Royal Mail,Large,986342,10.17,Parcel and Datapost,Administration
Land Registry,Land Registry,17/12/2013,Durham Office,Letter Post,Royal Mail,Large,986342,15.28,Letter Post,Administration
Land Registry,Land Registry,17/12/2013,Birkenhead Office,Letter Post,Royal Mail,Large,986342,109.3,Letter Post,Administration
Land Registry,Land Registry,17/12/2013,Hull Office,Letter Post,Royal Mail,Large,986342,22.32,Letter Post,Administration
Land Registry,Land Registry,17/12/2013,Land Charges,Letter Post,Royal Mail,Large,986342,3.05,Letter Post,Administration
Land Registry,Land Registry,17/12/2013,Plymouth Office,Letter Post,Royal Mail,Large,986342,9.14,Letter Post,Administration
Land Registry,Land Registry,17/12/2013,Leicester Office,Letter Post,Royal Mail,Large,986342,19.2,Letter Post,Administration
Land Registry,Land Registry,17/12/2013,Durham Office,Letter Post,Royal Mail,Large,986342,0.29,Letter Post,Administration
Land Registry,Land Registry,17/12/2013,Birkenhead Office,Letter Post,Royal Mail,Large,986342,25.3,Letter Post,Administration
Land Registry,Land Registry,17/12/2013,Fylde Office,Letter Post,Royal Mail,Large,986342,8908.79,Letter Post,Administration
Land Registry,Land Registry,17/12/2013,Birkenhead Office,Letter Post,Royal Mail,Large,986342,7737.07,Letter Post,Administration
Land Registry,Land Registry,17/12/2013,Nottingham Office,Letter Post,Royal Mail,Large,986342,5024.24,Letter Post,Administration
Land Registry,Land Registry,17/12/2013,Durham Office,Letter Post,Royal Mail,Large,986342,8219.97,Letter Post,Administration
Land Registry,Land Registry,17/12/2013,Hull Office,Letter Post,Royal Mail,Large,986342,2721.96,Letter Post,Administration
Land Registry,Land Registry,17/12/2013,Croydon Office,Letter Post,Royal Mail,Large,986342,2208.81,Letter Post,Administration
Land Registry,Land Registry,17/12/2013,Peterborough Office,Letter Post,Royal Mail,Large,986342,2954.4,Letter Post,Administration
Land Registry,Land Registry,17/12/2013,Telford Office,Letter Post,Royal Mail,Large,986342,3114.29,Letter Post,Administration
Land Registry,Land Registry,17/12/2013,Leicester Office,Letter Post,Royal Mail,Large,986342,2618.18,Letter Post,Administration
Land Registry,Land Registry,17/12/2013,Coventry Office,Letter Post,Royal Mail,Large,986342,10066.7,Letter Post,Administration
Land Registry,Land Registry,17/12/2013,Land Charges,Letter Post,Royal Mail,Large,986342,0.55,Letter Post,Administration
Land Registry,Land Registry,17/12/2013,Plymouth Office,Letter Post,Royal Mail,Large,986342,1.66,Letter Post,Administration
Land Registry,Land Registry,17/12/2013,Land Charges,Letter Post,Royal Mail,Large,986342,1045.63,Letter Post,Administration
Land Registry,Land Registry,17/12/2013,Plymouth Office,Letter Post,Royal Mail,Large,986342,3136.88,Letter Post,Administration
Land Registry,Land Registry,17/12/2013,Land Charges,Letter Post,Royal Mail,Large,986342,0.2,Letter Post,Administration
Land Registry,Land Registry,17/12/2013,Plymouth Office,Letter Post,Royal Mail,Large,986342,0.59,Letter Post,Administration
Land Registry,Land Registry,17/12/2013,IS Service Delivery,Letter Post,Royal Mail,Large,986342,17034.89,Letter Post,Administration
Land Registry,Land Registry,17/12/2013,Gloucester Office,Letter Post,Royal Mail,Large,986342,4482.03,Letter Post,Administration
Land Registry,Land Registry,17/12/2013,Weymouth Office,Letter Post,Royal Mail,Large,986342,3020.6,Letter Post,Administration
Land Registry,Land Registry,17/12/2013,Wales Office,Letter Post,Royal Mail,Large,986342,12760.55,Letter Post,Administration
Land Registry,Land Registry,17/12/2013,Nottingham Office,Letter Post,Royal Mail,Large,986342,283.33,Letter Post,Administration
Land Registry,Land Registry,17/12/2013,Weymouth Office,Letter Post,Royal Mail,Large,986342,283.33,Letter Post,Administration
Land Registry,Land Registry,17/12/2013,Durham Office,Letter Post,Royal Mail,Large,986342,45,Letter Post,Administration
Land Registry,Land Registry,17/12/2013,Coventry Office,Letter Post,Royal Mail,Large,986342,283.33,Letter Post,Administration
Land Registry,Land Registry,17/12/2013,Leicester Office,Letter Post,Royal Mail,Large,986342,283.33,Letter Post,Administration
Land Registry,Land Registry,17/12/2013,Croydon Office,Letter Post,Royal Mail,Large,986342,283.33,Letter Post,Administration
Land Registry,Land Registry,17/12/2013,Gloucester Office,Letter Post,Royal Mail,Large,986342,283.33,Letter Post,Administration
Land Registry,Land Registry,17/12/2013,Durham Office,Letter Post,Royal Mail,Large,986342,283.33,Letter Post,Administration
Land Registry,Land Registry,17/12/2013,Telford Office,Letter Post,Royal Mail,Large,986342,45,Letter Post,Administration
Land Registry,Land Registry,17/12/2013,Central Facilities Management Team,Letter Post,Royal Mail,Large,986342,45,Letter Post,Administration
Land Registry,Land Registry,17/12/2013,Leicester Office,Letter Post,Royal Mail,Large,986342,45,Letter Post,Administration
Land Registry,Land Registry,17/12/2013,Croydon Office,Letter Post,Royal Mail,Large,986342,283.33,Letter Post,Administration
Land Registry,Land Registry,19/12/2013,Plymouth Office,Stationery National Contracts,Banner Business Services Ltd,Large,986762,30.68,Stationery National Contracts,Administration
Land Registry,Land Registry,19/12/2013,Birkenhead Office,Stationery National Contracts,Banner Business Services Ltd,Large,986762,6,Stationery National Contracts,Administration
Land Registry,Land Registry,19/12/2013,Nottingham Office,Stationery National Contracts,Banner Business Services Ltd,Large,986762,0.24,Stationery National Contracts,Administration
Land Registry,Land Registry,19/12/2013,IS Service Delivery,Stationery National Contracts,Banner Business Services Ltd,Large,986762,9.03,Stationery National Contracts,Administration
Land Registry,Land Registry,19/12/2013,Governance & Policy,Stationery National Contracts,Banner Business Services Ltd,Large,986762,14.14,Stationery National Contracts,Administration
Land Registry,Land Registry,19/12/2013,Internal Solutions Group,Stationery National Contracts,Banner Business Services Ltd,Large,986762,8,Stationery National Contracts,Administration
Land Registry,Land Registry,19/12/2013,Weymouth Office,Stationery National Contracts,Banner Business Services Ltd,Large,986762,147.95,Stationery National Contracts,Administration
Land Registry,Land Registry,19/12/2013,Wales Office,Stationery National Contracts,Banner Business Services Ltd,Large,986762,13,Stationery National Contracts,Administration
Land Registry,Land Registry,19/12/2013,Plymouth Office,Stationery National Contracts,Banner Business Services Ltd,Large,986762,10.61,Stationery National Contracts,Administration
Land Registry,Land Registry,19/12/2013,Peterborough Office,Stationery National Contracts,Banner Business Services Ltd,Large,986762,42.9,Stationery National Contracts,Administration
Land Registry,Land Registry,19/12/2013,Durham Office,Stationery National Contracts,Banner Business Services Ltd,Large,986762,9.26,Stationery National Contracts,Administration
Land Registry,Land Registry,19/12/2013,Birkenhead Office,Stationery National Contracts,Banner Business Services Ltd,Large,986762,25.88,Stationery National Contracts,Administration
Land Registry,Land Registry,19/12/2013,IS Service Delivery,Stationery National Contracts,Banner Business Services Ltd,Large,986762,1.57,Stationery National Contracts,Administration
Land Registry,Land Registry,19/12/2013,Governance & Policy,Stationery National Contracts,Banner Business Services Ltd,Large,986762,1.94,Stationery National Contracts,Administration
Land Registry,Land Registry,19/12/2013,Internal Solutions Group,Stationery National Contracts,Banner Business Services Ltd,Large,986762,5.54,Stationery National Contracts,Administration
Land Registry,Land Registry,19/12/2013,Weymouth Office,Stationery National Contracts,Banner Business Services Ltd,Large,986762,2.27,Stationery National Contracts,Administration
Land Registry,Land Registry,19/12/2013,Wales Office,Stationery National Contracts,Banner Business Services Ltd,Large,986762,4.71,Stationery National Contracts,Administration
Land Registry,Land Registry,19/12/2013,Plymouth Office,Stationery National Contracts,Banner Business Services Ltd,Large,986762,69.28,Stationery National Contracts,Administration
Land Registry,Land Registry,19/12/2013,Peterborough Office,Stationery National Contracts,Banner Business Services Ltd,Large,986762,22.43,Stationery National Contracts,Administration
Land Registry,Land Registry,19/12/2013,Nottingham Office,Stationery National Contracts,Banner Business Services Ltd,Large,986762,15.72,Stationery National Contracts,Administration
Land Registry,Land Registry,19/12/2013,Fylde Office,Stationery National Contracts,Banner Business Services Ltd,Large,986762,42.3,Stationery National Contracts,Administration
Land Registry,Land Registry,19/12/2013,Hull Office,Stationery National Contracts,Banner Business Services Ltd,Large,986762,28.68,Stationery National Contracts,Administration
Land Registry,Land Registry,19/12/2013,Durham Office,Stationery National Contracts,Banner Business Services Ltd,Large,986762,31.27,Stationery National Contracts,Administration
Land Registry,Land Registry,19/12/2013,Croydon Office,Stationery National Contracts,Banner Business Services Ltd,Large,986762,1.34,Stationery National Contracts,Administration
Land Registry,Land Registry,19/12/2013,Birkenhead Office,Stationery National Contracts,Banner Business Services Ltd,Large,986762,125.72,Stationery National Contracts,Administration
Land Registry,Land Registry,19/12/2013,Nottingham Office,Stationery National Contracts,Banner Business Services Ltd,Large,986762,0.91,Stationery National Contracts,Administration
Land Registry,Land Registry,19/12/2013,IS Service Delivery,Stationery National Contracts,Banner Business Services Ltd,Large,986762,1.61,Stationery National Contracts,Administration
Land Registry,Land Registry,19/12/2013,Internal Solutions Group,Stationery National Contracts,Banner Business Services Ltd,Large,986762,19.73,Stationery National Contracts,Administration
Land Registry,Land Registry,19/12/2013,Weymouth Office,Stationery National Contracts,Banner Business Services Ltd,Large,986762,17.99,Stationery National Contracts,Administration
Land Registry,Land Registry,19/12/2013,Wales Office,Stationery National Contracts,Banner Business Services Ltd,Large,986762,5.9,Stationery National Contracts,Administration
Land Registry,Land Registry,19/12/2013,Plymouth Office,Stationery National Contracts,Banner Business Services Ltd,Large,986762,161.93,Stationery National Contracts,Administration
Land Registry,Land Registry,19/12/2013,Peterborough Office,Stationery National Contracts,Banner Business Services Ltd,Large,986762,55.08,Stationery National Contracts,Administration
Land Registry,Land Registry,19/12/2013,Nottingham Office,Stationery National Contracts,Banner Business Services Ltd,Large,986762,57.59,Stationery National Contracts,Administration
Land Registry,Land Registry,19/12/2013,Fylde Office,Stationery National Contracts,Banner Business Services Ltd,Large,986762,125.3,Stationery National Contracts,Administration
Land Registry,Land Registry,19/12/2013,Hull Office,Stationery National Contracts,Banner Business Services Ltd,Large,986762,11.77,Stationery National Contracts,Administration
Land Registry,Land Registry,19/12/2013,Gloucester Office,Stationery National Contracts,Banner Business Services Ltd,Large,986762,15.7,Stationery National Contracts,Administration
Land Registry,Land Registry,19/12/2013,Durham Office,Stationery National Contracts,Banner Business Services Ltd,Large,986762,27.88,Stationery National Contracts,Administration
Land Registry,Land Registry,19/12/2013,Croydon Office,Stationery National Contracts,Banner Business Services Ltd,Large,986762,1.93,Stationery National Contracts,Administration
Land Registry,Land Registry,19/12/2013,Coventry Office,Stationery National Contracts,Banner Business Services Ltd,Large,986762,9.46,Stationery National Contracts,Administration
Land Registry,Land Registry,19/12/2013,Birkenhead Office,Stationery National Contracts,Banner Business Services Ltd,Large,986762,28,Stationery National Contracts,Administration
Land Registry,Land Registry,19/12/2013,Nottingham Office,Stationery National Contracts,Banner Business Services Ltd,Large,986762,0.84,Stationery National Contracts,Administration
Land Registry,Land Registry,19/12/2013,IS Service Delivery,Stationery National Contracts,Banner Business Services Ltd,Large,986762,1.04,Stationery National Contracts,Administration
Land Registry,Land Registry,19/12/2013,Internal Solutions Group,Stationery National Contracts,Banner Business Services Ltd,Large,986762,19.73,Stationery National Contracts,Administration
Land Registry,Land Registry,19/12/2013,Weymouth Office,Stationery National Contracts,Banner Business Services Ltd,Large,986762,34.99,Stationery National Contracts,Administration
Land Registry,Land Registry,19/12/2013,Wales Office,Stationery National Contracts,Banner Business Services Ltd,Large,986762,34.66,Stationery National Contracts,Administration
Land Registry,Land Registry,19/12/2013,Plymouth Office,Stationery National Contracts,Banner Business Services Ltd,Large,986762,84.39,Stationery National Contracts,Administration
Land Registry,Land Registry,19/12/2013,Peterborough Office,Stationery National Contracts,Banner Business Services Ltd,Large,986762,35.19,Stationery National Contracts,Administration
Land Registry,Land Registry,19/12/2013,Nottingham Office,Stationery National Contracts,Banner Business Services Ltd,Large,986762,40.11,Stationery National Contracts,Administration
Land Registry,Land Registry,19/12/2013,Leicester Office,Stationery National Contracts,Banner Business Services Ltd,Large,986762,25.64,Stationery National Contracts,Administration
Land Registry,Land Registry,19/12/2013,Fylde Office,Stationery National Contracts,Banner Business Services Ltd,Large,986762,125.29,Stationery National Contracts,Administration
Land Registry,Land Registry,19/12/2013,Hull Office,Stationery National Contracts,Banner Business Services Ltd,Large,986762,310.24,Stationery National Contracts,Administration
Land Registry,Land Registry,19/12/2013,Gloucester Office,Stationery National Contracts,Banner Business Services Ltd,Large,986762,35.36,Stationery National Contracts,Administration
Land Registry,Land Registry,19/12/2013,Durham Office,Stationery National Contracts,Banner Business Services Ltd,Large,986762,133.8,Stationery National Contracts,Administration
Land Registry,Land Registry,19/12/2013,Croydon Office,Stationery National Contracts,Banner Business Services Ltd,Large,986762,24.21,Stationery National Contracts,Administration
Land Registry,Land Registry,19/12/2013,Coventry Office,Stationery National Contracts,Banner Business Services Ltd,Large,986762,527.84,Stationery National Contracts,Administration
Land Registry,Land Registry,19/12/2013,Birkenhead Office,Stationery National Contracts,Banner Business Services Ltd,Large,986762,77.94,Stationery National Contracts,Administration
Land Registry,Land Registry,19/12/2013,Nottingham Office,Stationery National Contracts,Banner Business Services Ltd,Large,986762,1.53,Stationery National Contracts,Administration
Land Registry,Land Registry,19/12/2013,IS Service Delivery,Stationery National Contracts,Banner Business Services Ltd,Large,986762,13.46,Stationery National Contracts,Administration
Land Registry,Land Registry,19/12/2013,Governance & Policy,Stationery National Contracts,Banner Business Services Ltd,Large,986762,2.36,Stationery National Contracts,Administration
Land Registry,Land Registry,19/12/2013,Internal Solutions Group,Stationery National Contracts,Banner Business Services Ltd,Large,986762,2.7,Stationery National Contracts,Administration
Land Registry,Land Registry,19/12/2013,Projects and Programme Centre,Stationery National Contracts,Banner Business Services Ltd,Large,986762,2.28,Stationery National Contracts,Administration
Land Registry,Land Registry,19/12/2013,HR,Stationery National Contracts,Banner Business Services Ltd,Large,986762,7.08,Stationery National Contracts,Administration
Land Registry,Land Registry,19/12/2013,Weymouth Office,Stationery National Contracts,Banner Business Services Ltd,Large,986762,93.46,Stationery National Contracts,Administration
Land Registry,Land Registry,19/12/2013,Wales Office,Stationery National Contracts,Banner Business Services Ltd,Large,986762,19.72,Stationery National Contracts,Administration
Land Registry,Land Registry,19/12/2013,Croydon Office,Stationery National Contracts,Banner Business Services Ltd,Large,986762,7.22,Stationery National Contracts,Administration
Land Registry,Land Registry,19/12/2013,Coventry Office,Stationery National Contracts,Banner Business Services Ltd,Large,986762,395.92,Stationery National Contracts,Administration
Land Registry,Land Registry,19/12/2013,Birkenhead Office,Stationery National Contracts,Banner Business Services Ltd,Large,986762,499.1,Stationery National Contracts,Administration
Land Registry,Land Registry,19/12/2013,Nottingham Office,Stationery National Contracts,Banner Business Services Ltd,Large,986762,4.73,Stationery National Contracts,Administration
Land Registry,Land Registry,19/12/2013,IS Service Delivery,Stationery National Contracts,Banner Business Services Ltd,Large,986762,6.78,Stationery National Contracts,Administration
Land Registry,Land Registry,19/12/2013,Governance & Policy,Stationery National Contracts,Banner Business Services Ltd,Large,986762,16.9,Stationery National Contracts,Administration
Land Registry,Land Registry,19/12/2013,Internal Solutions Group,Stationery National Contracts,Banner Business Services Ltd,Large,986762,7.54,Stationery National Contracts,Administration
Land Registry,Land Registry,19/12/2013,Research & Data Mining,Stationery National Contracts,Banner Business Services Ltd,Large,986762,9.12,Stationery National Contracts,Administration
Land Registry,Land Registry,19/12/2013,Projects and Programme Centre,Stationery National Contracts,Banner Business Services Ltd,Large,986762,3.41,Stationery National Contracts,Administration
Land Registry,Land Registry,19/12/2013,Finance Group,Stationery National Contracts,Banner Business Services Ltd,Large,986762,8.79,Stationery National Contracts,Administration
Land Registry,Land Registry,19/12/2013,HR,Stationery National Contracts,Banner Business Services Ltd,Large,986762,1.11,Stationery National Contracts,Administration
Land Registry,Land Registry,19/12/2013,Land Charges,Stationery National Contracts,Banner Business Services Ltd,Large,986762,9.66,Stationery National Contracts,Administration
Land Registry,Land Registry,19/12/2013,Weymouth Office,Stationery National Contracts,Banner Business Services Ltd,Large,986762,305.1,Stationery National Contracts,Administration
Land Registry,Land Registry,19/12/2013,Wales Office,Stationery National Contracts,Banner Business Services Ltd,Large,986762,382.46,Stationery National Contracts,Administration
Land Registry,Land Registry,19/12/2013,Telford Office,Stationery National Contracts,Banner Business Services Ltd,Large,986762,296.71,Stationery National Contracts,Administration
Land Registry,Land Registry,19/12/2013,Plymouth Office,Stationery National Contracts,Banner Business Services Ltd,Large,986762,46.1,Stationery National Contracts,Administration
Land Registry,Land Registry,19/12/2013,Peterborough Office,Stationery National Contracts,Banner Business Services Ltd,Large,986762,94.18,Stationery National Contracts,Administration
Land Registry,Land Registry,19/12/2013,Nottingham Office,Stationery National Contracts,Banner Business Services Ltd,Large,986762,50.27,Stationery National Contracts,Administration
Land Registry,Land Registry,19/12/2013,Leicester Office,Stationery National Contracts,Banner Business Services Ltd,Large,986762,279.74,Stationery National Contracts,Administration
Land Registry,Land Registry,19/12/2013,Fylde Office,Stationery National Contracts,Banner Business Services Ltd,Large,986762,158.57,Stationery National Contracts,Administration
Land Registry,Land Registry,19/12/2013,Hull Office,Stationery National Contracts,Banner Business Services Ltd,Large,986762,355.78,Stationery National Contracts,Administration
Land Registry,Land Registry,19/12/2013,Gloucester Office,Stationery National Contracts,Banner Business Services Ltd,Large,986762,126.59,Stationery National Contracts,Administration
Land Registry,Land Registry,19/12/2013,Durham Office,Stationery National Contracts,Banner Business Services Ltd,Large,986762,428.44,Stationery National Contracts,Administration
Land Registry,Land Registry,19/12/2013,Coventry Office,Stationery National Contracts,Banner Business Services Ltd,Large,986762,3.48,Stationery National Contracts,Administration
Land Registry,Land Registry,19/12/2013,Wales Office,Stationery National Contracts,Banner Business Services Ltd,Large,986762,251.19,Stationery National Contracts,Administration
Land Registry,Land Registry,19/12/2013,Telford Office,Stationery National Contracts,Banner Business Services Ltd,Large,986762,448,Stationery National Contracts,Administration
Land Registry,Land Registry,19/12/2013,Plymouth Office,Stationery National Contracts,Banner Business Services Ltd,Large,986762,158.19,Stationery National Contracts,Administration
Land Registry,Land Registry,19/12/2013,Peterborough Office,Stationery National Contracts,Banner Business Services Ltd,Large,986762,415.75,Stationery National Contracts,Administration
Land Registry,Land Registry,19/12/2013,Nottingham Office,Stationery National Contracts,Banner Business Services Ltd,Large,986762,335.94,Stationery National Contracts,Administration
Land Registry,Land Registry,19/12/2013,Leicester Office,Stationery National Contracts,Banner Business Services Ltd,Large,986762,265.12,Stationery National Contracts,Administration
Land Registry,Land Registry,19/12/2013,Fylde Office,Stationery National Contracts,Banner Business Services Ltd,Large,986762,79.61,Stationery National Contracts,Administration
Land Registry,Land Registry,19/12/2013,Hull Office,Stationery National Contracts,Banner Business Services Ltd,Large,986762,30.73,Stationery National Contracts,Administration
Land Registry,Land Registry,19/12/2013,Coventry Office,Stationery National Contracts,Banner Business Services Ltd,Large,986762,7.88,Stationery National Contracts,Administration
Land Registry,Land Registry,19/12/2013,Birkenhead Office,Stationery National Contracts,Banner Business Services Ltd,Large,986762,1163.22,Stationery National Contracts,Administration
Land Registry,Land Registry,19/12/2013,Coventry Office,Waste Disposal,Banner Business Services Ltd,Large,986762,241.5,Waste Disposal,Administration
Land Registry,Land Registry,19/12/2013,Fylde Office,Waste Disposal,Banner Business Services Ltd,Large,986762,149.5,Waste Disposal,Administration
Land Registry,Land Registry,19/12/2013,Croydon Office,Waste Disposal,Banner Business Services Ltd,Large,986762,84.5,Waste Disposal,Administration
Land Registry,Land Registry,19/12/2013,Fylde Office,Waste Disposal,Banner Business Services Ltd,Large,986762,149.5,Waste Disposal,Administration
Land Registry,Land Registry,19/12/2013,Coventry Office,Waste Disposal,Banner Business Services Ltd,Large,986762,315,Waste Disposal,Administration
Land Registry,Land Registry,19/12/2013,Leicester Office,Waste Disposal,Banner Business Services Ltd,Large,986762,126,Waste Disposal,Administration
Land Registry,Land Registry,19/12/2013,Central Facilities Management Team,Waste Disposal,Banner Business Services Ltd,Large,986762,7964.75,Waste Disposal,Administration
Land Registry,Land Registry,19/12/2013,IS Service Delivery,Stationery National Contracts,Banner Business Services Ltd,Large,986762,457.93,Stationery National Contracts,Administration
Land Registry,Land Registry,19/12/2013,Governance & Policy,Stationery National Contracts,Banner Business Services Ltd,Large,986762,28.64,Stationery National Contracts,Administration
Land Registry,Land Registry,19/12/2013,Internal Solutions Group,Stationery National Contracts,Banner Business Services Ltd,Large,986762,59.32,Stationery National Contracts,Administration
Land Registry,Land Registry,19/12/2013,Research & Data Mining,Stationery National Contracts,Banner Business Services Ltd,Large,986762,1.14,Stationery National Contracts,Administration
Land Registry,Land Registry,19/12/2013,Central RFS,Stationery National Contracts,Banner Business Services Ltd,Large,986762,635.55,Stationery National Contracts,Administration
Land Registry,Land Registry,19/12/2013,Projects and Programme Centre,Stationery National Contracts,Banner Business Services Ltd,Large,986762,8.83,Stationery National Contracts,Administration
Land Registry,Land Registry,19/12/2013,Corp Procurement,Stationery National Contracts,Banner Business Services Ltd,Large,986762,18.81,Stationery National Contracts,Administration
Land Registry,Land Registry,19/12/2013,Finance Group,Stationery National Contracts,Banner Business Services Ltd,Large,986762,11.91,Stationery National Contracts,Administration
Land Registry,Land Registry,19/12/2013,Learning and Development,Stationery National Contracts,Banner Business Services Ltd,Large,986762,3.77,Stationery National Contracts,Administration
Land Registry,Land Registry,19/12/2013,HR,Stationery National Contracts,Banner Business Services Ltd,Large,986762,48.25,Stationery National Contracts,Administration
Land Registry,Land Registry,19/12/2013,Chief Executives Office,Stationery National Contracts,Banner Business Services Ltd,Large,986762,31.4,Stationery National Contracts,Administration
Land Registry,Land Registry,19/12/2013,Land Charges,Stationery National Contracts,Banner Business Services Ltd,Large,986762,160.67,Stationery National Contracts,Administration
Land Registry,Land Registry,19/12/2013,Weymouth Office,Stationery National Contracts,Banner Business Services Ltd,Large,986762,610.71,Stationery National Contracts,Administration
Land Registry,Land Registry,19/12/2013,Wales Office,Stationery National Contracts,Banner Business Services Ltd,Large,986762,1917.52,Stationery National Contracts,Administration
Land Registry,Land Registry,19/12/2013,Telford Office,Stationery National Contracts,Banner Business Services Ltd,Large,986762,502.19,Stationery National Contracts,Administration
Land Registry,Land Registry,19/12/2013,Plymouth Office,Stationery National Contracts,Banner Business Services Ltd,Large,986762,305.85,Stationery National Contracts,Administration
Land Registry,Land Registry,19/12/2013,Peterborough Office,Stationery National Contracts,Banner Business Services Ltd,Large,986762,308.93,Stationery National Contracts,Administration
Land Registry,Land Registry,19/12/2013,Nottingham Office,Stationery National Contracts,Banner Business Services Ltd,Large,986762,1568.67,Stationery National Contracts,Administration
Land Registry,Land Registry,19/12/2013,Leicester Office,Stationery National Contracts,Banner Business Services Ltd,Large,986762,154.53,Stationery National Contracts,Administration
Land Registry,Land Registry,19/12/2013,Fylde Office,Stationery National Contracts,Banner Business Services Ltd,Large,986762,967.76,Stationery National Contracts,Administration
Land Registry,Land Registry,19/12/2013,Hull Office,Stationery National Contracts,Banner Business Services Ltd,Large,986762,563.57,Stationery National Contracts,Administration
Land Registry,Land Registry,19/12/2013,Gloucester Office,Stationery National Contracts,Banner Business Services Ltd,Large,986762,1400.19,Stationery National Contracts,Administration
Land Registry,Land Registry,19/12/2013,Plymouth Office,Stationery National Contracts,Banner Business Services Ltd,Large,986762,189.1,Stationery National Contracts,Administration
Land Registry,Land Registry,19/12/2013,Nottingham Office,Stationery National Contracts,Banner Business Services Ltd,Large,986762,1.95,Stationery National Contracts,Administration
Land Registry,Land Registry,19/12/2013,Plymouth Office,Stationery National Contracts,Banner Business Services Ltd,Large,986762,26.25,Stationery National Contracts,Administration
Land Registry,Land Registry,19/12/2013,Birkenhead Office,Stationery National Contracts,Banner Business Services Ltd,Large,986762,10.72,Stationery National Contracts,Administration
Land Registry,Land Registry,19/12/2013,Plymouth Office,Stationery National Contracts,Banner Business Services Ltd,Large,986762,118.36,Stationery National Contracts,Administration
Land Registry,Land Registry,19/12/2013,Birkenhead Office,Stationery National Contracts,Banner Business Services Ltd,Large,986762,79.66,Stationery National Contracts,Administration
Land Registry,Land Registry,19/12/2013,Nottingham Office,Stationery National Contracts,Banner Business Services Ltd,Large,986762,8.75,Stationery National Contracts,Administration
Land Registry,Land Registry,19/12/2013,Plymouth Office,Stationery National Contracts,Banner Business Services Ltd,Large,986762,123.37,Stationery National Contracts,Administration
Land Registry,Land Registry,19/12/2013,Birkenhead Office,Stationery National Contracts,Banner Business Services Ltd,Large,986762,69.84,Stationery National Contracts,Administration
Land Registry,Land Registry,19/12/2013,Nottingham Office,Stationery National Contracts,Banner Business Services Ltd,Large,986762,8.75,Stationery National Contracts,Administration
Land Registry,Land Registry,19/12/2013,Plymouth Office,Stationery National Contracts,Banner Business Services Ltd,Large,986762,215.44,Stationery National Contracts,Administration
Land Registry,Land Registry,19/12/2013,Birkenhead Office,Stationery National Contracts,Banner Business Services Ltd,Large,986762,126.86,Stationery National Contracts,Administration
Land Registry,Land Registry,19/12/2013,Nottingham Office,Stationery National Contracts,Banner Business Services Ltd,Large,986762,88.77,Stationery National Contracts,Administration
Land Registry,Land Registry,19/12/2013,Governance & Policy,Stationery National Contracts,Banner Business Services Ltd,Large,986762,25.02,Stationery National Contracts,Administration
Land Registry,Land Registry,19/12/2013,Plymouth Office,Stationery National Contracts,Banner Business Services Ltd,Large,986762,76.07,Stationery National Contracts,Administration
Land Registry,Land Registry,19/12/2013,Birkenhead Office,Stationery National Contracts,Banner Business Services Ltd,Large,986762,34.48,Stationery National Contracts,Administration
Land Registry,Land Registry,19/12/2013,Nottingham Office,Stationery National Contracts,Banner Business Services Ltd,Large,986762,26.25,Stationery National Contracts,Administration
Land Registry,Land Registry,19/12/2013,Internal Solutions Group,Stationery National Contracts,Banner Business Services Ltd,Large,986762,3.61,Stationery National Contracts,Administration
Land Registry,Land Registry,19/12/2013,Plymouth Office,Stationery National Contracts,Banner Business Services Ltd,Large,986762,49.67,Stationery National Contracts,Administration
Land Registry,Land Registry,19/12/2013,Birkenhead Office,Stationery National Contracts,Banner Business Services Ltd,Large,986762,20.36,Stationery National Contracts,Administration
Land Registry,Land Registry,19/12/2013,Nottingham Office,Stationery National Contracts,Banner Business Services Ltd,Large,986762,3.36,Stationery National Contracts,Administration
Land Registry,Land Registry,19/12/2013,IS Service Delivery,Stationery National Contracts,Banner Business Services Ltd,Large,986762,6.58,Stationery National Contracts,Administration
Land Registry,Land Registry,19/12/2013,Internal Solutions Group,Stationery National Contracts,Banner Business Services Ltd,Large,986762,20.22,Stationery National Contracts,Administration
Land Registry,Land Registry,19/12/2013,Wales Office,Stationery National Contracts,Banner Business Services Ltd,Large,986762,8.76,Stationery National Contracts,Administration
Land Registry,Land Registry,19/12/2013,Plymouth Office,Stationery National Contracts,Banner Business Services Ltd,Large,986762,28.6,Stationery National Contracts,Administration
Land Registry,Land Registry,19/12/2013,Peterborough Office,Stationery National Contracts,Banner Business Services Ltd,Large,986762,88.77,Stationery National Contracts,Administration
Land Registry,Land Registry,19/12/2013,Durham Office,Stationery National Contracts,Banner Business Services Ltd,Large,986762,12.12,Stationery National Contracts,Administration
Land Registry,Land Registry,19/12/2013,Birkenhead Office,Stationery National Contracts,Banner Business Services Ltd,Large,986762,10.26,Stationery National Contracts,Administration
Land Registry,Land Registry,19/12/2013,Fylde Office,Stationery National Contracts,Banner Business Services Ltd,Large,986762,332.7,Stationery National Contracts,Administration
Land Registry,Land Registry,19/12/2013,Hull Office,Stationery National Contracts,Banner Business Services Ltd,Large,986762,1.18,Stationery National Contracts,Administration
Land Registry,Land Registry,19/12/2013,Gloucester Office,Stationery National Contracts,Banner Business Services Ltd,Large,986762,32.94,Stationery National Contracts,Administration
Land Registry,Land Registry,19/12/2013,Durham Office,Stationery National Contracts,Banner Business Services Ltd,Large,986762,212.8,Stationery National Contracts,Administration
Land Registry,Land Registry,19/12/2013,Croydon Office,Stationery National Contracts,Banner Business Services Ltd,Large,986762,295.9,Stationery National Contracts,Administration
Land Registry,Land Registry,19/12/2013,Coventry Office,Stationery National Contracts,Banner Business Services Ltd,Large,986762,5.72,Stationery National Contracts,Administration
Land Registry,Land Registry,19/12/2013,Birkenhead Office,Stationery National Contracts,Banner Business Services Ltd,Large,986762,282.23,Stationery National Contracts,Administration
Land Registry,Land Registry,19/12/2013,Nottingham Office,Stationery National Contracts,Banner Business Services Ltd,Large,986762,14.07,Stationery National Contracts,Administration
Land Registry,Land Registry,19/12/2013,IS Service Delivery,Stationery National Contracts,Banner Business Services Ltd,Large,986762,4.37,Stationery National Contracts,Administration
Land Registry,Land Registry,19/12/2013,Governance & Policy,Stationery National Contracts,Banner Business Services Ltd,Large,986762,14.9,Stationery National Contracts,Administration
Land Registry,Land Registry,19/12/2013,Internal Solutions Group,Stationery National Contracts,Banner Business Services Ltd,Large,986762,16.49,Stationery National Contracts,Administration
Land Registry,Land Registry,19/12/2013,Weymouth Office,Stationery National Contracts,Banner Business Services Ltd,Large,986762,180.12,Stationery National Contracts,Administration
Land Registry,Land Registry,19/12/2013,Wales Office,Stationery National Contracts,Banner Business Services Ltd,Large,986762,125.76,Stationery National Contracts,Administration
Land Registry,Land Registry,19/12/2013,Plymouth Office,Stationery National Contracts,Banner Business Services Ltd,Large,986762,177.79,Stationery National Contracts,Administration
Land Registry,Land Registry,19/12/2013,Peterborough Office,Stationery National Contracts,Banner Business Services Ltd,Large,986762,155.15,Stationery National Contracts,Administration
Land Registry,Land Registry,19/12/2013,Nottingham Office,Stationery National Contracts,Banner Business Services Ltd,Large,986762,15.62,Stationery National Contracts,Administration
Land Registry,Land Registry,19/12/2013,Fylde Office,Stationery National Contracts,Banner Business Services Ltd,Large,986762,98.82,Stationery National Contracts,Administration
Land Registry,Land Registry,19/12/2013,Hull Office,Stationery National Contracts,Banner Business Services Ltd,Large,986762,48.31,Stationery National Contracts,Administration
Land Registry,Land Registry,19/12/2013,Gloucester Office,Stationery National Contracts,Banner Business Services Ltd,Large,986762,31.08,Stationery National Contracts,Administration
Land Registry,Land Registry,19/12/2013,Durham Office,Stationery National Contracts,Banner Business Services Ltd,Large,986762,22.81,Stationery National Contracts,Administration
Land Registry,Land Registry,19/12/2013,Croydon Office,Stationery National Contracts,Banner Business Services Ltd,Large,986762,23.85,Stationery National Contracts,Administration
Land Registry,Land Registry,19/12/2013,Coventry Office,Stationery National Contracts,Banner Business Services Ltd,Large,986762,370.25,Stationery National Contracts,Administration
Land Registry,Land Registry,19/12/2013,Birkenhead Office,Stationery National Contracts,Banner Business Services Ltd,Large,986762,51.99,Stationery National Contracts,Administration
Land Registry,Land Registry,19/12/2013,IS Service Delivery,Stationery National Contracts,Banner Business Services Ltd,Large,986762,1.38,Stationery National Contracts,Administration
Land Registry,Land Registry,19/12/2013,Governance & Policy,Stationery National Contracts,Banner Business Services Ltd,Large,986762,17.52,Stationery National Contracts,Administration
Land Registry,Land Registry,19/12/2013,Internal Solutions Group,Stationery National Contracts,Banner Business Services Ltd,Large,986762,16.49,Stationery National Contracts,Administration
Land Registry,Land Registry,19/12/2013,Projects and Programme Centre,Stationery National Contracts,Banner Business Services Ltd,Large,986762,7.27,Stationery National Contracts,Administration
Land Registry,Land Registry,19/12/2013,HR,Stationery National Contracts,Banner Business Services Ltd,Large,986762,1.11,Stationery National Contracts,Administration
Land Registry,Land Registry,19/12/2013,Weymouth Office,Stationery National Contracts,Banner Business Services Ltd,Large,986762,63.66,Stationery National Contracts,Administration
Land Registry,Land Registry,19/12/2013,Wales Office,Stationery National Contracts,Banner Business Services Ltd,Large,986762,250.46,Stationery National Contracts,Administration
Land Registry,Land Registry,19/12/2013,Plymouth Office,Stationery National Contracts,Banner Business Services Ltd,Large,986762,9.91,Stationery National Contracts,Administration
Land Registry,Land Registry,19/12/2013,Peterborough Office,Stationery National Contracts,Banner Business Services Ltd,Large,986762,26.25,Stationery National Contracts,Administration
Land Registry,Land Registry,19/12/2013,Nottingham Office,Stationery National Contracts,Banner Business Services Ltd,Large,986762,10.92,Stationery National Contracts,Administration
Land Registry,Land Registry,19/12/2013,Wales Office,Stationery National Contracts,Banner Business Services Ltd,Large,986762,386.77,Stationery National Contracts,Administration
Land Registry,Land Registry,19/12/2013,Telford Office,Stationery National Contracts,Banner Business Services Ltd,Large,986762,1.8,Stationery National Contracts,Administration
Land Registry,Land Registry,19/12/2013,Plymouth Office,Stationery National Contracts,Banner Business Services Ltd,Large,986762,34.34,Stationery National Contracts,Administration
Land Registry,Land Registry,19/12/2013,Peterborough Office,Stationery National Contracts,Banner Business Services Ltd,Large,986762,43.75,Stationery National Contracts,Administration
Land Registry,Land Registry,19/12/2013,Nottingham Office,Stationery National Contracts,Banner Business Services Ltd,Large,986762,103.8,Stationery National Contracts,Administration
Land Registry,Land Registry,19/12/2013,Leicester Office,Stationery National Contracts,Banner Business Services Ltd,Large,986762,112.1,Stationery National Contracts,Administration
Land Registry,Land Registry,19/12/2013,Fylde Office,Stationery National Contracts,Banner Business Services Ltd,Large,986762,577.83,Stationery National Contracts,Administration
Land Registry,Land Registry,19/12/2013,Hull Office,Stationery National Contracts,Banner Business Services Ltd,Large,986762,68.56,Stationery National Contracts,Administration
Land Registry,Land Registry,19/12/2013,Gloucester Office,Stationery National Contracts,Banner Business Services Ltd,Large,986762,134.56,Stationery National Contracts,Administration
Land Registry,Land Registry,19/12/2013,Durham Office,Stationery National Contracts,Banner Business Services Ltd,Large,986762,492.98,Stationery National Contracts,Administration
Land Registry,Land Registry,19/12/2013,Coventry Office,Stationery National Contracts,Banner Business Services Ltd,Large,986762,678.82,Stationery National Contracts,Administration
Land Registry,Land Registry,19/12/2013,Birkenhead Office,Stationery National Contracts,Banner Business Services Ltd,Large,986762,323.27,Stationery National Contracts,Administration
Land Registry,Land Registry,19/12/2013,Nottingham Office,Stationery National Contracts,Banner Business Services Ltd,Large,986762,6.26,Stationery National Contracts,Administration
Land Registry,Land Registry,19/12/2013,IS Service Delivery,Stationery National Contracts,Banner Business Services Ltd,Large,986762,7.41,Stationery National Contracts,Administration
Land Registry,Land Registry,19/12/2013,Governance & Policy,Stationery National Contracts,Banner Business Services Ltd,Large,986762,20.04,Stationery National Contracts,Administration
Land Registry,Land Registry,19/12/2013,Research & Data Mining,Stationery National Contracts,Banner Business Services Ltd,Large,986762,0.6,Stationery National Contracts,Administration
Land Registry,Land Registry,19/12/2013,Projects and Programme Centre,Stationery National Contracts,Banner Business Services Ltd,Large,986762,0.22,Stationery National Contracts,Administration
Land Registry,Land Registry,19/12/2013,Finance Group,Stationery National Contracts,Banner Business Services Ltd,Large,986762,9.51,Stationery National Contracts,Administration
Land Registry,Land Registry,19/12/2013,HR,Stationery National Contracts,Banner Business Services Ltd,Large,986762,1.11,Stationery National Contracts,Administration
Land Registry,Land Registry,19/12/2013,Land Charges,Stationery National Contracts,Banner Business Services Ltd,Large,986762,3.34,Stationery National Contracts,Administration
Land Registry,Land Registry,19/12/2013,Weymouth Office,Stationery National Contracts,Banner Business Services Ltd,Large,986762,348.71,Stationery National Contracts,Administration
Land Registry,Land Registry,19/12/2013,Wales Office,Stationery National Contracts,Banner Business Services Ltd,Large,986762,928.9,Stationery National Contracts,Administration
Land Registry,Land Registry,19/12/2013,Telford Office,Stationery National Contracts,Banner Business Services Ltd,Large,986762,116.98,Stationery National Contracts,Administration
Land Registry,Land Registry,19/12/2013,Plymouth Office,Stationery National Contracts,Banner Business Services Ltd,Large,986762,117.09,Stationery National Contracts,Administration
Land Registry,Land Registry,19/12/2013,Peterborough Office,Stationery National Contracts,Banner Business Services Ltd,Large,986762,275.86,Stationery National Contracts,Administration
Land Registry,Land Registry,19/12/2013,Nottingham Office,Stationery National Contracts,Banner Business Services Ltd,Large,986762,148.68,Stationery National Contracts,Administration
Land Registry,Land Registry,19/12/2013,Leicester Office,Stationery National Contracts,Banner Business Services Ltd,Large,986762,317.31,Stationery National Contracts,Administration
Land Registry,Land Registry,19/12/2013,Fylde Office,Stationery National Contracts,Banner Business Services Ltd,Large,986762,86.57,Stationery National Contracts,Administration
Land Registry,Land Registry,19/12/2013,Hull Office,Stationery National Contracts,Banner Business Services Ltd,Large,986762,229.79,Stationery National Contracts,Administration
Land Registry,Land Registry,19/12/2013,Gloucester Office,Stationery National Contracts,Banner Business Services Ltd,Large,986762,363.82,Stationery National Contracts,Administration
Land Registry,Land Registry,19/12/2013,Durham Office,Stationery National Contracts,Banner Business Services Ltd,Large,986762,417.87,Stationery National Contracts,Administration
Land Registry,Land Registry,19/12/2013,Croydon Office,Stationery National Contracts,Banner Business Services Ltd,Large,986762,319.48,Stationery National Contracts,Administration
Land Registry,Land Registry,19/12/2013,Coventry Office,Stationery National Contracts,Banner Business Services Ltd,Large,986762,336.06,Stationery National Contracts,Administration
Land Registry,Land Registry,19/12/2013,Birkenhead Office,Stationery National Contracts,Banner Business Services Ltd,Large,986762,456.84,Stationery National Contracts,Administration
Land Registry,Land Registry,19/12/2013,Nottingham Office,Stationery National Contracts,Banner Business Services Ltd,Large,986762,4.63,Stationery National Contracts,Administration
Land Registry,Land Registry,19/12/2013,Central Facilities Management Team,Waste Disposal,Banner Business Services Ltd,Large,986762,102.5,Waste Disposal,Administration
Land Registry,Land Registry,19/12/2013,IS Service Delivery,Stationery National Contracts,Banner Business Services Ltd,Large,986762,10.82,Stationery National Contracts,Administration
Land Registry,Land Registry,19/12/2013,Governance & Policy,Stationery National Contracts,Banner Business Services Ltd,Large,986762,29.8,Stationery National Contracts,Administration
Land Registry,Land Registry,19/12/2013,Internal Solutions Group,Stationery National Contracts,Banner Business Services Ltd,Large,986762,11.34,Stationery National Contracts,Administration
Land Registry,Land Registry,19/12/2013,Research & Data Mining,Stationery National Contracts,Banner Business Services Ltd,Large,986762,6.62,Stationery National Contracts,Administration
Land Registry,Land Registry,19/12/2013,Central RFS,Stationery National Contracts,Banner Business Services Ltd,Large,986762,147.95,Stationery National Contracts,Administration
Land Registry,Land Registry,19/12/2013,Projects and Programme Centre,Stationery National Contracts,Banner Business Services Ltd,Large,986762,14.48,Stationery National Contracts,Administration
Land Registry,Land Registry,19/12/2013,Corp Procurement,Stationery National Contracts,Banner Business Services Ltd,Large,986762,32.85,Stationery National Contracts,Administration
Land Registry,Land Registry,19/12/2013,Finance Group,Stationery National Contracts,Banner Business Services Ltd,Large,986762,30.72,Stationery National Contracts,Administration
Land Registry,Land Registry,19/12/2013,Learning and Development,Stationery National Contracts,Banner Business Services Ltd,Large,986762,2.63,Stationery National Contracts,Administration
Land Registry,Land Registry,19/12/2013,HR,Stationery National Contracts,Banner Business Services Ltd,Large,986762,105.24,Stationery National Contracts,Administration
Land Registry,Land Registry,19/12/2013,Chief Executives Office,Stationery National Contracts,Banner Business Services Ltd,Large,986762,10.46,Stationery National Contracts,Administration
Land Registry,Land Registry,19/12/2013,Land Charges,Stationery National Contracts,Banner Business Services Ltd,Large,986762,106.28,Stationery National Contracts,Administration
Land Registry,Land Registry,19/12/2013,Weymouth Office,Stationery National Contracts,Banner Business Services Ltd,Large,986762,98.86,Stationery National Contracts,Administration
Land Registry,Land Registry,19/12/2013,Hull Office,Stationery National Contracts,Banner Business Services Ltd,Large,986762,21.26,Stationery National Contracts,Administration
Land Registry,Land Registry,19/12/2013,Gloucester Office,Stationery National Contracts,Banner Business Services Ltd,Large,986762,442.19,Stationery National Contracts,Administration
Land Registry,Land Registry,19/12/2013,Durham Office,Stationery National Contracts,Banner Business Services Ltd,Large,986762,88.52,Stationery National Contracts,Administration
Land Registry,Land Registry,19/12/2013,Croydon Office,Stationery National Contracts,Banner Business Services Ltd,Large,986762,50.1,Stationery National Contracts,Administration
Land Registry,Land Registry,19/12/2013,Coventry Office,Stationery National Contracts,Banner Business Services Ltd,Large,986762,490.05,Stationery National Contracts,Administration
Land Registry,Land Registry,19/12/2013,Gloucester Office,Stationery National Contracts,Banner Business Services Ltd,Large,986762,101.86,Stationery National Contracts,Administration
Land Registry,Land Registry,19/12/2013,Durham Office,Stationery National Contracts,Banner Business Services Ltd,Large,986762,334.47,Stationery National Contracts,Administration
Land Registry,Land Registry,19/12/2013,Croydon Office,Stationery National Contracts,Banner Business Services Ltd,Large,986762,688.64,Stationery National Contracts,Administration
Land Registry,Land Registry,19/12/2013,Coventry Office,Stationery National Contracts,Banner Business Services Ltd,Large,986762,354.65,Stationery National Contracts,Administration
Land Registry,Land Registry,19/12/2013,Birkenhead Office,Stationery National Contracts,Banner Business Services Ltd,Large,986762,855.1,Stationery National Contracts,Administration
Land Registry,Land Registry,19/12/2013,HR,Travel & Subsistence General Duty,Redfern Travel Ltd,Large,986770,84.36,Travel & Subsistence General Duty,Administration
Land Registry,Land Registry,19/12/2013,Internal Solutions Group,Travel & Subsistence General Duty,Redfern Travel Ltd,Large,986770,65.53,Travel & Subsistence General Duty,Administration
Land Registry,Land Registry,19/12/2013,Central Operations Group,Travel & Subsistence General Duty,Redfern Travel Ltd,Large,986770,91.2,Travel & Subsistence General Duty,Administration
Land Registry,Land Registry,19/12/2013,HR,Travel & Subsistence General Duty,Redfern Travel Ltd,Large,986770,129.16,Travel & Subsistence General Duty,Administration
Land Registry,Land Registry,19/12/2013,Stakeholder Management,Travel & Subsistence General Duty,Redfern Travel Ltd,Large,986770,1.56,Travel & Subsistence General Duty,Administration
Land Registry,Land Registry,19/12/2013,Chief Executives Office,Travel & Subsistence General Duty,Redfern Travel Ltd,Large,986770,107.77,Travel & Subsistence General Duty,Administration
Land Registry,Land Registry,19/12/2013,Marketing Services Team,Travel & Subsistence General Duty,Redfern Travel Ltd,Large,986770,21.42,Travel & Subsistence General Duty,Administration
Land Registry,Land Registry,19/12/2013,Central Operations Group,Travel & Subsistence General Duty,Redfern Travel Ltd,Large,986770,22.58,Travel & Subsistence General Duty,Administration
Land Registry,Land Registry,19/12/2013,Internal Solutions Group,Travel & Subsistence General Duty,Redfern Travel Ltd,Large,986770,112.66,Travel & Subsistence General Duty,Administration
Land Registry,Land Registry,19/12/2013,Corp Procurement,Travel & Subsistence General Duty,Redfern Travel Ltd,Large,986770,70.98,Travel & Subsistence General Duty,Administration
Land Registry,Land Registry,19/12/2013,Business Continuity,Travel & Subsistence General Duty,Redfern Travel Ltd,Large,986770,140.39,Travel & Subsistence General Duty,Administration
Land Registry,Land Registry,19/12/2013,Durham Office,Travel & Subsistence General Duty,Redfern Travel Ltd,Large,986770,89.08,Travel & Subsistence General Duty,Administration
Land Registry,Land Registry,19/12/2013,Commercial Director,Travel & Subsistence General Duty,Redfern Travel Ltd,Large,986770,87.29,Travel & Subsistence General Duty,Administration
Land Registry,Land Registry,19/12/2013,Director of Information Systems,Travel & Subsistence General Duty,Redfern Travel Ltd,Large,986770,10.11,Travel & Subsistence General Duty,Administration
Land Registry,Land Registry,19/12/2013,Employee & Management Support Manager,Travel & Subsistence General Duty,Redfern Travel Ltd,Large,986770,65.57,Travel & Subsistence General Duty,Administration
Land Registry,Land Registry,19/12/2013,Business Development,Travel & Subsistence General Duty,Redfern Travel Ltd,Large,986770,95.87,Travel & Subsistence General Duty,Administration
Land Registry,Land Registry,19/12/2013,Commercial & Customer Strategy & Performance,Travel & Subsistence General Duty,Redfern Travel Ltd,Large,986770,69.24,Travel & Subsistence General Duty,Administration
Land Registry,Land Registry,19/12/2013,Stakeholder Management,Travel & Subsistence General Duty,Redfern Travel Ltd,Large,986770,70.98,Travel & Subsistence General Duty,Administration
Land Registry,Land Registry,19/12/2013,Strategy Team,Travel & Subsistence General Duty,Redfern Travel Ltd,Large,986770,151,Travel & Subsistence General Duty,Administration
Land Registry,Land Registry,19/12/2013,HR,Travel & Subsistence General Duty,Redfern Travel Ltd,Large,986770,177.44,Travel & Subsistence General Duty,Administration
Land Registry,Land Registry,19/12/2013,Strategy Team,Travel & Subsistence General Duty,Redfern Travel Ltd,Large,986770,13.11,Travel & Subsistence General Duty,Administration
Land Registry,Land Registry,19/12/2013,Commercial & Customer Strategy & Performance,Travel & Subsistence General Duty,Redfern Travel Ltd,Large,986770,60.94,Travel & Subsistence General Duty,Administration
Land Registry,Land Registry,19/12/2013,HR,Travel & Subsistence General Duty,Redfern Travel Ltd,Large,986770,142.91,Travel & Subsistence General Duty,Administration
Land Registry,Land Registry,19/12/2013,Business Development,Travel & Subsistence General Duty,Redfern Travel Ltd,Large,986770,80.74,Travel & Subsistence General Duty,Administration
Land Registry,Land Registry,19/12/2013,Central Facilities Management Team,Travel & Subsistence General Duty,Redfern Travel Ltd,Large,986770,107.25,Travel & Subsistence General Duty,Administration
Land Registry,Land Registry,19/12/2013,Registration Legal Services Group,Travel & Subsistence General Duty,Redfern Travel Ltd,Large,986770,31.18,Travel & Subsistence General Duty,Administration
Land Registry,Land Registry,19/12/2013,Corporate Legal Services,Travel & Subsistence General Duty,Redfern Travel Ltd,Large,986770,53.52,Travel & Subsistence General Duty,Administration
Land Registry,Land Registry,19/12/2013,Chief Executives Office,Travel & Subsistence General Duty,Redfern Travel Ltd,Large,986770,122.32,Travel & Subsistence General Duty,Administration
Land Registry,Land Registry,19/12/2013,Corporate Legal Services,Travel & Subsistence General Duty,Redfern Travel Ltd,Large,986770,84.36,Travel & Subsistence General Duty,Administration
Land Registry,Land Registry,19/12/2013,Employee & Management Support Manager,Travel & Subsistence General Duty,Redfern Travel Ltd,Large,986770,65.57,Travel & Subsistence General Duty,Administration
Land Registry,Land Registry,19/12/2013,Professional Library,Travel & Subsistence General Duty,Redfern Travel Ltd,Large,986770,6.79,Travel & Subsistence General Duty,Administration
Land Registry,Land Registry,19/12/2013,Product Development & Management,Travel & Subsistence General Duty,Redfern Travel Ltd,Large,986770,151.49,Travel & Subsistence General Duty,Administration
Land Registry,Land Registry,19/12/2013,Professional Library,Travel & Subsistence General Duty,Redfern Travel Ltd,Large,986770,137.2,Travel & Subsistence General Duty,Administration
Land Registry,Land Registry,19/12/2013,Hull Office,Travel & Subsistence General Duty,Redfern Travel Ltd,Large,986770,89.29,Travel & Subsistence General Duty,Administration
Land Registry,Land Registry,19/12/2013,Governance & Policy,Travel & Subsistence General Duty,Redfern Travel Ltd,Large,986770,194.04,Travel & Subsistence General Duty,Administration
Land Registry,Land Registry,19/12/2013,Director of Legal Services,Travel & Subsistence General Duty,Redfern Travel Ltd,Large,986770,158.5,Travel & Subsistence General Duty,Administration
Land Registry,Land Registry,19/12/2013,Strategy Team,Travel & Subsistence General Duty,Redfern Travel Ltd,Large,986770,89.08,Travel & Subsistence General Duty,Administration
Land Registry,Land Registry,19/12/2013,Commercial & Customer Strategy & Performance,Travel & Subsistence General Duty,Redfern Travel Ltd,Large,986770,37.51,Travel & Subsistence General Duty,Administration
Land Registry,Land Registry,19/12/2013,Commercial Director,Travel & Subsistence General Duty,Redfern Travel Ltd,Large,986770,26.3,Travel & Subsistence General Duty,Administration
Land Registry,Land Registry,19/12/2013,Registration Legal Services Group,Travel & Subsistence General Duty,Redfern Travel Ltd,Large,986770,70.98,Travel & Subsistence General Duty,Administration
Land Registry,Land Registry,19/12/2013,Corporate Legal Services,Travel & Subsistence General Duty,Redfern Travel Ltd,Large,986770,50,Travel & Subsistence General Duty,Administration
Land Registry,Land Registry,19/12/2013,Business Development,Travel & Subsistence General Duty,Redfern Travel Ltd,Large,986770,267.66,Travel & Subsistence General Duty,Administration
Land Registry,Land Registry,19/12/2013,Strategy Team,Travel & Subsistence General Duty,Redfern Travel Ltd,Large,986770,135.75,Travel & Subsistence General Duty,Administration
Land Registry,Land Registry,19/12/2013,Gloucester Office,Travel & Subsistence General Duty,Redfern Travel Ltd,Large,986770,135.75,Travel & Subsistence General Duty,Administration
Land Registry,Land Registry,19/12/2013,Product Development & Management,Travel & Subsistence General Duty,Redfern Travel Ltd,Large,986770,258.28,Travel & Subsistence General Duty,Administration
Land Registry,Land Registry,19/12/2013,Guarantee & Litigation,Travel & Subsistence General Duty,Redfern Travel Ltd,Large,986770,99.62,Travel & Subsistence General Duty,Administration
Land Registry,Land Registry,19/12/2013,Research & Data Mining,Travel & Subsistence General Duty,Redfern Travel Ltd,Large,986770,30.78,Travel & Subsistence General Duty,Administration
Land Registry,Land Registry,19/12/2013,Product Development & Management,Travel & Subsistence General Duty,Redfern Travel Ltd,Large,986770,41.22,Travel & Subsistence General Duty,Administration
Land Registry,Land Registry,19/12/2013,Commercial & Customer Strategy & Performance,Travel & Subsistence General Duty,Redfern Travel Ltd,Large,986770,49.67,Travel & Subsistence General Duty,Administration
Land Registry,Land Registry,19/12/2013,Corporate Legal Services,Travel & Subsistence General Duty,Redfern Travel Ltd,Large,986770,107.77,Travel & Subsistence General Duty,Administration
Land Registry,Land Registry,19/12/2013,Customer Services,Travel & Subsistence General Duty,Redfern Travel Ltd,Large,986770,77.33,Travel & Subsistence General Duty,Administration
Land Registry,Land Registry,19/12/2013,Registration Legal Services Group,Travel & Subsistence General Duty,Redfern Travel Ltd,Large,986770,52.55,Travel & Subsistence General Duty,Administration
Land Registry,Land Registry,19/12/2013,Business Development,Travel & Subsistence General Duty,Redfern Travel Ltd,Large,986770,127.31,Travel & Subsistence General Duty,Administration
Land Registry,Land Registry,19/12/2013,Central Operations Group,Travel & Subsistence General Duty,Redfern Travel Ltd,Large,986770,156.48,Travel & Subsistence General Duty,Administration
Land Registry,Land Registry,19/12/2013,Research & Data Mining,Travel & Subsistence General Duty,Redfern Travel Ltd,Large,986770,11.76,Travel & Subsistence General Duty,Administration
Land Registry,Land Registry,19/12/2013,Corp Procurement,Travel & Subsistence General Duty,Redfern Travel Ltd,Large,986770,65.95,Travel & Subsistence General Duty,Administration
Land Registry,Land Registry,19/12/2013,HR,Travel & Subsistence General Duty,Redfern Travel Ltd,Large,986770,87.07,Travel & Subsistence General Duty,Administration
Land Registry,Land Registry,19/12/2013,Plymouth Office,Travel & Subsistence General Duty,Redfern Travel Ltd,Large,986770,80.45,Travel & Subsistence General Duty,Administration
Land Registry,Land Registry,19/12/2013,Croydon Office,Travel & Subsistence General Duty,Redfern Travel Ltd,Large,986770,99.77,Travel & Subsistence General Duty,Administration
Land Registry,Land Registry,19/12/2013,Survey & Mapping Services,Travel & Subsistence General Duty,Redfern Travel Ltd,Large,986770,144.41,Travel & Subsistence General Duty,Administration
Land Registry,Land Registry,19/12/2013,HR,Travel & Subsistence General Duty,Redfern Travel Ltd,Large,986770,122.28,Travel & Subsistence General Duty,Administration
Land Registry,Land Registry,19/12/2013,Strategy Team,Travel & Subsistence General Duty,Redfern Travel Ltd,Large,986770,87.29,Travel & Subsistence General Duty,Administration
Land Registry,Land Registry,19/12/2013,Business Development,Travel & Subsistence General Duty,Redfern Travel Ltd,Large,986770,138.52,Travel & Subsistence General Duty,Administration
Land Registry,Land Registry,19/12/2013,Central Operations Group,Travel & Subsistence General Duty,Redfern Travel Ltd,Large,986770,142.91,Travel & Subsistence General Duty,Administration
Land Registry,Land Registry,19/12/2013,Central Facilities Management Team,Travel & Subsistence General Duty,Redfern Travel Ltd,Large,986770,65.95,Travel & Subsistence General Duty,Administration
Land Registry,Land Registry,19/12/2013,Business Development,Travel & Subsistence General Duty,Redfern Travel Ltd,Large,986770,194.42,Travel & Subsistence General Duty,Administration
Land Registry,Land Registry,19/12/2013,International Unit,Travel & Subsistence General Duty,Redfern Travel Ltd,Large,986770,55.47,Travel & Subsistence General Duty,Administration
Land Registry,Land Registry,19/12/2013,IS Service Delivery,Travel & Subsistence General Duty,Redfern Travel Ltd,Large,986770,122.28,Travel & Subsistence General Duty,Administration
Land Registry,Land Registry,19/12/2013,Product Development & Management,Travel & Subsistence General Duty,Redfern Travel Ltd,Large,986770,105.38,Travel & Subsistence General Duty,Administration
Land Registry,Land Registry,19/12/2013,Internal Solutions Group,Travel & Subsistence General Duty,Redfern Travel Ltd,Large,986770,775.84,Travel & Subsistence General Duty,Administration
Land Registry,Land Registry,19/12/2013,IS Service Delivery,Travel & Subsistence General Duty,Redfern Travel Ltd,Large,986770,263.12,Travel & Subsistence General Duty,Administration
Land Registry,Land Registry,19/12/2013,Croydon Office,Travel & Subsistence General Duty,Redfern Travel Ltd,Large,986770,9.52,Travel & Subsistence General Duty,Administration
Land Registry,Land Registry,19/12/2013,Director of Information Systems,Travel & Subsistence General Duty,Redfern Travel Ltd,Large,986770,10.11,Travel & Subsistence General Duty,Administration
Land Registry,Land Registry,19/12/2013,HR,Travel & Subsistence General Duty,Redfern Travel Ltd,Large,986770,81.04,Travel & Subsistence General Duty,Administration
Land Registry,Land Registry,19/12/2013,Marketing Services Team,Travel & Subsistence General Duty,Redfern Travel Ltd,Large,986770,17.91,Travel & Subsistence General Duty,Administration
Land Registry,Land Registry,19/12/2013,HR,Travel & Subsistence General Duty,Redfern Travel Ltd,Large,986770,9.42,Travel & Subsistence General Duty,Administration
Land Registry,Land Registry,19/12/2013,Property Asset Management Group,Travel & Subsistence General Duty,Redfern Travel Ltd,Large,986770,66.95,Travel & Subsistence General Duty,Administration
Land Registry,Land Registry,19/12/2013,HR,Travel & Subsistence General Duty,Redfern Travel Ltd,Large,986770,213.37,Travel & Subsistence General Duty,Administration
Land Registry,Land Registry,19/12/2013,Projects and Programme Centre,Travel & Subsistence General Duty,Redfern Travel Ltd,Large,986770,130.33,Travel & Subsistence General Duty,Administration
Land Registry,Land Registry,19/12/2013,Central Operations Group,Travel & Subsistence General Duty,Redfern Travel Ltd,Large,986770,116.25,Travel & Subsistence General Duty,Administration
Land Registry,Land Registry,19/12/2013,HR,Travel & Subsistence General Duty,Redfern Travel Ltd,Large,986770,84.36,Travel & Subsistence General Duty,Administration
Land Registry,Land Registry,19/12/2013,Internal Solutions Group,Travel & Subsistence General Duty,Redfern Travel Ltd,Large,986770,264.4,Travel & Subsistence General Duty,Administration
Land Registry,Land Registry,19/12/2013,Corporate Legal Services,Travel & Subsistence General Duty,Redfern Travel Ltd,Large,986770,146.43,Travel & Subsistence General Duty,Administration
Land Registry,Land Registry,19/12/2013,HR,Travel & Subsistence General Duty,Redfern Travel Ltd,Large,986770,157.06,Travel & Subsistence General Duty,Administration
Land Registry,Land Registry,19/12/2013,Croydon Office,Travel & Subsistence General Duty,Redfern Travel Ltd,Large,986770,17.91,Travel & Subsistence General Duty,Administration
Land Registry,Land Registry,19/12/2013,Central Operations Group,Travel & Subsistence General Duty,Redfern Travel Ltd,Large,986770,70.98,Travel & Subsistence General Duty,Administration
Land Registry,Land Registry,19/12/2013,Property Asset Management Group,Travel & Subsistence General Duty,Redfern Travel Ltd,Large,986770,140.46,Travel & Subsistence General Duty,Administration
Land Registry,Land Registry,19/12/2013,Internal Solutions Group,Travel & Subsistence General Duty,Redfern Travel Ltd,Large,986770,65.95,Travel & Subsistence General Duty,Administration
Land Registry,Land Registry,19/12/2013,Director of Legal Services,Travel & Subsistence General Duty,Redfern Travel Ltd,Large,986770,194.14,Travel & Subsistence General Duty,Administration
Land Registry,Land Registry,19/12/2013,Central Facilities Management Team,Travel & Subsistence General Duty,Redfern Travel Ltd,Large,986770,75.86,Travel & Subsistence General Duty,Administration
Land Registry,Land Registry,19/12/2013,Internal Solutions Group,Travel & Subsistence General Duty,Redfern Travel Ltd,Large,986770,63.38,Travel & Subsistence General Duty,Administration
Land Registry,Land Registry,19/12/2013,HR,Travel & Subsistence General Duty,Redfern Travel Ltd,Large,986770,373,Travel & Subsistence General Duty,Administration
Land Registry,Land Registry,19/12/2013,Customer Services,Travel & Subsistence General Duty,Redfern Travel Ltd,Large,986770,150.23,Travel & Subsistence General Duty,Administration
Land Registry,Land Registry,19/12/2013,Internal Audit,Travel & Subsistence General Duty,Redfern Travel Ltd,Large,986770,57.13,Travel & Subsistence General Duty,Administration
Land Registry,Land Registry,19/12/2013,Commercial Director,Travel & Subsistence General Duty,Redfern Travel Ltd,Large,986770,290.08,Travel & Subsistence General Duty,Administration
Land Registry,Land Registry,19/12/2013,Internal Audit,Travel & Subsistence General Duty,Redfern Travel Ltd,Large,986770,101.91,Travel & Subsistence General Duty,Administration
Land Registry,Land Registry,19/12/2013,Projects and Programme Centre,Travel & Subsistence General Duty,Redfern Travel Ltd,Large,986770,375.79,Travel & Subsistence General Duty,Administration
Land Registry,Land Registry,19/12/2013,Commercial & Customer Strategy & Performance,Travel & Subsistence General Duty,Redfern Travel Ltd,Large,986770,56.84,Travel & Subsistence General Duty,Administration
Land Registry,Land Registry,19/12/2013,Research & Data Mining,Travel & Subsistence General Duty,Redfern Travel Ltd,Large,986770,77.33,Travel & Subsistence General Duty,Administration
Land Registry,Land Registry,19/12/2013,Central Facilities Management Team,Travel & Subsistence General Duty,Redfern Travel Ltd,Large,986770,76.35,Travel & Subsistence General Duty,Administration
Land Registry,Land Registry,19/12/2013,Finance Group,Travel & Subsistence General Duty,Redfern Travel Ltd,Large,986770,10.59,Travel & Subsistence General Duty,Administration
Land Registry,Land Registry,19/12/2013,Research & Data Mining,Travel & Subsistence General Duty,Redfern Travel Ltd,Large,986770,30.93,Travel & Subsistence General Duty,Administration
Land Registry,Land Registry,19/12/2013,HR,Travel & Subsistence General Duty,Redfern Travel Ltd,Large,986770,168.09,Travel & Subsistence General Duty,Administration
Land Registry,Land Registry,19/12/2013,Research & Data Mining,Travel & Subsistence General Duty,Redfern Travel Ltd,Large,986770,30.78,Travel & Subsistence General Duty,Administration
Land Registry,Land Registry,19/12/2013,Central Operations Group,Travel & Subsistence General Duty,Redfern Travel Ltd,Large,986770,236.58,Travel & Subsistence General Duty,Administration
Land Registry,Land Registry,19/12/2013,Commercial & Customer Strategy & Performance,Travel & Subsistence General Duty,Redfern Travel Ltd,Large,986770,122.28,Travel & Subsistence General Duty,Administration
Land Registry,Land Registry,19/12/2013,Central Operations Group,Travel & Subsistence General Duty,Redfern Travel Ltd,Large,986770,39.44,Travel & Subsistence General Duty,Administration
Land Registry,Land Registry,19/12/2013,Internal Solutions Group,Travel & Subsistence General Duty,Redfern Travel Ltd,Large,986770,114.61,Travel & Subsistence General Duty,Administration
Land Registry,Land Registry,19/12/2013,Chief Executives Office,Travel & Subsistence General Duty,Redfern Travel Ltd,Large,986770,618.54,Travel & Subsistence General Duty,Administration
Land Registry,Land Registry,19/12/2013,IS Service Delivery,Travel & Subsistence General Duty,Redfern Travel Ltd,Large,986770,122.28,Travel & Subsistence General Duty,Administration
Land Registry,Land Registry,19/12/2013,HR,Travel & Subsistence General Duty,Redfern Travel Ltd,Large,986770,159,Travel & Subsistence General Duty,Administration
Land Registry,Land Registry,19/12/2013,Stakeholder Management,Travel & Subsistence General Duty,Redfern Travel Ltd,Large,986770,131.94,Travel & Subsistence General Duty,Administration
Land Registry,Land Registry,19/12/2013,Central Facilities Management Team,Travel & Subsistence General Duty,Redfern Travel Ltd,Large,986770,63.93,Travel & Subsistence General Duty,Administration
Land Registry,Land Registry,19/12/2013,Internal Solutions Group,Travel & Subsistence General Duty,Redfern Travel Ltd,Large,986770,1.56,Travel & Subsistence General Duty,Administration
Land Registry,Land Registry,19/12/2013,Business Continuity,Travel & Subsistence General Duty,Redfern Travel Ltd,Large,986770,17.03,Travel & Subsistence General Duty,Administration
Land Registry,Land Registry,19/12/2013,National Lawyer Training,Travel & Subsistence General Duty,Redfern Travel Ltd,Large,986770,20.94,Travel & Subsistence General Duty,Administration
Land Registry,Land Registry,19/12/2013,Projects and Programme Centre,Travel & Subsistence General Duty,Redfern Travel Ltd,Large,986770,188.68,Travel & Subsistence General Duty,Administration
Land Registry,Land Registry,19/12/2013,HR,Travel & Subsistence General Duty,Redfern Travel Ltd,Large,986770,141.9,Travel & Subsistence General Duty,Administration
Land Registry,Land Registry,19/12/2013,Finance Group,Travel & Subsistence General Duty,Redfern Travel Ltd,Large,986770,140.39,Travel & Subsistence General Duty,Administration
Land Registry,Land Registry,19/12/2013,Central Facilities Management Team,Travel & Subsistence General Duty,Redfern Travel Ltd,Large,986770,62.93,Travel & Subsistence General Duty,Administration
Land Registry,Land Registry,19/12/2013,Learning and Development,Travel & Subsistence General Duty,Redfern Travel Ltd,Large,986770,247.78,Travel & Subsistence General Duty,Administration
Land Registry,Land Registry,19/12/2013,Commercial & Customer Strategy & Performance,Travel & Subsistence General Duty,Redfern Travel Ltd,Large,986770,36.82,Travel & Subsistence General Duty,Administration
Land Registry,Land Registry,19/12/2013,HR,Travel & Subsistence General Duty,Redfern Travel Ltd,Large,986770,125.34,Travel & Subsistence General Duty,Administration
Land Registry,Land Registry,19/12/2013,Independent Complaints Reviewer,Travel & Subsistence General Duty,Redfern Travel Ltd,Large,986770,46.68,Travel & Subsistence General Duty,Administration
Land Registry,Land Registry,19/12/2013,Commercial & Customer Strategy & Performance,Travel & Subsistence General Duty,Redfern Travel Ltd,Large,986770,39.75,Travel & Subsistence General Duty,Administration
Land Registry,Land Registry,19/12/2013,Corp Procurement,Travel & Subsistence General Duty,Redfern Travel Ltd,Large,986770,127.3,Travel & Subsistence General Duty,Administration
Land Registry,Land Registry,19/12/2013,Nottingham Office,Travel & Subsistence General Duty,Redfern Travel Ltd,Large,986770,69.72,Travel & Subsistence General Duty,Administration
Land Registry,Land Registry,19/12/2013,Director of Legal Services,Travel & Subsistence General Duty,Redfern Travel Ltd,Large,986770,164.86,Travel & Subsistence General Duty,Administration
Land Registry,Land Registry,19/12/2013,Corporate Legal Services,Travel & Subsistence General Duty,Redfern Travel Ltd,Large,986770,210.26,Travel & Subsistence General Duty,Administration
Land Registry,Land Registry,19/12/2013,IS Service Delivery,Travel & Subsistence General Duty,Redfern Travel Ltd,Large,986770,122.28,Travel & Subsistence General Duty,Administration
Land Registry,Land Registry,19/12/2013,Stakeholder Management,Travel & Subsistence General Duty,Redfern Travel Ltd,Large,986770,262.32,Travel & Subsistence General Duty,Administration
Land Registry,Land Registry,19/12/2013,Learning and Development,Travel & Subsistence General Duty,Redfern Travel Ltd,Large,986770,113.91,Travel & Subsistence General Duty,Administration
Land Registry,Land Registry,19/12/2013,Croydon Office,Travel & Subsistence General Duty,Redfern Travel Ltd,Large,986770,43.87,Travel & Subsistence General Duty,Administration
Land Registry,Land Registry,19/12/2013,HR,Travel & Subsistence General Duty,Redfern Travel Ltd,Large,986770,243.86,Travel & Subsistence General Duty,Administration
Land Registry,Land Registry,19/12/2013,Corp Procurement,Travel & Subsistence General Duty,Redfern Travel Ltd,Large,986770,52.36,Travel & Subsistence General Duty,Administration
Land Registry,Land Registry,19/12/2013,Governance & Policy,Travel & Subsistence General Duty,Redfern Travel Ltd,Large,986770,178.43,Travel & Subsistence General Duty,Administration
Land Registry,Land Registry,19/12/2013,Corp Procurement,Travel & Subsistence General Duty,Redfern Travel Ltd,Large,986770,56.16,Travel & Subsistence General Duty,Administration
Land Registry,Land Registry,19/12/2013,HR,Travel & Subsistence General Duty,Redfern Travel Ltd,Large,986770,16.94,Travel & Subsistence General Duty,Administration
Land Registry,Land Registry,19/12/2013,Central Operations Group,Travel & Subsistence General Duty,Redfern Travel Ltd,Large,986770,108.55,Travel & Subsistence General Duty,Administration
Land Registry,Land Registry,19/12/2013,Internal Solutions Group,Travel & Subsistence General Duty,Redfern Travel Ltd,Large,986770,108.55,Travel & Subsistence General Duty,Administration
Land Registry,Land Registry,19/12/2013,International Unit,Travel & Subsistence General Duty,Redfern Travel Ltd,Large,986770,1.56,Travel & Subsistence General Duty,Administration
Land Registry,Land Registry,19/12/2013,Business Development,Travel & Subsistence General Duty,Redfern Travel Ltd,Large,986770,28.43,Travel & Subsistence General Duty,Administration
Land Registry,Land Registry,19/12/2013,Internal Solutions Group,Travel & Subsistence General Duty,Redfern Travel Ltd,Large,986770,118.5,Travel & Subsistence General Duty,Administration
Land Registry,Land Registry,19/12/2013,Product Development & Management,Travel & Subsistence General Duty,Redfern Travel Ltd,Large,986770,70.98,Travel & Subsistence General Duty,Administration
Land Registry,Land Registry,19/12/2013,Employee & Management Support Manager,Travel & Subsistence General Duty,Redfern Travel Ltd,Large,986770,22.58,Travel & Subsistence General Duty,Administration
Land Registry,Land Registry,19/12/2013,Hull Office,Travel & Subsistence General Duty,Redfern Travel Ltd,Large,986770,54.39,Travel & Subsistence General Duty,Administration
Land Registry,Land Registry,19/12/2013,Guarantee & Litigation,Travel & Subsistence General Duty,Redfern Travel Ltd,Large,986770,48.53,Travel & Subsistence General Duty,Administration
Land Registry,Land Registry,19/12/2013,Strategy Team,Travel & Subsistence General Duty,Redfern Travel Ltd,Large,986770,1.56,Travel & Subsistence General Duty,Administration
Land Registry,Land Registry,19/12/2013,HR,Travel & Subsistence General Duty,Redfern Travel Ltd,Large,986770,471.09,Travel & Subsistence General Duty,Administration
Land Registry,Land Registry,19/12/2013,Internal Solutions Group,Travel & Subsistence General Duty,Redfern Travel Ltd,Large,986770,142.94,Travel & Subsistence General Duty,Administration
Land Registry,Land Registry,19/12/2013,Customer Services,Travel & Subsistence General Duty,Redfern Travel Ltd,Large,986770,107.28,Travel & Subsistence General Duty,Administration
Land Registry,Land Registry,19/12/2013,Corp Procurement,Travel & Subsistence General Duty,Redfern Travel Ltd,Large,986770,72.54,Travel & Subsistence General Duty,Administration
Land Registry,Land Registry,19/12/2013,Hull Office,Travel & Subsistence General Duty,Redfern Travel Ltd,Large,986770,54.39,Travel & Subsistence General Duty,Administration
Land Registry,Land Registry,19/12/2013,HR,Travel & Subsistence General Duty,Redfern Travel Ltd,Large,986770,239.54,Travel & Subsistence General Duty,Administration
Land Registry,Land Registry,19/12/2013,IS Service Delivery,Travel & Subsistence General Duty,Redfern Travel Ltd,Large,986770,215.06,Travel & Subsistence General Duty,Administration
Land Registry,Land Registry,19/12/2013,HR,Travel & Subsistence General Duty,Redfern Travel Ltd,Large,986770,177.55,Travel & Subsistence General Duty,Administration
Land Registry,Land Registry,19/12/2013,Customer Services,Travel & Subsistence General Duty,Redfern Travel Ltd,Large,986770,56.84,Travel & Subsistence General Duty,Administration
Land Registry,Land Registry,19/12/2013,Fylde Office,Travel & Subsistence General Duty,Redfern Travel Ltd,Large,986770,74.59,Travel & Subsistence General Duty,Administration
Land Registry,Land Registry,19/12/2013,Strategy Team,Travel & Subsistence General Duty,Redfern Travel Ltd,Large,986770,10.68,Travel & Subsistence General Duty,Administration
Land Registry,Land Registry,19/12/2013,Customer Services,Travel & Subsistence General Duty,Redfern Travel Ltd,Large,986770,56.06,Travel & Subsistence General Duty,Administration
Land Registry,Land Registry,19/12/2013,Internal Solutions Group,Travel & Subsistence General Duty,Redfern Travel Ltd,Large,986770,174.72,Travel & Subsistence General Duty,Administration
Land Registry,Land Registry,19/12/2013,HR,Travel & Subsistence General Duty,Redfern Travel Ltd,Large,986770,110.71,Travel & Subsistence General Duty,Administration
Land Registry,Land Registry,19/12/2013,Business Continuity,Travel & Subsistence General Duty,Redfern Travel Ltd,Large,986770,58.9,Travel & Subsistence General Duty,Administration
Land Registry,Land Registry,19/12/2013,HR,Travel & Subsistence General Duty,Redfern Travel Ltd,Large,986770,65.73,Travel & Subsistence General Duty,Administration
Land Registry,Land Registry,19/12/2013,International Unit,Travel & Subsistence General Duty,Redfern Travel Ltd,Large,986770,17.91,Travel & Subsistence General Duty,Administration
Land Registry,Land Registry,19/12/2013,Learning and Development,Travel & Subsistence General Duty,Redfern Travel Ltd,Large,986770,604.38,Travel & Subsistence General Duty,Administration
Land Registry,Land Registry,19/12/2013,Business Development,Travel & Subsistence General Duty,Redfern Travel Ltd,Large,986770,28.43,Travel & Subsistence General Duty,Administration
Land Registry,Land Registry,19/12/2013,Business Continuity,Travel & Subsistence General Duty,Redfern Travel Ltd,Large,986770,58.9,Travel & Subsistence General Duty,Administration
Land Registry,Land Registry,19/12/2013,Corporate Legal Services,Travel & Subsistence General Duty,Redfern Travel Ltd,Large,986770,259,Travel & Subsistence General Duty,Administration
Land Registry,Land Registry,19/12/2013,Wales Office,Travel & Subsistence General Duty,Redfern Travel Ltd,Large,986770,176.39,Travel & Subsistence General Duty,Administration
Land Registry,Land Registry,19/12/2013,Business Development,Travel & Subsistence General Duty,Redfern Travel Ltd,Large,986770,137.83,Travel & Subsistence General Duty,Administration
Land Registry,Land Registry,19/12/2013,Corporate Legal Services,Travel & Subsistence General Duty,Redfern Travel Ltd,Large,986770,307.65,Travel & Subsistence General Duty,Administration
Land Registry,Land Registry,19/12/2013,HR,Travel & Subsistence General Duty,Redfern Travel Ltd,Large,986770,250.83,Travel & Subsistence General Duty,Administration
Land Registry,Land Registry,19/12/2013,IS Service Delivery,Travel & Subsistence General Duty,Redfern Travel Ltd,Large,986770,215.06,Travel & Subsistence General Duty,Administration
Land Registry,Land Registry,19/12/2013,Peterborough Office,Travel & Subsistence General Duty,Redfern Travel Ltd,Large,986770,307.61,Travel & Subsistence General Duty,Administration
Land Registry,Land Registry,19/12/2013,Learning and Development,Travel & Subsistence General Duty,Redfern Travel Ltd,Large,986770,604.38,Travel & Subsistence General Duty,Administration
Land Registry,Land Registry,19/12/2013,Corp Procurement,Travel & Subsistence General Duty,Redfern Travel Ltd,Large,986770,137.7,Travel & Subsistence General Duty,Administration
Land Registry,Land Registry,19/12/2013,Weymouth Office,Travel & Subsistence General Duty,Redfern Travel Ltd,Large,986770,-116.78,Travel & Subsistence General Duty,Administration
Land Registry,Land Registry,19/12/2013,Corporate Legal Services,Travel & Subsistence General Duty,Redfern Travel Ltd,Large,986770,-96.93,Travel & Subsistence General Duty,Administration
Land Registry,Land Registry,19/12/2013,Commercial Director,Travel & Subsistence General Duty,Redfern Travel Ltd,Large,986770,-293.57,Travel & Subsistence General Duty,Administration
Land Registry,Land Registry,19/12/2013,Central Facilities Management Team,Travel & Subsistence General Duty,Redfern Travel Ltd,Large,986770,-304.14,Travel & Subsistence General Duty,Administration
Land Registry,Land Registry,19/12/2013,Internal Audit,Travel & Subsistence General Duty,Redfern Travel Ltd,Large,986770,-94.5,Travel & Subsistence General Duty,Administration
Land Registry,Land Registry,19/12/2013,Governance & Policy,Travel & Subsistence General Duty,Redfern Travel Ltd,Large,986770,-35.11,Travel & Subsistence General Duty,Administration
Land Registry,Land Registry,19/12/2013,Business Development,Travel & Subsistence General Duty,Redfern Travel Ltd,Large,986770,-37.9,Travel & Subsistence General Duty,Administration
Land Registry,Land Registry,19/12/2013,Central Facilities Management Team,Travel & Subsistence General Duty,Redfern Travel Ltd,Large,986770,-86.2,Travel & Subsistence General Duty,Administration
Land Registry,Land Registry,19/12/2013,Employee & Management Support Manager,Travel & Subsistence General Duty,Redfern Travel Ltd,Large,986770,-107.67,Travel & Subsistence General Duty,Administration
Land Registry,Land Registry,19/12/2013,Customer Services,Travel & Subsistence General Duty,Redfern Travel Ltd,Large,986770,2.05,Travel & Subsistence General Duty,Administration
Land Registry,Land Registry,19/12/2013,International Unit,Travel & Subsistence General Duty,Redfern Travel Ltd,Large,986770,52.35,Travel & Subsistence General Duty,Administration
Land Registry,Land Registry,19/12/2013,Marketing Services Team,Travel & Subsistence General Duty,Redfern Travel Ltd,Large,986770,0.25,Travel & Subsistence General Duty,Administration
Land Registry,Land Registry,19/12/2013,Product Development & Management,Travel & Subsistence General Duty,Redfern Travel Ltd,Large,986770,90.35,Travel & Subsistence General Duty,Administration
Land Registry,Land Registry,19/12/2013,Commercial & Customer Strategy & Performance,Travel & Subsistence General Duty,Redfern Travel Ltd,Large,986770,102.65,Travel & Subsistence General Duty,Administration
Land Registry,Land Registry,19/12/2013,Stakeholder Management,Travel & Subsistence General Duty,Redfern Travel Ltd,Large,986770,389,Travel & Subsistence General Duty,Administration
